{"text_format":"1","workbook":"xlsx","n_sheets":5,"sheets":["Information","Tidsvärden","Indata","Utdata","Stödberäkningar"],"not_rendered":{"charts":0,"images":0,"macros":0,"external_links":1,"defined_names":1,"comments":0,"pivot_tables":0},"unopened":[],"bounds":{"document_bytes":16777216,"sheet_cells":100000,"rows_first":2000,"rows_last":500,"rows_between":2000,"halvings":0,"cell_chars":16384,"cell_head_chars":4096},"cells_cut":0,"cells_raw":0,"read":"whole","date_system":"1900"}

{"sheet":"Information","index":0,"n_rows":0,"n_cols":0,"rows_kept":0,"cut":false,"hidden":false,"merged":[]}

{"sheet":"Tidsvärden","index":1,"n_rows":42,"n_cols":15,"rows_kept":42,"cut":false,"hidden":false,"merged":[]}
[]
["Projektspecifika",null,null,null,null,null,null,null,null,"EVA"]
["Färg för celler som kan ändras",null,null,null,null,null,null,null,null,"Färg för celler som kan ändras"]
["Färg för celler som EJ kan ändras",null,null,null,null,null,null,null,null,"Färg för celler som EJ kan ändras"]
[]
["Andel långväga personbilstrafik >10 mil",4.3999999999999997E-2,null,null,null,null,null,null,null,"Andel Privatresor",0.9]
["Andel långväga tung trafik >10 mil",0.28000000000000003,null,null,null,null,null,null,null,"Andel Tjänsteresor",0.1]
["Andel arbetsresor av privata resor",0.33800000000000002,null,null,null,null,null,null,null,"Andel Lbu av tung trafik",0.56000000000000005,null,"Bedöms av användare"]
["Andel tjänsteresor av personbilsresor",8.3000000000000004E-2]
["Andel Pby av personbilstrafik",0.11]
["Andel Lbu av tung trafik",0.55700000000000005]
[]
["Långväga (värden enligt ASEK 8)","Arbetsresor","Tjänsteresor","Övriga Resor","Pby","Lbu","Lbs",null,null,"Tidsvärden enligt EVA ","Privatresor","Privatresor, KA*","Tjänsteresor","Lbu","Lbs"]
["Tidsvärde kr/tim",139,389,139,341,341,365,null,null,"Tidsvärde kr/tim",114,95,389,341,365]
["Tidsvärde Gods kr/tim",0,0,0,0.31,15.16,17.850000000000001,null,null,"Tidsvärde Gods kr/tim",0,0,0,12.53,14.75]
["Beläggningsgrad personer/bil",2.2000000000000002,1.17,2.2000000000000002,1,1,1,null,null,"Beläggningsgrad personer/bil",1.75,1.75,1.18,1,1]
["Tidskostnad kr/ftim",{"$f":"B14*B16+B15","v":305.8},455.13,305.8,341.31,356.16,382.85,null,null,"Tidskostnad kr/ftim",{"$f":"K14*K16","v":199.5},{"$f":"L14*L16","v":166.25},{"$f":"M14*M16","v":459.02},{"$f":"N14*N16+N15","v":353.53},{"$f":"O14*O16+O15","v":379.75}]
[]
["Regionalt (värden enligt ASEK 8)","Arbetsresor","Tjänsteresor","Övriga Resor","Pby","Lbu","Lbs"]
["Tidsvärde kr/tim",112,389,76,341,341,365]
["Tidsvärde Gods kr/tim",0,0,0,0.31,15.16,17.850000000000001]
["Beläggningsgrad personer/bil",1.1000000000000001,1.2,1.9,1,1,1]
["Tidskostnad kr/ftim",{"$f":"B20*B22+B21","v":123.20000000000002},466.79999999999995,144.4,341.31,356.16,382.85]
[]
[]
["Sammanviktade Tidsvärden","Tidsvärde","Enhet",null,null,null,null,null,null,"Sammanviktade Tidsvärden","Tidsvärde","Enhet"]
["Tidsvärde per fordon personbil exkl. pby",{"$f":"Stödberäkningar!B21","v":176.99630776226559},"kr/ftim",null,null,null,null,null,null,"Tidsvärde per fordon personbil",{"$f":"K17*K6+M17*K7","v":225.452},"kr/ftim"]
["Tidsvärde per fordon personbil exkl. pby, KA*",{"$f":"Stödberäkningar!B22","v":182.85076258399997},"kr/ftim",null,null,null,null,null,null,"Tidsvärde per fordon personbil, KA*",{"$f":"L17*K6+M17*K7","v":195.52699999999999},"kr/ftim"]
["Tidsvärde per tungt fordon",{"$f":"F14*F16*B7*B11+F20*F22*(1-B7)*B11+G14*G16*B7*(1-B11)+G20*G22*(1-B7)*(1-B11)","v":351.63200000000001},"kr/ftim",null,null,null,null,null,null,"Tidsvärde per tungt fordon",{"$f":"(N14*N16*K8)+(O14*O16*(1-K8))","v":351.56},"kr/ftim"]
["Godstidsvärde tung trafik per fordon",{"$f":"F15*B7*B11+G15*B7*(1-B11)+F21*(1-B7)*B11+G21*(1-B7)*(1-B11)","v":16.351670000000002},"kr/ftim",null,null,null,null,null,null,"Godstidsvärde tung trafik per fordon",{"$f":"N15*K8+O15*(1-K8)","v":13.506799999999998},"kr/ftim"]
["Godstidsvärde Pby per fordon",{"$f":"E15","v":0.31},"kr/ftim",null,null,null,null,null,null,"*Känslighetsanalys enhetligt åktidsvärde för privata resor om 95kr per timme"]
[]
["Ärendeuppdelade sammanviktade tidsvärden",null,"Enhet"]
["Tidsvärde personbil",{"$f":"Stödberäkningar!B21","v":176.99630776226559},"kr/ftim"]
["Tidsvärde personbil, KA*",{"$f":"Stödberäkningar!B22","v":182.85076258399997},"kr/ftim"]
["Tidsvärde Pby",{"$f":"(E14*E16)*B6+E20*E22*(1-B6)","v":341},"kr/ftim"]
["Tidsvärde Lbu exkl. godstidsvärde",{"$f":"(F14*F16*B7+F20*F22*(1-B7))","v":341},"kr/ftim"]
["Tidsvärde Lbs exkl. godstidsvärde",{"$f":"G14*G16*B7+G20*G22*(1-B7)","v":365},"kr/ftim"]
["Godstidsvärde Pby",{"$f":"E15","v":0.31},"kr/ftim"]
["Godstidsvärde Lbu",{"$f":"F15","v":15.16},"kr/ftim"]
["Godstidsvärde Lbs",{"$f":"G15","v":17.850000000000001},"kr/ftim"]
["*Känslighetsanalys enhetligt åktidsvärde för privata resor om 95kr per timme"]

{"sheet":"Indata","index":2,"n_rows":57,"n_cols":5,"rows_kept":57,"cut":false,"hidden":false,"merged":[]}
["Färg för celler som kan ändras"]
["Färg för celler som EJ kan ändras"]
[]
[]
["Kalkylförutsättningar "]
["Förutsättningar"]
["Kalkylränta [%]",3.5000000000000003E-2]
["Prognosår",2045]
["Diskonteringsår",2028]
["Trafikstartår*",2030]
["Kalkylperiod [år]",60]
["Brytår 1",2045]
["Brytår 2**",2065]
["Årlig trafiktillväxt före brytår 1 [%]",0.01]
["Årlig trafiktillväxt efter brytår 1 [%]**",0.01]
["Årlig värdeökning [%] fram till brytår 2",1.15E-2]
["Värdeökningsår",2019]
[]
["*Trafikstartsår = Byggstartsår (år 2028) + byggtid"]
["**Efter brytår 2 antas trafiktillväxten vara 0 %"]
[]
[]
[]
[]
["INDATA  från modell"]
["Förutsättningar för beräkning "]
["Tidsvärden (Projektspecifika, EVA, med/utan KA*)","Projektspecifika","(Projektspecifika/EVA/KA*)",null,"Ska projektspecifika eller EVA:s tidsvärden användas?"]
["Separata restider för tung trafik","NEJ","(JA/NEJ)",null,"Har du genererat separarta restider för tung trafik? "]
["Bedömd tung trafikandel",0.1,"%",null,"Ange bedömd andel tung trafik (om svar på ovanstående är \"nej\")"]
["Tidsvärde Personbil exkl. pby",{"$f":"IF(B27=\"eva\",Tidsvärden!K27,IF(Indata!B27=\"projektspecifika\",Tidsvärden!B27,IF(B27=\"EVA, KA tidsvärde privatresor 95kr\",Tidsvärden!K28, IF(B27=\"projektspecifika, KA tidsvärde privatresor 95kr\",Tidsvärden!B28,\"Felaktig inmatning\"))))","v":176.99630776226559},"SEK"]
["Tidsväde Tung trafik",{"$f":"IF(B27=\"eva\",Tidsvärden!K29,IF(Indata!B27=\"projektspecifika\",Tidsvärden!B29,IF(B27=\"EVA, KA tidsvärde privatresor 95kr\",Tidsvärden!K29,IF(B27=\"projektspecifika, KA tidsvärde privatresor 95kr\",Tidsvärden!B29,\"Felaktig inmatning\")) ))","v":351.63200000000001},"SEK"]
["Antal Dagar för nyttor",230,"Dagar",null,"För hur många dagar per år antas restiderna vara representativa?"]
["*Känslighetsanalys enhetligt åktidsvärde för privata resor om 95kr per timme"]
[]
[]
["Relevanta Tidsperioder","JA/NEJ","Tidsperiodens omfattning [h]","Antal extraherade timmar från modell"]
["Förmiddag","JA",null,null,"        Ange: 1. För vilka tidsperioder finns simuleringar?"]
["Lågtrafik","JA",1,1,"                   2. Hur många timmar omfattar tidsperioden i \"verkligheten\"?"]
["Eftermiddag","JA",null,null,"                   3.  Hur många timmar resultat har extraherats från modell?"]
[null,null,null,null,"        Notera att det bara är lågtrafikperiodens resultat som kan räknas upp till en längre tidsperiod än som simulerats. \n"]
["Om enbart totala restider ",null,null,null,"        För för- och eftermiddag så måste hela perioden som restidskostnader ska beräknas för simuleras."]
["Restider Totalt","Antal timmar JA","Antal timmar UA","Diff antal timmar UA-JA"]
["Förmiddag",0,0,{"$f":"C43-B43","v":0},"         Ange: Totalt antal timmar från simulering i JA och UA för respektive tidsperiod"]
["Lågtrafik",0,0,{"$f":"C44-B44","v":0},"                    Total Trafik"]
["Eftermiddag",0,0,{"$f":"C45-B45","v":0}]
[]
["Om separata restider för tung trafik"]
["Restider Personbil","Antal timmar JA","Antal timmar UA","Diff antal timmar UA-JA"]
["Förmiddag",0,0,{"$f":"C49-B49","v":0},"         Ange; Totalt antal timmar från simulering i JA och UA för respektive tidsperiod"]
["Lågtrafik",0,0,{"$f":"C50-B50","v":0},"                   Personbilstrafik"]
["Eftermiddag",0,0,{"$f":"C51-B51","v":0}]
[]
[]
["Restider Tung Trafik","Antal timmar JA","Antal timmar UA","Diff antal timmar UA-JA"]
["Förmiddag",0,0,{"$f":"C55-B55","v":0}]
["Lågtrafik",0,0,{"$f":"C56-B56","v":0},"         Ange; Totalt antal timmar från simulering i JA och UA för respektive tidsperiod"]
["Eftermiddag",0,0,{"$f":"C57-B57","v":0},"                    Tung Trafik"]

{"sheet":"Utdata","index":3,"n_rows":22,"n_cols":5,"rows_kept":22,"cut":false,"hidden":false,"merged":[]}
["UTDATA"]
[]
["Restidsnytta persontrafik [MSEK] Nuvärde","Personbil","Personbil yrkestrafik","Tung Trafik","Summa"]
["Förmiddag",{"$f":"-IF(AND(Indata!$B$28=\"NEJ\",Indata!$B$27=\"EVA\"),Indata!D43*(1-Indata!$B$29)*Tidsvärden!$K$27*Stödberäkningar!$P$8*Stödberäkningar!O3,IF(AND(Indata!$B$28=\"NEJ\",Indata!$B$27=\"EVA, KA tidsvärde privatresor 95kr\"),Indata!D43*(1-Indata!$B$29)*Tidsvärden!$K$28*Stödberäkningar!$P$8*Stödberäkningar!O3,IF(AND(Indata!$B$28=\"NEJ\",Indata!$B$27=\"Projektspecifika\"),Indata!D43*(1-Indata!$B$29)*Tidsvärden!$B$27*Stödberäkningar!$P$8*Stödberäkningar!O3*(1-Tidsvärden!$B$10),IF(AND(Indata!$B$28=\"NEJ\",Indata!$B$27=\"Projektspecifika, KA tidsvärde privatresor 95kr\"),Indata!D43*(1-Indata!$B$29)*Tidsvärden!$B$28*Stödberäkningar!$P$8*Stödberäkningar!O3*(1-Tidsvärden!$B$10),IF(AND(Indata!$B$28=\"ja\",Indata!$B$27=\"EVA\"),Indata!D49*Tidsvärden!$K$27*Stödberäkningar!$P$8*Stödberäkningar!O3,IF(AND(Indata!$B$28=\"ja\",Indata!$B$27=\"EVA, KA tidsvärde privatresor 95kr\"),Indata!D49*Tidsvärden!$K$28*Stödberäkningar!$P$8*Stödberäkningar!O3,IF(AND(Indata!$B$28=\"ja\",Indata!$B$27=\"Projektspecifika\"),Indata!D49*Tidsvärden!$B$27*Stödberäkningar!$P$8*Stödberäkningar!O3*(1-Tidsvärden!$B$10),IF(AND(Indata!$B$28=\"ja\",Indata!$B$27=\"Projektspecifika, KA tidsvärde privatresor 95kr\"),Indata!D49*Tidsvärden!$B$28*Stödberäkningar!$P$8*Stödberäkningar!O3*(1-Tidsvärden!$B$10),\"FELAKTIG INDATA\"))))))))*Indata!$B$32/1000000","v":0},{"$f":"-IF(AND(Indata!$B$28=\"NEJ\",Indata!$B$27=\"EVA\"),Indata!D43*(1-Indata!$B$29)*Tidsvärden!$K$27*Stödberäkningar!$P$8*Stödberäkningar!O3*0,IF(AND(Indata!$B$28=\"NEJ\",Indata!$B$27=\"EVA, KA tidsvärde privatresor 95kr\"),Indata!D43*(1-Indata!$B$29)*Tidsvärden!$K$28*Stödberäkningar!$P$8*Stödberäkningar!O3*0,IF(AND(Indata!$B$28=\"NEJ\",Indata!$B$27=\"Projektspecifika\"),Indata!D43*(1-Indata!$B$29)*Tidsvärden!$B$36*Stödberäkningar!$P$9*Stödberäkningar!O3*Tidsvärden!$B$10,IF(AND(Indata!$B$28=\"NEJ\",Indata!$B$27=\"Projektspecifika, KA tidsvärde privatresor 95kr\"),Indata!D43*(1-Indata!$B$29)*Tidsvärden!$B$36*Stödberäkningar!$P$9*Stödberäkningar!O3*Tidsvärden!$B$10,IF(AND(Indata!$B$28=\"ja\",Indata!$B$27=\"EVA\"),Indata!D49*Tidsvärden!$K$27*Stödberäkningar!$P$8*Stödberäkningar!O3*0,IF(AND(Indata!$B$28=\"ja\",Indata!$B$27=\"EVA, KA tidsvärde privatresor 95kr\"),Indata!D49*Tidsvärden!$K$28*Stödberäkningar!$P$8*Stödberäkningar!O3*0,IF(AND(Indata!$B$28=\"ja\",Indata!$B$27=\"Projektspecifika\"),Indata!D49*Tidsvärden!$B$36*Stödberäkningar!$P$9*Stödberäkningar!O3*Tidsvärden!$B$10,IF(AND(Indata!$B$28=\"ja\",Indata!$B$27=\"Projektspecifika, KA tidsvärde privatresor 95kr\"),Indata!D49*Tidsvärden!$B$36*Stödberäkningar!$P$9*Stödberäkningar!O3*Tidsvärden!$B$10,\"FELAKTIG INDATA\"))))))))*Indata!$B$32/1000000","v":0},{"$f":"-IF(AND(Indata!$B$28=\"NEJ\",Indata!$B$27=\"EVA\"),Indata!D43*(Indata!$B$29)*Tidsvärden!$K$29*Stödberäkningar!$P$9*Stödberäkningar!O3,IF(AND(Indata!$B$28=\"NEJ\",Indata!$B$27=\"EVA, KA tidsvärde privatresor 95kr\"),Indata!D43*(Indata!$B$29)*Tidsvärden!$K$29*Stödberäkningar!$P$9*Stödberäkningar!O3,IF(AND(Indata!$B$28=\"NEJ\",Indata!$B$27=\"Projektspecifika\"),Indata!D43*(Indata!$B$29)*Tidsvärden!$B$29*Stödberäkningar!$P$9*Stödberäkningar!O3,IF(AND(Indata!$B$28=\"NEJ\",Indata!$B$27=\"Projektspecifika, KA tidsvärde privatresor 95kr\"),Indata!D43*(Indata!$B$29)*Tidsvärden!$B$29*Stödberäkningar!$P$9*Stödberäkningar!O3,IF(AND(Indata!$B$28=\"ja\",Indata!$B$27=\"EVA\"),Indata!D55*Tidsvärden!$K$29*Stödberäkningar!$P$9*Stödberäkningar!O3,IF(AND(Indata!$B$28=\"ja\",Indata!$B$27=\"EVA, KA tidsvärde privatresor 95kr\"),Indata!D55*Tidsvärden!$K$29*Stödberäkningar!$P$9*Stödberäkningar!O3,IF(AND(Indata!$B$28=\"ja\",Indata!$B$27=\"Projektspecifika\"),Indata!D55*Tidsvärden!$B$29*Stödberäkningar!$P$9*Stödberäkningar!O3,IF(AND(Indata!$B$28=\"ja\",Indata!$B$27=\"Projektspecifika, KA tidsvärde privatresor 95kr\"),Indata!D55*Tidsvärden!$B$29*Stödberäkningar!$P$9*Stödberäkningar!O3,\"FELAKTIG INDATA\"))))))))*Indata!$B$32/1000000","v":0},{"$f":"SUM(B4:D4)","v":0}]
["Lågtrafik",{"$f":"-IF(AND(Indata!$B$28=\"NEJ\",Indata!$B$27=\"EVA\"),Indata!D44*(1-Indata!$B$29)*Tidsvärden!$K$27*Stödberäkningar!$P$8*Stödberäkningar!O4,IF(AND(Indata!$B$28=\"NEJ\",Indata!$B$27=\"EVA, KA tidsvärde privatresor 95kr\"),Indata!D44*(1-Indata!$B$29)*Tidsvärden!$K$28*Stödberäkningar!$P$8*Stödberäkningar!O4,IF(AND(Indata!$B$28=\"NEJ\",Indata!$B$27=\"Projektspecifika\"),Indata!D44*(1-Indata!$B$29)*Tidsvärden!$B$27*Stödberäkningar!$P$8*Stödberäkningar!O4*(1-Tidsvärden!$B$10),IF(AND(Indata!$B$28=\"NEJ\",Indata!$B$27=\"Projektspecifika, KA tidsvärde privatresor 95kr\"),Indata!D44*(1-Indata!$B$29)*Tidsvärden!$B$28*Stödberäkningar!$P$8*Stödberäkningar!O4*(1-Tidsvärden!$B$10),IF(AND(Indata!$B$28=\"ja\",Indata!$B$27=\"EVA\"),Indata!D50*Tidsvärden!$K$27*Stödberäkningar!$P$8*Stödberäkningar!O4,IF(AND(Indata!$B$28=\"ja\",Indata!$B$27=\"EVA, KA tidsvärde privatresor 95kr\"),Indata!D50*Tidsvärden!$K$28*Stödberäkningar!$P$8*Stödberäkningar!O4,IF(AND(Indata!$B$28=\"ja\",Indata!$B$27=\"Projektspecifika\"),Indata!D50*Tidsvärden!$B$27*Stödberäkningar!$P$8*Stödberäkningar!O4*(1-Tidsvärden!$B$10),IF(AND(Indata!$B$28=\"ja\",Indata!$B$27=\"Projektspecifika, KA tidsvärde privatresor 95kr\"),Indata!D50*Tidsvärden!$B$28*Stödberäkningar!$P$8*Stödberäkningar!O4*(1-Tidsvärden!$B$10),\"FELAKTIG INDATA\"))))))))*Indata!$B$32/1000000","v":0},{"$f":"-IF(AND(Indata!$B$28=\"NEJ\",Indata!$B$27=\"EVA\"),Indata!D44*(1-Indata!$B$29)*Tidsvärden!$K$27*Stödberäkningar!$P$8*Stödberäkningar!O4*0,IF(AND(Indata!$B$28=\"NEJ\",Indata!$B$27=\"EVA, KA tidsvärde privatresor 95kr\"),Indata!D44*(1-Indata!$B$29)*Tidsvärden!$K$28*Stödberäkningar!$P$8*Stödberäkningar!O4*0,IF(AND(Indata!$B$28=\"NEJ\",Indata!$B$27=\"Projektspecifika\"),Indata!D44*(1-Indata!$B$29)*Tidsvärden!$B$36*Stödberäkningar!$P$9*Stödberäkningar!O4*Tidsvärden!$B$10,IF(AND(Indata!$B$28=\"NEJ\",Indata!$B$27=\"Projektspecifika, KA tidsvärde privatresor 95kr\"),Indata!D44*(1-Indata!$B$29)*Tidsvärden!$B$36*Stödberäkningar!$P$9*Stödberäkningar!O4*Tidsvärden!$B$10,IF(AND(Indata!$B$28=\"ja\",Indata!$B$27=\"EVA\"),Indata!D50*Tidsvärden!$K$27*Stödberäkningar!$P$8*Stödberäkningar!O4*0,IF(AND(Indata!$B$28=\"ja\",Indata!$B$27=\"EVA, KA tidsvärde privatresor 95kr\"),Indata!D50*Tidsvärden!$K$28*Stödberäkningar!$P$8*Stödberäkningar!O4*0,IF(AND(Indata!$B$28=\"ja\",Indata!$B$27=\"Projektspecifika\"),Indata!D50*Tidsvärden!$B$36*Stödberäkningar!$P$9*Stödberäkningar!O4*Tidsvärden!$B$10,IF(AND(Indata!$B$28=\"ja\",Indata!$B$27=\"Projektspecifika, KA tidsvärde privatresor 95kr\"),Indata!D50*Tidsvärden!$B$36*Stödberäkningar!$P$9*Stödberäkningar!O4*Tidsvärden!$B$10,\"FELAKTIG INDATA\"))))))))*Indata!$B$32/1000000","v":0},{"$f":"-IF(AND(Indata!$B$28=\"NEJ\",Indata!$B$27=\"EVA\"),Indata!D44*(Indata!$B$29)*Tidsvärden!$K$29*Stödberäkningar!$P$9*Stödberäkningar!O4,IF(AND(Indata!$B$28=\"NEJ\",Indata!$B$27=\"EVA, KA tidsvärde privatresor 95kr\"),Indata!D44*(Indata!$B$29)*Tidsvärden!$K$29*Stödberäkningar!$P$9*Stödberäkningar!O4,IF(AND(Indata!$B$28=\"NEJ\",Indata!$B$27=\"Projektspecifika\"),Indata!D44*(Indata!$B$29)*Tidsvärden!$B$29*Stödberäkningar!$P$9*Stödberäkningar!O4,IF(AND(Indata!$B$28=\"NEJ\",Indata!$B$27=\"Projektspecifika, KA tidsvärde privatresor 95kr\"),Indata!D44*(Indata!$B$29)*Tidsvärden!$B$29*Stödberäkningar!$P$9*Stödberäkningar!O4,IF(AND(Indata!$B$28=\"ja\",Indata!$B$27=\"EVA\"),Indata!D56*Tidsvärden!$K$29*Stödberäkningar!$P$9*Stödberäkningar!O4,IF(AND(Indata!$B$28=\"ja\",Indata!$B$27=\"EVA, KA tidsvärde privatresor 95kr\"),Indata!D56*Tidsvärden!$K$29*Stödberäkningar!$P$9*Stödberäkningar!O4,IF(AND(Indata!$B$28=\"ja\",Indata!$B$27=\"Projektspecifika\"),Indata!D56*Tidsvärden!$B$29*Stödberäkningar!$P$9*Stödberäkningar!O4,IF(AND(Indata!$B$28=\"ja\",Indata!$B$27=\"Projektspecifika, KA tidsvärde privatresor 95kr\"),Indata!D56*Tidsvärden!$B$29*Stödberäkningar!$P$9*Stödberäkningar!O4,\"FELAKTIG INDATA\"))))))))*Indata!$B$32/1000000","v":0},{"$f":"SUM(B5:D5)","v":0}]
["Eftermiddag",{"$f":"-IF(AND(Indata!$B$28=\"NEJ\",Indata!$B$27=\"EVA\"),Indata!D45*(1-Indata!$B$29)*Tidsvärden!$K$27*Stödberäkningar!$P$8*Stödberäkningar!O5,IF(AND(Indata!$B$28=\"NEJ\",Indata!$B$27=\"EVA, KA tidsvärde privatresor 95kr\"),Indata!D45*(1-Indata!$B$29)*Tidsvärden!$K$28*Stödberäkningar!$P$8*Stödberäkningar!O5,IF(AND(Indata!$B$28=\"NEJ\",Indata!$B$27=\"Projektspecifika\"),Indata!D45*(1-Indata!$B$29)*Tidsvärden!$B$27*Stödberäkningar!$P$8*Stödberäkningar!O5*(1-Tidsvärden!$B$10),IF(AND(Indata!$B$28=\"NEJ\",Indata!$B$27=\"Projektspecifika, KA tidsvärde privatresor 95kr\"),Indata!D45*(1-Indata!$B$29)*Tidsvärden!$B$28*Stödberäkningar!$P$8*Stödberäkningar!O5*(1-Tidsvärden!$B$10),IF(AND(Indata!$B$28=\"ja\",Indata!$B$27=\"EVA\"),Indata!D51*Tidsvärden!$K$27*Stödberäkningar!$P$8*Stödberäkningar!O5,IF(AND(Indata!$B$28=\"ja\",Indata!$B$27=\"EVA, KA tidsvärde privatresor 95kr\"),Indata!D51*Tidsvärden!$K$28*Stödberäkningar!$P$8*Stödberäkningar!O5,IF(AND(Indata!$B$28=\"ja\",Indata!$B$27=\"Projektspecifika\"),Indata!D51*Tidsvärden!$B$27*Stödberäkningar!$P$8*Stödberäkningar!O5*(1-Tidsvärden!$B$10),IF(AND(Indata!$B$28=\"ja\",Indata!$B$27=\"Projektspecifika, KA tidsvärde privatresor 95kr\"),Indata!D51*Tidsvärden!$B$28*Stödberäkningar!$P$8*Stödberäkningar!O5*(1-Tidsvärden!$B$10),\"FELAKTIG INDATA\"))))))))*Indata!$B$32/1000000","v":0},{"$f":"-IF(AND(Indata!$B$28=\"NEJ\",Indata!$B$27=\"EVA\"),Indata!D45*(1-Indata!$B$29)*Tidsvärden!$K$27*Stödberäkningar!$P$8*Stödberäkningar!O5*0,IF(AND(Indata!$B$28=\"NEJ\",Indata!$B$27=\"EVA, KA tidsvärde privatresor 95kr\"),Indata!D45*(1-Indata!$B$29)*Tidsvärden!$K$28*Stödberäkningar!$P$8*Stödberäkningar!O5*0,IF(AND(Indata!$B$28=\"NEJ\",Indata!$B$27=\"Projektspecifika\"),Indata!D45*(1-Indata!$B$29)*Tidsvärden!$B$36*Stödberäkningar!$P$9*Stödberäkningar!O5*Tidsvärden!$B$10,IF(AND(Indata!$B$28=\"NEJ\",Indata!$B$27=\"Projektspecifika, KA tidsvärde privatresor 95kr\"),Indata!D45*(1-Indata!$B$29)*Tidsvärden!$B$36*Stödberäkningar!$P$9*Stödberäkningar!O5*Tidsvärden!$B$10,IF(AND(Indata!$B$28=\"ja\",Indata!$B$27=\"EVA\"),Indata!D51*Tidsvärden!$K$27*Stödberäkningar!$P$8*Stödberäkningar!O5*0,IF(AND(Indata!$B$28=\"ja\",Indata!$B$27=\"EVA, KA tidsvärde privatresor 95kr\"),Indata!D51*Tidsvärden!$K$28*Stödberäkningar!$P$8*Stödberäkningar!O5*0,IF(AND(Indata!$B$28=\"ja\",Indata!$B$27=\"Projektspecifika\"),Indata!D51*Tidsvärden!$B$36*Stödberäkningar!$P$9*Stödberäkningar!O5*Tidsvärden!$B$10,IF(AND(Indata!$B$28=\"ja\",Indata!$B$27=\"Projektspecifika, KA tidsvärde privatresor 95kr\"),Indata!D51*Tidsvärden!$B$36*Stödberäkningar!$P$9*Stödberäkningar!O5*Tidsvärden!$B$10,\"FELAKTIG INDATA\"))))))))*Indata!$B$32/1000000","v":0},{"$f":"-IF(AND(Indata!$B$28=\"NEJ\",Indata!$B$27=\"EVA\"),Indata!D45*(Indata!$B$29)*Tidsvärden!$K$29*Stödberäkningar!$P$9*Stödberäkningar!O5,IF(AND(Indata!$B$28=\"NEJ\",Indata!$B$27=\"EVA, KA tidsvärde privatresor 95kr\"),Indata!D45*(Indata!$B$29)*Tidsvärden!$K$29*Stödberäkningar!$P$9*Stödberäkningar!O5,IF(AND(Indata!$B$28=\"NEJ\",Indata!$B$27=\"Projektspecifika\"),Indata!D45*(Indata!$B$29)*Tidsvärden!$B$29*Stödberäkningar!$P$9*Stödberäkningar!O5,IF(AND(Indata!$B$28=\"NEJ\",Indata!$B$27=\"Projektspecifika, KA tidsvärde privatresor 95kr\"),Indata!D45*(Indata!$B$29)*Tidsvärden!$B$29*Stödberäkningar!$P$9*Stödberäkningar!O5,IF(AND(Indata!$B$28=\"ja\",Indata!$B$27=\"EVA\"),Indata!D57*Tidsvärden!$K$29*Stödberäkningar!$P$9*Stödberäkningar!O5,IF(AND(Indata!$B$28=\"ja\",Indata!$B$27=\"EVA, KA tidsvärde privatresor 95kr\"),Indata!D57*Tidsvärden!$K$29*Stödberäkningar!$P$9*Stödberäkningar!O5,IF(AND(Indata!$B$28=\"ja\",Indata!$B$27=\"Projektspecifika\"),Indata!D57*Tidsvärden!$B$29*Stödberäkningar!$P$9*Stödberäkningar!O5,IF(AND(Indata!$B$28=\"ja\",Indata!$B$27=\"Projektspecifika, KA tidsvärde privatresor 95kr\"),Indata!D57*Tidsvärden!$B$29*Stödberäkningar!$P$9*Stödberäkningar!O5,\"FELAKTIG INDATA\"))))))))*Indata!$B$32/1000000","v":0},{"$f":"SUM(B6:D6)","v":0}]
["Summa",{"$f":"SUM(B4:B6)","v":0},{"$f":"SUM(C4:C6)","v":0},{"$f":"SUM(D4:D6)","v":0},{"$f":"SUM(E4:E6)","v":0}]
[]
["Godskostnad [MSEK] Nuvärde","Personbil","Personbil yrkestrafik","Tung Trafik","Summa"]
["Förmiddag",0,{"$f":"-IF(AND(Indata!$B$28=\"NEJ\",Indata!$B$27=\"EVA\"),Indata!D43*(1-Indata!$B$29)*0*Stödberäkningar!$P$9*Stödberäkningar!O3,IF(AND(Indata!$B$28=\"NEJ\",Indata!$B$27=\"EVA, KA tidsvärde privatresor 95kr\"),Indata!D43*(1-Indata!$B$29)*0*Stödberäkningar!$P$9*Stödberäkningar!O3,IF(AND(Indata!$B$28=\"NEJ\",Indata!$B$27=\"Projektspecifika\"),Indata!D43*(1-Indata!$B$29)*Tidsvärden!$B$31*Tidsvärden!$B$10*Stödberäkningar!$P$9*Stödberäkningar!O3,IF(AND(Indata!$B$28=\"NEJ\",Indata!$B$27=\"Projektspecifika, KA tidsvärde privatresor 95kr\"),Indata!D43*(1-Indata!$B$29)*Tidsvärden!$B$31*Tidsvärden!$B$10*Stödberäkningar!$P$9*Stödberäkningar!O3,IF(AND(Indata!$B$28=\"ja\",Indata!$B$27=\"EVA\"),Indata!D49*0*Stödberäkningar!$P$9*Stödberäkningar!O3,IF(AND(Indata!$B$28=\"ja\",Indata!$B$27=\"EVA, KA tidsvärde privatresor 95kr\"),Indata!D49*0*Stödberäkningar!$P$9*Stödberäkningar!O3,IF(AND(Indata!$B$28=\"ja\",Indata!$B$27=\"Projektspecifika\"),Indata!D49*Tidsvärden!$B$31*Tidsvärden!$B$10*Stödberäkningar!$P$9*Stödberäkningar!O3,IF(AND(Indata!$B$28=\"ja\",Indata!$B$27=\"Projektspecifika, KA tidsvärde privatresor 95kr\"),Indata!D49*Tidsvärden!$B$31*Tidsvärden!$B$10*Stödberäkningar!$P$9*Stödberäkningar!O3,\"FELAKTIG INDATA\"))))))))*Indata!$B$32/1000000","v":0},{"$f":"-IF(AND(Indata!$B$28=\"NEJ\",Indata!$B$27=\"EVA\"),Indata!D43*(Indata!$B$29)*Tidsvärden!$K$30*Stödberäkningar!$P$9*Stödberäkningar!O3,IF(AND(Indata!$B$28=\"NEJ\",Indata!$B$27=\"EVA, KA tidsvärde privatresor 95kr\"),Indata!D43*(Indata!$B$29)*Tidsvärden!$K$30*Stödberäkningar!$P$9*Stödberäkningar!O3,IF(AND(Indata!$B$28=\"NEJ\",Indata!$B$27=\"Projektspecifika\"),Indata!D43*(Indata!$B$29)*Tidsvärden!$B$30*Stödberäkningar!$P$9*Stödberäkningar!O3,IF(AND(Indata!$B$28=\"NEJ\",Indata!$B$27=\"Projektspecifika, KA tidsvärde privatresor 95kr\"),Indata!D43*(Indata!$B$29)*Tidsvärden!$B$30*Stödberäkningar!$P$9*Stödberäkningar!O3,IF(AND(Indata!$B$28=\"ja\",Indata!$B$27=\"EVA\"),Indata!D55*Tidsvärden!$K$30*Stödberäkningar!$P$9*Stödberäkningar!O3,IF(AND(Indata!$B$28=\"ja\",Indata!$B$27=\"EVA, KA tidsvärde privatresor 95kr\"),Indata!D55*Tidsvärden!$K$30*Stödberäkningar!$P$9*Stödberäkningar!O3,IF(AND(Indata!$B$28=\"ja\",Indata!$B$27=\"Projektspecifika\"),Indata!D55*Tidsvärden!$B$30*Stödberäkningar!$P$9*Stödberäkningar!O3,IF(AND(Indata!$B$28=\"ja\",Indata!$B$27=\"Projektspecifika, KA tidsvärde privatresor 95kr\"),Indata!D55*Tidsvärden!$B$30*Stödberäkningar!$P$9*Stödberäkningar!O3,\"FELAKTIG INDATA\"))))))))*Indata!$B$32/1000000","v":0},{"$f":"SUM(C10:D10)","v":0}]
["Lågtrafik",0,{"$f":"-IF(AND(Indata!$B$28=\"NEJ\",Indata!$B$27=\"EVA\"),Indata!D44*(1-Indata!$B$29)*0*Stödberäkningar!$P$9*Stödberäkningar!O4,IF(AND(Indata!$B$28=\"NEJ\",Indata!$B$27=\"EVA, KA tidsvärde privatresor 95kr\"),Indata!D44*(1-Indata!$B$29)*0*Stödberäkningar!$P$9*Stödberäkningar!O4,IF(AND(Indata!$B$28=\"NEJ\",Indata!$B$27=\"Projektspecifika\"),Indata!D44*(1-Indata!$B$29)*Tidsvärden!$B$31*Tidsvärden!$B$10*Stödberäkningar!$P$9*Stödberäkningar!O4,IF(AND(Indata!$B$28=\"NEJ\",Indata!$B$27=\"Projektspecifika, KA tidsvärde privatresor 95kr\"),Indata!D44*(1-Indata!$B$29)*Tidsvärden!$B$31*Tidsvärden!$B$10*Stödberäkningar!$P$9*Stödberäkningar!O4,IF(AND(Indata!$B$28=\"ja\",Indata!$B$27=\"EVA\"),Indata!D50*0*Stödberäkningar!$P$9*Stödberäkningar!O4,IF(AND(Indata!$B$28=\"ja\",Indata!$B$27=\"EVA, KA tidsvärde privatresor 95kr\"),Indata!D50*0*Stödberäkningar!$P$9*Stödberäkningar!O4,IF(AND(Indata!$B$28=\"ja\",Indata!$B$27=\"Projektspecifika\"),Indata!D50*Tidsvärden!$B$31*Tidsvärden!$B$10*Stödberäkningar!$P$9*Stödberäkningar!O4,IF(AND(Indata!$B$28=\"ja\",Indata!$B$27=\"Projektspecifika, KA tidsvärde privatresor 95kr\"),Indata!D50*Tidsvärden!$B$31*Tidsvärden!$B$10*Stödberäkningar!$P$9*Stödberäkningar!O4,\"FELAKTIG INDATA\"))))))))*Indata!$B$32/1000000","v":0},{"$f":"-IF(AND(Indata!$B$28=\"NEJ\",Indata!$B$27=\"EVA\"),Indata!D44*(Indata!$B$29)*Tidsvärden!$K$30*Stödberäkningar!$P$9*Stödberäkningar!O4,IF(AND(Indata!$B$28=\"NEJ\",Indata!$B$27=\"EVA, KA tidsvärde privatresor 95kr\"),Indata!D44*(Indata!$B$29)*Tidsvärden!$K$30*Stödberäkningar!$P$9*Stödberäkningar!O4,IF(AND(Indata!$B$28=\"NEJ\",Indata!$B$27=\"Projektspecifika\"),Indata!D44*(Indata!$B$29)*Tidsvärden!$B$30*Stödberäkningar!$P$9*Stödberäkningar!O4,IF(AND(Indata!$B$28=\"NEJ\",Indata!$B$27=\"Projektspecifika, KA tidsvärde privatresor 95kr\"),Indata!D44*(Indata!$B$29)*Tidsvärden!$B$30*Stödberäkningar!$P$9*Stödberäkningar!O4,IF(AND(Indata!$B$28=\"ja\",Indata!$B$27=\"EVA\"),Indata!D56*Tidsvärden!$K$30*Stödberäkningar!$P$9*Stödberäkningar!O4,IF(AND(Indata!$B$28=\"ja\",Indata!$B$27=\"EVA, KA tidsvärde privatresor 95kr\"),Indata!D56*Tidsvärden!$K$30*Stödberäkningar!$P$9*Stödberäkningar!O4,IF(AND(Indata!$B$28=\"ja\",Indata!$B$27=\"Projektspecifika\"),Indata!D56*Tidsvärden!$B$30*Stödberäkningar!$P$9*Stödberäkningar!O4,IF(AND(Indata!$B$28=\"ja\",Indata!$B$27=\"Projektspecifika, KA tidsvärde privatresor 95kr\"),Indata!D56*Tidsvärden!$B$30*Stödberäkningar!$P$9*Stödberäkningar!O4,\"FELAKTIG INDATA\"))))))))*Indata!$B$32/1000000","v":0},{"$f":"SUM(C11:D11)","v":0}]
["Eftermiddag",0,{"$f":"-IF(AND(Indata!$B$28=\"NEJ\",Indata!$B$27=\"EVA\"),Indata!D45*(1-Indata!$B$29)*0*Stödberäkningar!$P$9*Stödberäkningar!O5,IF(AND(Indata!$B$28=\"NEJ\",Indata!$B$27=\"EVA, KA tidsvärde privatresor 95kr\"),Indata!D45*(1-Indata!$B$29)*0*Stödberäkningar!$P$9*Stödberäkningar!O5,IF(AND(Indata!$B$28=\"NEJ\",Indata!$B$27=\"Projektspecifika\"),Indata!D45*(1-Indata!$B$29)*Tidsvärden!$B$31*Tidsvärden!$B$10*Stödberäkningar!$P$9*Stödberäkningar!O5,IF(AND(Indata!$B$28=\"NEJ\",Indata!$B$27=\"Projektspecifika, KA tidsvärde privatresor 95kr\"),Indata!D45*(1-Indata!$B$29)*Tidsvärden!$B$31*Tidsvärden!$B$10*Stödberäkningar!$P$9*Stödberäkningar!O5,IF(AND(Indata!$B$28=\"ja\",Indata!$B$27=\"EVA\"),Indata!D51*0*Stödberäkningar!$P$9*Stödberäkningar!O5,IF(AND(Indata!$B$28=\"ja\",Indata!$B$27=\"EVA, KA tidsvärde privatresor 95kr\"),Indata!D51*0*Stödberäkningar!$P$9*Stödberäkningar!O5,IF(AND(Indata!$B$28=\"ja\",Indata!$B$27=\"Projektspecifika\"),Indata!D51*Tidsvärden!$B$31*Tidsvärden!$B$10*Stödberäkningar!$P$9*Stödberäkningar!O5,IF(AND(Indata!$B$28=\"ja\",Indata!$B$27=\"Projektspecifika, KA tidsvärde privatresor 95kr\"),Indata!D51*Tidsvärden!$B$31*Tidsvärden!$B$10*Stödberäkningar!$P$9*Stödberäkningar!O5,\"FELAKTIG INDATA\"))))))))*Indata!$B$32/1000000","v":0},{"$f":"-IF(AND(Indata!$B$28=\"NEJ\",Indata!$B$27=\"EVA\"),Indata!D45*(Indata!$B$29)*Tidsvärden!$K$30*Stödberäkningar!$P$9*Stödberäkningar!O5,IF(AND(Indata!$B$28=\"NEJ\",Indata!$B$27=\"EVA, KA tidsvärde privatresor 95kr\"),Indata!D45*(Indata!$B$29)*Tidsvärden!$K$30*Stödberäkningar!$P$9*Stödberäkningar!O5,IF(AND(Indata!$B$28=\"NEJ\",Indata!$B$27=\"Projektspecifika\"),Indata!D45*(Indata!$B$29)*Tidsvärden!$B$30*Stödberäkningar!$P$9*Stödberäkningar!O5,IF(AND(Indata!$B$28=\"NEJ\",Indata!$B$27=\"Projektspecifika, KA tidsvärde privatresor 95kr\"),Indata!D45*(Indata!$B$29)*Tidsvärden!$B$30*Stödberäkningar!$P$9*Stödberäkningar!O5,IF(AND(Indata!$B$28=\"ja\",Indata!$B$27=\"EVA\"),Indata!D57*Tidsvärden!$K$30*Stödberäkningar!$P$9*Stödberäkningar!O5,IF(AND(Indata!$B$28=\"ja\",Indata!$B$27=\"EVA, KA tidsvärde privatresor 95kr\"),Indata!D57*Tidsvärden!$K$30*Stödberäkningar!$P$9*Stödberäkningar!O5,IF(AND(Indata!$B$28=\"ja\",Indata!$B$27=\"Projektspecifika\"),Indata!D57*Tidsvärden!$B$30*Stödberäkningar!$P$9*Stödberäkningar!O5,IF(AND(Indata!$B$28=\"ja\",Indata!$B$27=\"Projektspecifika, KA tidsvärde privatresor 95kr\"),Indata!D57*Tidsvärden!$B$30*Stödberäkningar!$P$9*Stödberäkningar!O5,\"FELAKTIG INDATA\"))))))))*Indata!$B$32/1000000","v":0},{"$f":"SUM(C12:D12)","v":0}]
["Summa",{"$f":"SUM(B10:B12)","v":0},{"$f":"SUM(C10:C12)","v":0},{"$f":"SUM(D10:D12)","v":0},{"$f":"SUM(E10:E12)","v":0}]
[]
["Summa restidsnyttor [MSEK] Nuvärde","Personbil","Personbil yrkestrafik","Tung Trafik","Summa"]
["Förmiddag",{"$f":"B4+B10","v":0},{"$f":"C4+C10","v":0},{"$f":"D4+D10","v":0},{"$f":"SUM(B16:D16)","v":0}]
["Lågtrafik",{"$f":"B5+B11","v":0},{"$f":"C5+C11","v":0},{"$f":"D5+D11","v":0},{"$f":"SUM(B17:D17)","v":0}]
["Eftermiddag",{"$f":"B6+B12","v":0},0,{"$f":"D6+D12","v":0},{"$f":"SUM(B18:D18)","v":0}]
["Summa",{"$f":"SUM(B16:B18)","v":0},{"$f":"SUM(C16:C18)","v":0},{"$f":"SUM(D16:D18)","v":0},{"$f":"SUM(E16:E18)","v":0}]
[]
[]
["Total nytta",{"$f":"E19","v":0},"MSEK"]

{"sheet":"Stödberäkningar","index":4,"n_rows":108,"n_cols":22,"rows_kept":108,"cut":false,"hidden":true,"merged":[]}
["Tidsvärden",null,null,null,null,"Nuvärdefaktor personbilstrafik",null,null,null,"Investering",null,null,null,null,null,null,null,null,null,"Nuvärdefaktor Yrkestrafik"]
["Delberäkning",null,null,null,null,"År efter trafikstart","Nytta, ackumulerad \n","Nytta, diskonterad",null,"År efter byggstart","Investeringskostnad,\ndiskonterad, del utan skattefaktor","Investeringskostnad,\ndiskonterad del med skattefaktor",null,null,"Viktfaktor",null,null,null,null,"År efter trafikstart","Nytta, ackumulerad \n","Nytta, diskonterad"]
["Privatresor","Reg","Nat",null,null,0,{"$f":"H3","v":0.91185010374063791},{"$f":"IF((Indata!B$10+F3)<Indata!B$13,IF((Indata!B$10+F3)<Indata!B$12,(1+Indata!B$14)^(F3-Indata!B$8+Indata!B$10)*(1+Indata!B$16)^(F3+Indata!B$10-Indata!B$17)/(1+Indata!B$7)^(F3+Indata!B$10-Indata!B$9),(1+Indata!B$14)^((Indata!B$12-Indata!B$10)-Indata!B$8+Indata!B$10)*(1+Indata!B$15)^(F3+Indata!B$10-Indata!B$12)*(1+Indata!B$16)^(F3+Indata!B$10-Indata!B$17)/(1+Indata!B$7)^(F3+Indata!B$10-Indata!B$9)),(1+Indata!B$14)^((Indata!B$12-Indata!B$10)-Indata!B$8+Indata!B$10)*(1+Indata!B$15)^((Indata!B$13-Indata!B$10)+Indata!B$10-Indata!B$12)*(1+Stödberäkningar!G$106)^(F3+Indata!B$10-Indata!B$13)*(1+Indata!B$16)^(Indata!B$13-Indata!B$17)/(1+Indata!B$7)^(F3+Indata!B$10-Indata!B$9))","v":0.91185010374063791},null,0,{"$f":"(Indata!F10)/(1+Indata!B$7)^(Stödberäkningar!F3+Indata!E$7-Indata!B$9)","v":0},{"$f":"(Indata!E$8*Indata!E10)/(1+Indata!B$7)^(Stödberäkningar!F3+Indata!E$7-Indata!B$9)","v":0},null,null,{"$f":"IF(Indata!B37=\"ja\",1,0)","v":1},null,null,null,null,0,{"$f":"V3","v":0.8040789515072736},{"$f":"IF((Indata!B$10+F3)<Indata!B$13,IF((Indata!B$10+F3)<Indata!B$12,(1+Indata!B$14)^(F3-Indata!B$8+Indata!B$10)*(1)^(F3+Indata!B$10-Indata!B$17)/(1+Indata!B$7)^(F3+Indata!B$10-Indata!B$9),(1+Indata!B$14)^((Indata!B$12-Indata!B$10)-Indata!B$8+Indata!B$10)*(1+Indata!B$15)^(F3+Indata!B$10-Indata!B$12)*(1)^(F3+Indata!B$10-Indata!B$17)/(1+Indata!B$7)^(F3+Indata!B$10-Indata!B$9)),(1+Indata!B$14)^((Indata!B$12-Indata!B$10)-Indata!B$8+Indata!B$10)*(1+Indata!B$15)^((Indata!B$13-Indata!B$10)+Indata!B$10-Indata!B$12)*(1+Stödberäkningar!G$106)^(F3+Indata!B$10-Indata!B$13)*(1)^(F3+Indata!B$10-Indata!B$17)/(1+Indata!B$7)^(F3+Indata!B$10-Indata!B$9))","v":0.8040789515072736}]
["Tid kr/tim",{"$f":"Tidsvärden!B20*Tidsvärden!B8+Tidsvärden!D20*(1-Tidsvärden!B8)","v":88.168000000000006},{"$f":"Tidsvärden!B14","v":139},null,null,1,{"$f":"G3+H4","v":1.8119078271541564},{"$f":"IF((Indata!B$10+F4)<Indata!B$13,IF((Indata!B$10+F4)<Indata!B$12,(1+Indata!B$14)^(F4-Indata!B$8+Indata!B$10)*(1+Indata!B$16)^(F4+Indata!B$10-Indata!B$17)/(1+Indata!B$7)^(F4+Indata!B$10-Indata!B$9),(1+Indata!B$14)^((Indata!B$12-Indata!B$10)-Indata!B$8+Indata!B$10)*(1+Indata!B$15)^(F4+Indata!B$10-Indata!B$12)*(1+Indata!B$16)^(F4+Indata!B$10-Indata!B$17)/(1+Indata!B$7)^(F4+Indata!B$10-Indata!B$9)),(1+Indata!B$14)^((Indata!B$12-Indata!B$10)-Indata!B$8+Indata!B$10)*(1+Indata!B$15)^((Indata!B$13-Indata!B$10)+Indata!B$10-Indata!B$12)*(1+Stödberäkningar!G$106)^(F4+Indata!B$10-Indata!B$13)*(1+Indata!B$16)^(Indata!B$13-Indata!B$17)/(1+Indata!B$7)^(F4+Indata!B$10-Indata!B$9))","v":0.90005772341351864},null,1,{"$f":"(Indata!F11)/(1+Indata!B$7)^(Stödberäkningar!F4+Indata!E$7-Indata!B$9)","v":0},{"$f":"(Indata!E$8*Indata!E11)/(1+Indata!B$7)^(Stödberäkningar!F4+Indata!E$7-Indata!B$9)","v":0},null,null,{"$f":"IF(Indata!B38=\"ja\",Indata!C38*(1/Indata!D38),0)","v":1},null,null,null,null,1,{"$f":"U3+V4","v":1.5887357061182361},{"$f":"IF((Indata!B$10+F4)<Indata!B$13,IF((Indata!B$10+F4)<Indata!B$12,(1+Indata!B$14)^(F4-Indata!B$8+Indata!B$10)*(1)^(F4+Indata!B$10-Indata!B$17)/(1+Indata!B$7)^(F4+Indata!B$10-Indata!B$9),(1+Indata!B$14)^((Indata!B$12-Indata!B$10)-Indata!B$8+Indata!B$10)*(1+Indata!B$15)^(F4+Indata!B$10-Indata!B$12)*(1)^(F4+Indata!B$10-Indata!B$17)/(1+Indata!B$7)^(F4+Indata!B$10-Indata!B$9)),(1+Indata!B$14)^((Indata!B$12-Indata!B$10)-Indata!B$8+Indata!B$10)*(1+Indata!B$15)^((Indata!B$13-Indata!B$10)+Indata!B$10-Indata!B$12)*(1+Stödberäkningar!G$106)^(F4+Indata!B$10-Indata!B$13)*(1)^(F4+Indata!B$10-Indata!B$17)/(1+Indata!B$7)^(F4+Indata!B$10-Indata!B$9))","v":0.78465675461096251}]
["Beläggningsgrad",{"$f":"Tidsvärden!B22*Tidsvärden!B8+Tidsvärden!D22*(1-Tidsvärden!B8)","v":1.6295999999999999},{"$f":"Tidsvärden!B16","v":2.2000000000000002},null,null,2,2.7003256736325159,{"$f":"IF((Indata!B$10+F5)<Indata!B$13,IF((Indata!B$10+F5)<Indata!B$12,(1+Indata!B$14)^(F5-Indata!B$8+Indata!B$10)*(1+Indata!B$16)^(F5+Indata!B$10-Indata!B$17)/(1+Indata!B$7)^(F5+Indata!B$10-Indata!B$9),(1+Indata!B$14)^((Indata!B$12-Indata!B$10)-Indata!B$8+Indata!B$10)*(1+Indata!B$15)^(F5+Indata!B$10-Indata!B$12)*(1+Indata!B$16)^(F5+Indata!B$10-Indata!B$17)/(1+Indata!B$7)^(F5+Indata!B$10-Indata!B$9)),(1+Indata!B$14)^((Indata!B$12-Indata!B$10)-Indata!B$8+Indata!B$10)*(1+Indata!B$15)^((Indata!B$13-Indata!B$10)+Indata!B$10-Indata!B$12)*(1+Stödberäkningar!G$106)^(F5+Indata!B$10-Indata!B$13)*(1+Indata!B$16)^(Indata!B$13-Indata!B$17)/(1+Indata!B$7)^(F5+Indata!B$10-Indata!B$9))","v":0.88841784647835942},null,2,{"$f":"(Indata!F12)/(1+Indata!B$7)^(Stödberäkningar!F5+Indata!E$7-Indata!B$9)","v":0},{"$f":"(Indata!E$8*Indata!E12)/(1+Indata!B$7)^(Stödberäkningar!F5+Indata!E$7-Indata!B$9)","v":0},null,null,{"$f":"IF(Indata!B39=\"ja\",1,0)","v":1},null,null,null,null,2,{"$f":"U4+V5","v":2.3544393990236197},{"$f":"IF((Indata!B$10+F5)<Indata!B$13,IF((Indata!B$10+F5)<Indata!B$12,(1+Indata!B$14)^(F5-Indata!B$8+Indata!B$10)*(1)^(F5+Indata!B$10-Indata!B$17)/(1+Indata!B$7)^(F5+Indata!B$10-Indata!B$9),(1+Indata!B$14)^((Indata!B$12-Indata!B$10)-Indata!B$8+Indata!B$10)*(1+Indata!B$15)^(F5+Indata!B$10-Indata!B$12)*(1)^(F5+Indata!B$10-Indata!B$17)/(1+Indata!B$7)^(F5+Indata!B$10-Indata!B$9)),(1+Indata!B$14)^((Indata!B$12-Indata!B$10)-Indata!B$8+Indata!B$10)*(1+Indata!B$15)^((Indata!B$13-Indata!B$10)+Indata!B$10-Indata!B$12)*(1+Stödberäkningar!G$106)^(F5+Indata!B$10-Indata!B$13)*(1)^(F5+Indata!B$10-Indata!B$17)/(1+Indata!B$7)^(F5+Indata!B$10-Indata!B$9))","v":0.76570369290538376}]
["Tid kr/ftim",{"$f":"B4*B5","v":143.67857280000001},{"$f":"C4*C5","v":305.8},null,null,3,3.5772541743378197,{"$f":"IF((Indata!B$10+F6)<Indata!B$13,IF((Indata!B$10+F6)<Indata!B$12,(1+Indata!B$14)^(F6-Indata!B$8+Indata!B$10)*(1+Indata!B$16)^(F6+Indata!B$10-Indata!B$17)/(1+Indata!B$7)^(F6+Indata!B$10-Indata!B$9),(1+Indata!B$14)^((Indata!B$12-Indata!B$10)-Indata!B$8+Indata!B$10)*(1+Indata!B$15)^(F6+Indata!B$10-Indata!B$12)*(1+Indata!B$16)^(F6+Indata!B$10-Indata!B$17)/(1+Indata!B$7)^(F6+Indata!B$10-Indata!B$9)),(1+Indata!B$14)^((Indata!B$12-Indata!B$10)-Indata!B$8+Indata!B$10)*(1+Indata!B$15)^((Indata!B$13-Indata!B$10)+Indata!B$10-Indata!B$12)*(1+Stödberäkningar!G$106)^(F6+Indata!B$10-Indata!B$13)*(1+Indata!B$16)^(Indata!B$13-Indata!B$17)/(1+Indata!B$7)^(F6+Indata!B$10-Indata!B$9))","v":0.87692850070530382},null,3,{"$f":"(Indata!F13)/(1+Indata!B$7)^(Stödberäkningar!F6+Indata!E$7-Indata!B$9)","v":0},{"$f":"(Indata!E$8*Indata!E13)/(1+Indata!B$7)^(Stödberäkningar!F6+Indata!E$7-Indata!B$9)","v":0},null,null,null,null,null,null,null,3,3.1016478336462647,{"$f":"IF((Indata!B$10+F6)<Indata!B$13,IF((Indata!B$10+F6)<Indata!B$12,(1+Indata!B$14)^(F6-Indata!B$8+Indata!B$10)*(1)^(F6+Indata!B$10-Indata!B$17)/(1+Indata!B$7)^(F6+Indata!B$10-Indata!B$9),(1+Indata!B$14)^((Indata!B$12-Indata!B$10)-Indata!B$8+Indata!B$10)*(1+Indata!B$15)^(F6+Indata!B$10-Indata!B$12)*(1)^(F6+Indata!B$10-Indata!B$17)/(1+Indata!B$7)^(F6+Indata!B$10-Indata!B$9)),(1+Indata!B$14)^((Indata!B$12-Indata!B$10)-Indata!B$8+Indata!B$10)*(1+Indata!B$15)^((Indata!B$13-Indata!B$10)+Indata!B$10-Indata!B$12)*(1+Stödberäkningar!G$106)^(F6+Indata!B$10-Indata!B$13)*(1)^(F6+Indata!B$10-Indata!B$17)/(1+Indata!B$7)^(F6+Indata!B$10-Indata!B$9))","v":0.7472084346226453}]
["Reg+Nat kr/ftim",{"$f":"C6*Tidsvärden!B6+B6*(1-Tidsvärden!B6)","v":150.81191559679999},null,null,null,4,4.4428419137079151,{"$f":"IF((Indata!B$10+F7)<Indata!B$13,IF((Indata!B$10+F7)<Indata!B$12,(1+Indata!B$14)^(F7-Indata!B$8+Indata!B$10)*(1+Indata!B$16)^(F7+Indata!B$10-Indata!B$17)/(1+Indata!B$7)^(F7+Indata!B$10-Indata!B$9),(1+Indata!B$14)^((Indata!B$12-Indata!B$10)-Indata!B$8+Indata!B$10)*(1+Indata!B$15)^(F7+Indata!B$10-Indata!B$12)*(1+Indata!B$16)^(F7+Indata!B$10-Indata!B$17)/(1+Indata!B$7)^(F7+Indata!B$10-Indata!B$9)),(1+Indata!B$14)^((Indata!B$12-Indata!B$10)-Indata!B$8+Indata!B$10)*(1+Indata!B$15)^((Indata!B$13-Indata!B$10)+Indata!B$10-Indata!B$12)*(1+Stödberäkningar!G$106)^(F7+Indata!B$10-Indata!B$13)*(1+Indata!B$16)^(Indata!B$13-Indata!B$17)/(1+Indata!B$7)^(F7+Indata!B$10-Indata!B$9))","v":0.86558773937009581},null,4,{"$f":"(Indata!F14)/(1+Indata!B$7)^(Stödberäkningar!F7+Indata!E$7-Indata!B$9)","v":0},{"$f":"(Indata!E$8*Indata!E14)/(1+Indata!B$7)^(Stödberäkningar!F7+Indata!E$7-Indata!B$9)","v":0},null,null,null,null,null,null,null,4,3.8308077553553197,{"$f":"IF((Indata!B$10+F7)<Indata!B$13,IF((Indata!B$10+F7)<Indata!B$12,(1+Indata!B$14)^(F7-Indata!B$8+Indata!B$10)*(1)^(F7+Indata!B$10-Indata!B$17)/(1+Indata!B$7)^(F7+Indata!B$10-Indata!B$9),(1+Indata!B$14)^((Indata!B$12-Indata!B$10)-Indata!B$8+Indata!B$10)*(1+Indata!B$15)^(F7+Indata!B$10-Indata!B$12)*(1)^(F7+Indata!B$10-Indata!B$17)/(1+Indata!B$7)^(F7+Indata!B$10-Indata!B$9)),(1+Indata!B$14)^((Indata!B$12-Indata!B$10)-Indata!B$8+Indata!B$10)*(1+Indata!B$15)^((Indata!B$13-Indata!B$10)+Indata!B$10-Indata!B$12)*(1+Stödberäkningar!G$106)^(F7+Indata!B$10-Indata!B$13)*(1)^(F7+Indata!B$10-Indata!B$17)/(1+Indata!B$7)^(F7+Indata!B$10-Indata!B$9))","v":0.72915992170905475}]
[null,null,null,null,null,5,5.297235554632147,{"$f":"IF((Indata!B$10+F8)<Indata!B$13,IF((Indata!B$10+F8)<Indata!B$12,(1+Indata!B$14)^(F8-Indata!B$8+Indata!B$10)*(1+Indata!B$16)^(F8+Indata!B$10-Indata!B$17)/(1+Indata!B$7)^(F8+Indata!B$10-Indata!B$9),(1+Indata!B$14)^((Indata!B$12-Indata!B$10)-Indata!B$8+Indata!B$10)*(1+Indata!B$15)^(F8+Indata!B$10-Indata!B$12)*(1+Indata!B$16)^(F8+Indata!B$10-Indata!B$17)/(1+Indata!B$7)^(F8+Indata!B$10-Indata!B$9)),(1+Indata!B$14)^((Indata!B$12-Indata!B$10)-Indata!B$8+Indata!B$10)*(1+Indata!B$15)^((Indata!B$13-Indata!B$10)+Indata!B$10-Indata!B$12)*(1+Stödberäkningar!G$106)^(F8+Indata!B$10-Indata!B$13)*(1+Indata!B$16)^(Indata!B$13-Indata!B$17)/(1+Indata!B$7)^(F8+Indata!B$10-Indata!B$9))","v":0.85439364092423231},null,5,{"$f":"(Indata!F15)/(1+Indata!B$7)^(Stödberäkningar!F8+Indata!E$7-Indata!B$9)","v":0},{"$f":"(Indata!E$8*Indata!E15)/(1+Indata!B$7)^(Stödberäkningar!F8+Indata!E$7-Indata!B$9)","v":0},null,null,"Nuvärdesfaktor pb",{"$f":"Stödberäkningar!G104","v":35.66378671112092},null,null,null,5,4.5423551185689863,{"$f":"IF((Indata!B$10+F8)<Indata!B$13,IF((Indata!B$10+F8)<Indata!B$12,(1+Indata!B$14)^(F8-Indata!B$8+Indata!B$10)*(1)^(F8+Indata!B$10-Indata!B$17)/(1+Indata!B$7)^(F8+Indata!B$10-Indata!B$9),(1+Indata!B$14)^((Indata!B$12-Indata!B$10)-Indata!B$8+Indata!B$10)*(1+Indata!B$15)^(F8+Indata!B$10-Indata!B$12)*(1)^(F8+Indata!B$10-Indata!B$17)/(1+Indata!B$7)^(F8+Indata!B$10-Indata!B$9)),(1+Indata!B$14)^((Indata!B$12-Indata!B$10)-Indata!B$8+Indata!B$10)*(1+Indata!B$15)^((Indata!B$13-Indata!B$10)+Indata!B$10-Indata!B$12)*(1+Stödberäkningar!G$106)^(F8+Indata!B$10-Indata!B$13)*(1)^(F8+Indata!B$10-Indata!B$17)/(1+Indata!B$7)^(F8+Indata!B$10-Indata!B$9))","v":0.71154736321366685}]
["Privatresor, KA tidsvärde 95kr","Reg","Nat",null,null,6,6.1405798633015287,{"$f":"IF((Indata!B$10+F9)<Indata!B$13,IF((Indata!B$10+F9)<Indata!B$12,(1+Indata!B$14)^(F9-Indata!B$8+Indata!B$10)*(1+Indata!B$16)^(F9+Indata!B$10-Indata!B$17)/(1+Indata!B$7)^(F9+Indata!B$10-Indata!B$9),(1+Indata!B$14)^((Indata!B$12-Indata!B$10)-Indata!B$8+Indata!B$10)*(1+Indata!B$15)^(F9+Indata!B$10-Indata!B$12)*(1+Indata!B$16)^(F9+Indata!B$10-Indata!B$17)/(1+Indata!B$7)^(F9+Indata!B$10-Indata!B$9)),(1+Indata!B$14)^((Indata!B$12-Indata!B$10)-Indata!B$8+Indata!B$10)*(1+Indata!B$15)^((Indata!B$13-Indata!B$10)+Indata!B$10-Indata!B$12)*(1+Stödberäkningar!G$106)^(F9+Indata!B$10-Indata!B$13)*(1+Indata!B$16)^(Indata!B$13-Indata!B$17)/(1+Indata!B$7)^(F9+Indata!B$10-Indata!B$9))","v":0.84334430866938126},null,6,{"$f":"(Indata!F16)/(1+Indata!B$7)^(Stödberäkningar!F9+Indata!E$7-Indata!B$9)","v":0},{"$f":"(Indata!E$8*Indata!E16)/(1+Indata!B$7)^(Stödberäkningar!F9+Indata!E$7-Indata!B$9)","v":0},null,null,"Nuvärdesfaktor yrkestrafik",{"$f":"U104","v":24.971532850131609},null,null,null,6,5.2367153474055117,{"$f":"IF((Indata!B$10+F9)<Indata!B$13,IF((Indata!B$10+F9)<Indata!B$12,(1+Indata!B$14)^(F9-Indata!B$8+Indata!B$10)*(1)^(F9+Indata!B$10-Indata!B$17)/(1+Indata!B$7)^(F9+Indata!B$10-Indata!B$9),(1+Indata!B$14)^((Indata!B$12-Indata!B$10)-Indata!B$8+Indata!B$10)*(1+Indata!B$15)^(F9+Indata!B$10-Indata!B$12)*(1)^(F9+Indata!B$10-Indata!B$17)/(1+Indata!B$7)^(F9+Indata!B$10-Indata!B$9)),(1+Indata!B$14)^((Indata!B$12-Indata!B$10)-Indata!B$8+Indata!B$10)*(1+Indata!B$15)^((Indata!B$13-Indata!B$10)+Indata!B$10-Indata!B$12)*(1+Stödberäkningar!G$106)^(F9+Indata!B$10-Indata!B$13)*(1)^(F9+Indata!B$10-Indata!B$17)/(1+Indata!B$7)^(F9+Indata!B$10-Indata!B$9))","v":0.69436022883652526}]
["Tid kr/tim",95,95,null,null,7,6.9730177337375387,{"$f":"IF((Indata!B$10+F10)<Indata!B$13,IF((Indata!B$10+F10)<Indata!B$12,(1+Indata!B$14)^(F10-Indata!B$8+Indata!B$10)*(1+Indata!B$16)^(F10+Indata!B$10-Indata!B$17)/(1+Indata!B$7)^(F10+Indata!B$10-Indata!B$9),(1+Indata!B$14)^((Indata!B$12-Indata!B$10)-Indata!B$8+Indata!B$10)*(1+Indata!B$15)^(F10+Indata!B$10-Indata!B$12)*(1+Indata!B$16)^(F10+Indata!B$10-Indata!B$17)/(1+Indata!B$7)^(F10+Indata!B$10-Indata!B$9)),(1+Indata!B$14)^((Indata!B$12-Indata!B$10)-Indata!B$8+Indata!B$10)*(1+Indata!B$15)^((Indata!B$13-Indata!B$10)+Indata!B$10-Indata!B$12)*(1+Stödberäkningar!G$106)^(F10+Indata!B$10-Indata!B$13)*(1+Indata!B$16)^(Indata!B$13-Indata!B$17)/(1+Indata!B$7)^(F10+Indata!B$10-Indata!B$9))","v":0.83243787043600992},null,7,{"$f":"(Indata!F17)/(1+Indata!B$7)^(Stödberäkningar!F10+Indata!E$7-Indata!B$9)","v":0},{"$f":"(Indata!E$8*Indata!E17)/(1+Indata!B$7)^(Stödberäkningar!F10+Indata!E$7-Indata!B$9)","v":0},null,null,null,null,null,null,null,7,5.9143035900382568,{"$f":"IF((Indata!B$10+F10)<Indata!B$13,IF((Indata!B$10+F10)<Indata!B$12,(1+Indata!B$14)^(F10-Indata!B$8+Indata!B$10)*(1)^(F10+Indata!B$10-Indata!B$17)/(1+Indata!B$7)^(F10+Indata!B$10-Indata!B$9),(1+Indata!B$14)^((Indata!B$12-Indata!B$10)-Indata!B$8+Indata!B$10)*(1+Indata!B$15)^(F10+Indata!B$10-Indata!B$12)*(1)^(F10+Indata!B$10-Indata!B$17)/(1+Indata!B$7)^(F10+Indata!B$10-Indata!B$9)),(1+Indata!B$14)^((Indata!B$12-Indata!B$10)-Indata!B$8+Indata!B$10)*(1+Indata!B$15)^((Indata!B$13-Indata!B$10)+Indata!B$10-Indata!B$12)*(1+Stödberäkningar!G$106)^(F10+Indata!B$10-Indata!B$13)*(1)^(F10+Indata!B$10-Indata!B$17)/(1+Indata!B$7)^(F10+Indata!B$10-Indata!B$9))","v":0.67758824263274464}]
["Beläggningsgrad",{"$f":"$B$5","v":1.6295999999999999},{"$f":"$C$5","v":2.2000000000000002},null,null,8,7.7946902120037072,{"$f":"IF((Indata!B$10+F11)<Indata!B$13,IF((Indata!B$10+F11)<Indata!B$12,(1+Indata!B$14)^(F11-Indata!B$8+Indata!B$10)*(1+Indata!B$16)^(F11+Indata!B$10-Indata!B$17)/(1+Indata!B$7)^(F11+Indata!B$10-Indata!B$9),(1+Indata!B$14)^((Indata!B$12-Indata!B$10)-Indata!B$8+Indata!B$10)*(1+Indata!B$15)^(F11+Indata!B$10-Indata!B$12)*(1+Indata!B$16)^(F11+Indata!B$10-Indata!B$17)/(1+Indata!B$7)^(F11+Indata!B$10-Indata!B$9)),(1+Indata!B$14)^((Indata!B$12-Indata!B$10)-Indata!B$8+Indata!B$10)*(1+Indata!B$15)^((Indata!B$13-Indata!B$10)+Indata!B$10-Indata!B$12)*(1+Stödberäkningar!G$106)^(F11+Indata!B$10-Indata!B$13)*(1+Indata!B$16)^(Indata!B$13-Indata!B$17)/(1+Indata!B$7)^(F11+Indata!B$10-Indata!B$9))","v":0.82167247826616874},null,8,{"$f":"(Indata!F18)/(1+Indata!B$7)^(Stödberäkningar!F11+Indata!E$7-Indata!B$9)","v":0},{"$f":"(Indata!E$8*Indata!E18)/(1+Indata!B$7)^(Stödberäkningar!F11+Indata!E$7-Indata!B$9)","v":0},null,null,null,null,null,null,null,8,6.5755249669069258,{"$f":"IF((Indata!B$10+F11)<Indata!B$13,IF((Indata!B$10+F11)<Indata!B$12,(1+Indata!B$14)^(F11-Indata!B$8+Indata!B$10)*(1)^(F11+Indata!B$10-Indata!B$17)/(1+Indata!B$7)^(F11+Indata!B$10-Indata!B$9),(1+Indata!B$14)^((Indata!B$12-Indata!B$10)-Indata!B$8+Indata!B$10)*(1+Indata!B$15)^(F11+Indata!B$10-Indata!B$12)*(1)^(F11+Indata!B$10-Indata!B$17)/(1+Indata!B$7)^(F11+Indata!B$10-Indata!B$9)),(1+Indata!B$14)^((Indata!B$12-Indata!B$10)-Indata!B$8+Indata!B$10)*(1+Indata!B$15)^((Indata!B$13-Indata!B$10)+Indata!B$10-Indata!B$12)*(1+Stödberäkningar!G$106)^(F11+Indata!B$10-Indata!B$13)*(1)^(F11+Indata!B$10-Indata!B$17)/(1+Indata!B$7)^(F11+Indata!B$10-Indata!B$9))","v":0.66122137686866889}]
["Tid kr/ftim",{"$f":"B11*B10","v":154.81199999999998},{"$f":"C11*C10","v":209.00000000000003},null,null,9,8.6057365201040863,{"$f":"IF((Indata!B$10+F12)<Indata!B$13,IF((Indata!B$10+F12)<Indata!B$12,(1+Indata!B$14)^(F12-Indata!B$8+Indata!B$10)*(1+Indata!B$16)^(F12+Indata!B$10-Indata!B$17)/(1+Indata!B$7)^(F12+Indata!B$10-Indata!B$9),(1+Indata!B$14)^((Indata!B$12-Indata!B$10)-Indata!B$8+Indata!B$10)*(1+Indata!B$15)^(F12+Indata!B$10-Indata!B$12)*(1+Indata!B$16)^(F12+Indata!B$10-Indata!B$17)/(1+Indata!B$7)^(F12+Indata!B$10-Indata!B$9)),(1+Indata!B$14)^((Indata!B$12-Indata!B$10)-Indata!B$8+Indata!B$10)*(1+Indata!B$15)^((Indata!B$13-Indata!B$10)+Indata!B$10-Indata!B$12)*(1+Stödberäkningar!G$106)^(F12+Indata!B$10-Indata!B$13)*(1+Indata!B$16)^(Indata!B$13-Indata!B$17)/(1+Indata!B$7)^(F12+Indata!B$10-Indata!B$9))","v":0.81104630810037859},null,9,{"$f":"(Indata!F19)/(1+Indata!B$7)^(Stödberäkningar!F12+Indata!E$7-Indata!B$9)","v":0},{"$f":"(Indata!E$8*Indata!E19)/(1+Indata!B$7)^(Stödberäkningar!F12+Indata!E$7-Indata!B$9)","v":0},null,null,null,null,null,null,null,9,7.2207748129333558,{"$f":"IF((Indata!B$10+F12)<Indata!B$13,IF((Indata!B$10+F12)<Indata!B$12,(1+Indata!B$14)^(F12-Indata!B$8+Indata!B$10)*(1)^(F12+Indata!B$10-Indata!B$17)/(1+Indata!B$7)^(F12+Indata!B$10-Indata!B$9),(1+Indata!B$14)^((Indata!B$12-Indata!B$10)-Indata!B$8+Indata!B$10)*(1+Indata!B$15)^(F12+Indata!B$10-Indata!B$12)*(1)^(F12+Indata!B$10-Indata!B$17)/(1+Indata!B$7)^(F12+Indata!B$10-Indata!B$9)),(1+Indata!B$14)^((Indata!B$12-Indata!B$10)-Indata!B$8+Indata!B$10)*(1+Indata!B$15)^((Indata!B$13-Indata!B$10)+Indata!B$10-Indata!B$12)*(1+Stödberäkningar!G$106)^(F12+Indata!B$10-Indata!B$13)*(1)^(F12+Indata!B$10-Indata!B$17)/(1+Indata!B$7)^(F12+Indata!B$10-Indata!B$9))","v":0.64524984602643032}]
["Reg+Nat kr/ftim",{"$f":"C12*Tidsvärden!B6+B12*(1-Tidsvärden!B6)","v":157.19627199999996},null,null,null,10,9.4062940795726551,{"$f":"IF((Indata!B$10+F13)<Indata!B$13,IF((Indata!B$10+F13)<Indata!B$12,(1+Indata!B$14)^(F13-Indata!B$8+Indata!B$10)*(1+Indata!B$16)^(F13+Indata!B$10-Indata!B$17)/(1+Indata!B$7)^(F13+Indata!B$10-Indata!B$9),(1+Indata!B$14)^((Indata!B$12-Indata!B$10)-Indata!B$8+Indata!B$10)*(1+Indata!B$15)^(F13+Indata!B$10-Indata!B$12)*(1+Indata!B$16)^(F13+Indata!B$10-Indata!B$17)/(1+Indata!B$7)^(F13+Indata!B$10-Indata!B$9)),(1+Indata!B$14)^((Indata!B$12-Indata!B$10)-Indata!B$8+Indata!B$10)*(1+Indata!B$15)^((Indata!B$13-Indata!B$10)+Indata!B$10-Indata!B$12)*(1+Stödberäkningar!G$106)^(F13+Indata!B$10-Indata!B$13)*(1+Indata!B$16)^(Indata!B$13-Indata!B$17)/(1+Indata!B$7)^(F13+Indata!B$10-Indata!B$9))","v":0.80055755946856866},null,null,null,null,null,null,null,null,null,null,null,10,7.8504389138866841,{"$f":"IF((Indata!B$10+F13)<Indata!B$13,IF((Indata!B$10+F13)<Indata!B$12,(1+Indata!B$14)^(F13-Indata!B$8+Indata!B$10)*(1)^(F13+Indata!B$10-Indata!B$17)/(1+Indata!B$7)^(F13+Indata!B$10-Indata!B$9),(1+Indata!B$14)^((Indata!B$12-Indata!B$10)-Indata!B$8+Indata!B$10)*(1+Indata!B$15)^(F13+Indata!B$10-Indata!B$12)*(1)^(F13+Indata!B$10-Indata!B$17)/(1+Indata!B$7)^(F13+Indata!B$10-Indata!B$9)),(1+Indata!B$14)^((Indata!B$12-Indata!B$10)-Indata!B$8+Indata!B$10)*(1+Indata!B$15)^((Indata!B$13-Indata!B$10)+Indata!B$10-Indata!B$12)*(1+Stödberäkningar!G$106)^(F13+Indata!B$10-Indata!B$13)*(1)^(F13+Indata!B$10-Indata!B$17)/(1+Indata!B$7)^(F13+Indata!B$10-Indata!B$9))","v":0.62966410095332825}]
[null,null,null,null,null,11,10.196498534757662,{"$f":"IF((Indata!B$10+F14)<Indata!B$13,IF((Indata!B$10+F14)<Indata!B$12,(1+Indata!B$14)^(F14-Indata!B$8+Indata!B$10)*(1+Indata!B$16)^(F14+Indata!B$10-Indata!B$17)/(1+Indata!B$7)^(F14+Indata!B$10-Indata!B$9),(1+Indata!B$14)^((Indata!B$12-Indata!B$10)-Indata!B$8+Indata!B$10)*(1+Indata!B$15)^(F14+Indata!B$10-Indata!B$12)*(1+Indata!B$16)^(F14+Indata!B$10-Indata!B$17)/(1+Indata!B$7)^(F14+Indata!B$10-Indata!B$9)),(1+Indata!B$14)^((Indata!B$12-Indata!B$10)-Indata!B$8+Indata!B$10)*(1+Indata!B$15)^((Indata!B$13-Indata!B$10)+Indata!B$10-Indata!B$12)*(1+Stödberäkningar!G$106)^(F14+Indata!B$10-Indata!B$13)*(1+Indata!B$16)^(Indata!B$13-Indata!B$17)/(1+Indata!B$7)^(F14+Indata!B$10-Indata!B$9))","v":0.79020445518500659},null,"Diskonterat inkl. Skattefaktor",null,{"$f":"SUM(Stödberäkningar!K3:L12)","v":0},null,null,null,null,null,null,null,11,8.4648937370392083,{"$f":"IF((Indata!B$10+F14)<Indata!B$13,IF((Indata!B$10+F14)<Indata!B$12,(1+Indata!B$14)^(F14-Indata!B$8+Indata!B$10)*(1)^(F14+Indata!B$10-Indata!B$17)/(1+Indata!B$7)^(F14+Indata!B$10-Indata!B$9),(1+Indata!B$14)^((Indata!B$12-Indata!B$10)-Indata!B$8+Indata!B$10)*(1+Indata!B$15)^(F14+Indata!B$10-Indata!B$12)*(1)^(F14+Indata!B$10-Indata!B$17)/(1+Indata!B$7)^(F14+Indata!B$10-Indata!B$9)),(1+Indata!B$14)^((Indata!B$12-Indata!B$10)-Indata!B$8+Indata!B$10)*(1+Indata!B$15)^((Indata!B$13-Indata!B$10)+Indata!B$10-Indata!B$12)*(1+Stödberäkningar!G$106)^(F14+Indata!B$10-Indata!B$13)*(1)^(F14+Indata!B$10-Indata!B$17)/(1+Indata!B$7)^(F14+Indata!B$10-Indata!B$9))","v":0.61445482315252331}]
["Tjänsteresor","Reg","Nat",null,null,12,10.976483775804841,{"$f":"IF((Indata!B$10+F15)<Indata!B$13,IF((Indata!B$10+F15)<Indata!B$12,(1+Indata!B$14)^(F15-Indata!B$8+Indata!B$10)*(1+Indata!B$16)^(F15+Indata!B$10-Indata!B$17)/(1+Indata!B$7)^(F15+Indata!B$10-Indata!B$9),(1+Indata!B$14)^((Indata!B$12-Indata!B$10)-Indata!B$8+Indata!B$10)*(1+Indata!B$15)^(F15+Indata!B$10-Indata!B$12)*(1+Indata!B$16)^(F15+Indata!B$10-Indata!B$17)/(1+Indata!B$7)^(F15+Indata!B$10-Indata!B$9)),(1+Indata!B$14)^((Indata!B$12-Indata!B$10)-Indata!B$8+Indata!B$10)*(1+Indata!B$15)^((Indata!B$13-Indata!B$10)+Indata!B$10-Indata!B$12)*(1+Stödberäkningar!G$106)^(F15+Indata!B$10-Indata!B$13)*(1+Indata!B$16)^(Indata!B$13-Indata!B$17)/(1+Indata!B$7)^(F15+Indata!B$10-Indata!B$9))","v":0.77998524104717937},null,null,null,null,null,null,null,null,null,null,null,12,9.0645066562508489,{"$f":"IF((Indata!B$10+F15)<Indata!B$13,IF((Indata!B$10+F15)<Indata!B$12,(1+Indata!B$14)^(F15-Indata!B$8+Indata!B$10)*(1)^(F15+Indata!B$10-Indata!B$17)/(1+Indata!B$7)^(F15+Indata!B$10-Indata!B$9),(1+Indata!B$14)^((Indata!B$12-Indata!B$10)-Indata!B$8+Indata!B$10)*(1+Indata!B$15)^(F15+Indata!B$10-Indata!B$12)*(1)^(F15+Indata!B$10-Indata!B$17)/(1+Indata!B$7)^(F15+Indata!B$10-Indata!B$9)),(1+Indata!B$14)^((Indata!B$12-Indata!B$10)-Indata!B$8+Indata!B$10)*(1+Indata!B$15)^((Indata!B$13-Indata!B$10)+Indata!B$10-Indata!B$12)*(1+Stödberäkningar!G$106)^(F15+Indata!B$10-Indata!B$13)*(1)^(F15+Indata!B$10-Indata!B$17)/(1+Indata!B$7)^(F15+Indata!B$10-Indata!B$9))","v":0.59961291921164117}]
["Tid kr/tim",{"$f":"Tidsvärden!C20","v":389},{"$f":"Tidsvärden!C14","v":389},null,null,13,11.746381961343406,{"$f":"IF((Indata!B$10+F16)<Indata!B$13,IF((Indata!B$10+F16)<Indata!B$12,(1+Indata!B$14)^(F16-Indata!B$8+Indata!B$10)*(1+Indata!B$16)^(F16+Indata!B$10-Indata!B$17)/(1+Indata!B$7)^(F16+Indata!B$10-Indata!B$9),(1+Indata!B$14)^((Indata!B$12-Indata!B$10)-Indata!B$8+Indata!B$10)*(1+Indata!B$15)^(F16+Indata!B$10-Indata!B$12)*(1+Indata!B$16)^(F16+Indata!B$10-Indata!B$17)/(1+Indata!B$7)^(F16+Indata!B$10-Indata!B$9)),(1+Indata!B$14)^((Indata!B$12-Indata!B$10)-Indata!B$8+Indata!B$10)*(1+Indata!B$15)^((Indata!B$13-Indata!B$10)+Indata!B$10-Indata!B$12)*(1+Stödberäkningar!G$106)^(F16+Indata!B$10-Indata!B$13)*(1+Indata!B$16)^(Indata!B$13-Indata!B$17)/(1+Indata!B$7)^(F16+Indata!B$10-Indata!B$9))","v":0.76989818553856448},null,null,null,null,null,null,null,null,null,null,null,13,9.6496361716167982,{"$f":"IF((Indata!B$10+F16)<Indata!B$13,IF((Indata!B$10+F16)<Indata!B$12,(1+Indata!B$14)^(F16-Indata!B$8+Indata!B$10)*(1)^(F16+Indata!B$10-Indata!B$17)/(1+Indata!B$7)^(F16+Indata!B$10-Indata!B$9),(1+Indata!B$14)^((Indata!B$12-Indata!B$10)-Indata!B$8+Indata!B$10)*(1+Indata!B$15)^(F16+Indata!B$10-Indata!B$12)*(1)^(F16+Indata!B$10-Indata!B$17)/(1+Indata!B$7)^(F16+Indata!B$10-Indata!B$9)),(1+Indata!B$14)^((Indata!B$12-Indata!B$10)-Indata!B$8+Indata!B$10)*(1+Indata!B$15)^((Indata!B$13-Indata!B$10)+Indata!B$10-Indata!B$12)*(1+Stödberäkningar!G$106)^(F16+Indata!B$10-Indata!B$13)*(1)^(F16+Indata!B$10-Indata!B$17)/(1+Indata!B$7)^(F16+Indata!B$10-Indata!B$9))","v":0.58512951536594926}]
["Beläggningsgrad",{"$f":"Tidsvärden!C22","v":1.2},{"$f":"Tidsvärden!C16","v":1.17},null,null,14,12.506323540878654,{"$f":"IF((Indata!B$10+F17)<Indata!B$13,IF((Indata!B$10+F17)<Indata!B$12,(1+Indata!B$14)^(F17-Indata!B$8+Indata!B$10)*(1+Indata!B$16)^(F17+Indata!B$10-Indata!B$17)/(1+Indata!B$7)^(F17+Indata!B$10-Indata!B$9),(1+Indata!B$14)^((Indata!B$12-Indata!B$10)-Indata!B$8+Indata!B$10)*(1+Indata!B$15)^(F17+Indata!B$10-Indata!B$12)*(1+Indata!B$16)^(F17+Indata!B$10-Indata!B$17)/(1+Indata!B$7)^(F17+Indata!B$10-Indata!B$9)),(1+Indata!B$14)^((Indata!B$12-Indata!B$10)-Indata!B$8+Indata!B$10)*(1+Indata!B$15)^((Indata!B$13-Indata!B$10)+Indata!B$10-Indata!B$12)*(1+Stödberäkningar!G$106)^(F17+Indata!B$10-Indata!B$13)*(1+Indata!B$16)^(Indata!B$13-Indata!B$17)/(1+Indata!B$7)^(F17+Indata!B$10-Indata!B$9))","v":0.75994157953524721},null,null,null,null,null,null,null,null,null,null,null,14,10.220632123809658,{"$f":"IF((Indata!B$10+F17)<Indata!B$13,IF((Indata!B$10+F17)<Indata!B$12,(1+Indata!B$14)^(F17-Indata!B$8+Indata!B$10)*(1)^(F17+Indata!B$10-Indata!B$17)/(1+Indata!B$7)^(F17+Indata!B$10-Indata!B$9),(1+Indata!B$14)^((Indata!B$12-Indata!B$10)-Indata!B$8+Indata!B$10)*(1+Indata!B$15)^(F17+Indata!B$10-Indata!B$12)*(1)^(F17+Indata!B$10-Indata!B$17)/(1+Indata!B$7)^(F17+Indata!B$10-Indata!B$9)),(1+Indata!B$14)^((Indata!B$12-Indata!B$10)-Indata!B$8+Indata!B$10)*(1+Indata!B$15)^((Indata!B$13-Indata!B$10)+Indata!B$10-Indata!B$12)*(1+Stödberäkningar!G$106)^(F17+Indata!B$10-Indata!B$13)*(1)^(F17+Indata!B$10-Indata!B$17)/(1+Indata!B$7)^(F17+Indata!B$10-Indata!B$9))","v":0.57099595219285892}]
["Tid kr/ftim",{"$f":"B16*B17","v":466.79999999999995},{"$f":"C16*C17","v":455.13},null,null,15,13.256437276894983,{"$f":"IF((Indata!B$10+F18)<Indata!B$13,IF((Indata!B$10+F18)<Indata!B$12,(1+Indata!B$14)^(F18-Indata!B$8+Indata!B$10)*(1+Indata!B$16)^(F18+Indata!B$10-Indata!B$17)/(1+Indata!B$7)^(F18+Indata!B$10-Indata!B$9),(1+Indata!B$14)^((Indata!B$12-Indata!B$10)-Indata!B$8+Indata!B$10)*(1+Indata!B$15)^(F18+Indata!B$10-Indata!B$12)*(1+Indata!B$16)^(F18+Indata!B$10-Indata!B$17)/(1+Indata!B$7)^(F18+Indata!B$10-Indata!B$9)),(1+Indata!B$14)^((Indata!B$12-Indata!B$10)-Indata!B$8+Indata!B$10)*(1+Indata!B$15)^((Indata!B$13-Indata!B$10)+Indata!B$10-Indata!B$12)*(1+Stödberäkningar!G$106)^(F18+Indata!B$10-Indata!B$13)*(1+Indata!B$16)^(Indata!B$13-Indata!B$17)/(1+Indata!B$7)^(F18+Indata!B$10-Indata!B$9))","v":0.75011373601633013},null,null,null,null,null,null,null,null,null,null,null,15,10.777835903244235,{"$f":"IF((Indata!B$10+F18)<Indata!B$13,IF((Indata!B$10+F18)<Indata!B$12,(1+Indata!B$14)^(F18-Indata!B$8+Indata!B$10)*(1)^(F18+Indata!B$10-Indata!B$17)/(1+Indata!B$7)^(F18+Indata!B$10-Indata!B$9),(1+Indata!B$14)^((Indata!B$12-Indata!B$10)-Indata!B$8+Indata!B$10)*(1+Indata!B$15)^(F18+Indata!B$10-Indata!B$12)*(1)^(F18+Indata!B$10-Indata!B$17)/(1+Indata!B$7)^(F18+Indata!B$10-Indata!B$9)),(1+Indata!B$14)^((Indata!B$12-Indata!B$10)-Indata!B$8+Indata!B$10)*(1+Indata!B$15)^((Indata!B$13-Indata!B$10)+Indata!B$10-Indata!B$12)*(1+Stödberäkningar!G$106)^(F18+Indata!B$10-Indata!B$13)*(1)^(F18+Indata!B$10-Indata!B$17)/(1+Indata!B$7)^(F18+Indata!B$10-Indata!B$9))","v":0.55720377943457733}]
["Reg+Nat kr/ftim",{"$f":"C18*Tidsvärden!B6+B18*(1-Tidsvärden!B6)","v":466.28651999999994},null,null,null,16,13.996850266673073,{"$f":"IF((Indata!B$10+F19)<Indata!B$13,IF((Indata!B$10+F19)<Indata!B$12,(1+Indata!B$14)^(F19-Indata!B$8+Indata!B$10)*(1+Indata!B$16)^(F19+Indata!B$10-Indata!B$17)/(1+Indata!B$7)^(F19+Indata!B$10-Indata!B$9),(1+Indata!B$14)^((Indata!B$12-Indata!B$10)-Indata!B$8+Indata!B$10)*(1+Indata!B$15)^(F19+Indata!B$10-Indata!B$12)*(1+Indata!B$16)^(F19+Indata!B$10-Indata!B$17)/(1+Indata!B$7)^(F19+Indata!B$10-Indata!B$9)),(1+Indata!B$14)^((Indata!B$12-Indata!B$10)-Indata!B$8+Indata!B$10)*(1+Indata!B$15)^((Indata!B$13-Indata!B$10)+Indata!B$10-Indata!B$12)*(1+Stödberäkningar!G$106)^(F19+Indata!B$10-Indata!B$13)*(1+Indata!B$16)^(Indata!B$13-Indata!B$17)/(1+Indata!B$7)^(F19+Indata!B$10-Indata!B$9))","v":0.74041298977809011},null,null,null,null,null,null,null,null,null,null,null,16,11.321580654190054,{"$f":"IF((Indata!B$10+F19)<Indata!B$13,IF((Indata!B$10+F19)<Indata!B$12,(1+Indata!B$14)^(F19-Indata!B$8+Indata!B$10)*(1)^(F19+Indata!B$10-Indata!B$17)/(1+Indata!B$7)^(F19+Indata!B$10-Indata!B$9),(1+Indata!B$14)^((Indata!B$12-Indata!B$10)-Indata!B$8+Indata!B$10)*(1+Indata!B$15)^(F19+Indata!B$10-Indata!B$12)*(1)^(F19+Indata!B$10-Indata!B$17)/(1+Indata!B$7)^(F19+Indata!B$10-Indata!B$9)),(1+Indata!B$14)^((Indata!B$12-Indata!B$10)-Indata!B$8+Indata!B$10)*(1+Indata!B$15)^((Indata!B$13-Indata!B$10)+Indata!B$10-Indata!B$12)*(1+Stödberäkningar!G$106)^(F19+Indata!B$10-Indata!B$13)*(1)^(F19+Indata!B$10-Indata!B$17)/(1+Indata!B$7)^(F19+Indata!B$10-Indata!B$9))","v":0.54374475094581942}]
[null,null,null,null,null,17,14.727687963824902,{"$f":"IF((Indata!B$10+F20)<Indata!B$13,IF((Indata!B$10+F20)<Indata!B$12,(1+Indata!B$14)^(F20-Indata!B$8+Indata!B$10)*(1+Indata!B$16)^(F20+Indata!B$10-Indata!B$17)/(1+Indata!B$7)^(F20+Indata!B$10-Indata!B$9),(1+Indata!B$14)^((Indata!B$12-Indata!B$10)-Indata!B$8+Indata!B$10)*(1+Indata!B$15)^(F20+Indata!B$10-Indata!B$12)*(1+Indata!B$16)^(F20+Indata!B$10-Indata!B$17)/(1+Indata!B$7)^(F20+Indata!B$10-Indata!B$9)),(1+Indata!B$14)^((Indata!B$12-Indata!B$10)-Indata!B$8+Indata!B$10)*(1+Indata!B$15)^((Indata!B$13-Indata!B$10)+Indata!B$10-Indata!B$12)*(1+Stödberäkningar!G$106)^(F20+Indata!B$10-Indata!B$13)*(1+Indata!B$16)^(Indata!B$13-Indata!B$17)/(1+Indata!B$7)^(F20+Indata!B$10-Indata!B$9))","v":0.73083769715182956},null,null,null,null,null,null,null,null,null,null,null,17,11.852191473953607,{"$f":"IF((Indata!B$10+F20)<Indata!B$13,IF((Indata!B$10+F20)<Indata!B$12,(1+Indata!B$14)^(F20-Indata!B$8+Indata!B$10)*(1)^(F20+Indata!B$10-Indata!B$17)/(1+Indata!B$7)^(F20+Indata!B$10-Indata!B$9),(1+Indata!B$14)^((Indata!B$12-Indata!B$10)-Indata!B$8+Indata!B$10)*(1+Indata!B$15)^(F20+Indata!B$10-Indata!B$12)*(1)^(F20+Indata!B$10-Indata!B$17)/(1+Indata!B$7)^(F20+Indata!B$10-Indata!B$9)),(1+Indata!B$14)^((Indata!B$12-Indata!B$10)-Indata!B$8+Indata!B$10)*(1+Indata!B$15)^((Indata!B$13-Indata!B$10)+Indata!B$10-Indata!B$12)*(1+Stödberäkningar!G$106)^(F20+Indata!B$10-Indata!B$13)*(1)^(F20+Indata!B$10-Indata!B$17)/(1+Indata!B$7)^(F20+Indata!B$10-Indata!B$9))","v":0.53061081976355329}]
["Privat+Tjänste",{"$f":"B7*(1-Tidsvärden!B9)+B19*Tidsvärden!B9","v":176.99630776226559},null,null,null,18,15.44907419955028,{"$f":"IF((Indata!B$10+F21)<Indata!B$13,IF((Indata!B$10+F21)<Indata!B$12,(1+Indata!B$14)^(F21-Indata!B$8+Indata!B$10)*(1+Indata!B$16)^(F21+Indata!B$10-Indata!B$17)/(1+Indata!B$7)^(F21+Indata!B$10-Indata!B$9),(1+Indata!B$14)^((Indata!B$12-Indata!B$10)-Indata!B$8+Indata!B$10)*(1+Indata!B$15)^(F21+Indata!B$10-Indata!B$12)*(1+Indata!B$16)^(F21+Indata!B$10-Indata!B$17)/(1+Indata!B$7)^(F21+Indata!B$10-Indata!B$9)),(1+Indata!B$14)^((Indata!B$12-Indata!B$10)-Indata!B$8+Indata!B$10)*(1+Indata!B$15)^((Indata!B$13-Indata!B$10)+Indata!B$10-Indata!B$12)*(1+Stödberäkningar!G$106)^(F21+Indata!B$10-Indata!B$13)*(1+Indata!B$16)^(Indata!B$13-Indata!B$17)/(1+Indata!B$7)^(F21+Indata!B$10-Indata!B$9))","v":0.72138623572537819},null,null,null,null,null,null,null,null,null,null,null,18,12.369985607249442,{"$f":"IF((Indata!B$10+F21)<Indata!B$13,IF((Indata!B$10+F21)<Indata!B$12,(1+Indata!B$14)^(F21-Indata!B$8+Indata!B$10)*(1)^(F21+Indata!B$10-Indata!B$17)/(1+Indata!B$7)^(F21+Indata!B$10-Indata!B$9),(1+Indata!B$14)^((Indata!B$12-Indata!B$10)-Indata!B$8+Indata!B$10)*(1+Indata!B$15)^(F21+Indata!B$10-Indata!B$12)*(1)^(F21+Indata!B$10-Indata!B$17)/(1+Indata!B$7)^(F21+Indata!B$10-Indata!B$9)),(1+Indata!B$14)^((Indata!B$12-Indata!B$10)-Indata!B$8+Indata!B$10)*(1+Indata!B$15)^((Indata!B$13-Indata!B$10)+Indata!B$10-Indata!B$12)*(1+Stödberäkningar!G$106)^(F21+Indata!B$10-Indata!B$13)*(1)^(F21+Indata!B$10-Indata!B$17)/(1+Indata!B$7)^(F21+Indata!B$10-Indata!B$9))","v":0.51779413329583468}]
["Privat+Tjänste, KA tidsvärde 95kr",{"$f":"B13*(1-Tidsvärden!B9)+B19*Tidsvärden!B9","v":182.85076258399997},null,null,null,19,16.161131203618474,{"$f":"IF((Indata!B$10+F22)<Indata!B$13,IF((Indata!B$10+F22)<Indata!B$12,(1+Indata!B$14)^(F22-Indata!B$8+Indata!B$10)*(1+Indata!B$16)^(F22+Indata!B$10-Indata!B$17)/(1+Indata!B$7)^(F22+Indata!B$10-Indata!B$9),(1+Indata!B$14)^((Indata!B$12-Indata!B$10)-Indata!B$8+Indata!B$10)*(1+Indata!B$15)^(F22+Indata!B$10-Indata!B$12)*(1+Indata!B$16)^(F22+Indata!B$10-Indata!B$17)/(1+Indata!B$7)^(F22+Indata!B$10-Indata!B$9)),(1+Indata!B$14)^((Indata!B$12-Indata!B$10)-Indata!B$8+Indata!B$10)*(1+Indata!B$15)^((Indata!B$13-Indata!B$10)+Indata!B$10-Indata!B$12)*(1+Stödberäkningar!G$106)^(F22+Indata!B$10-Indata!B$13)*(1+Indata!B$16)^(Indata!B$13-Indata!B$17)/(1+Indata!B$7)^(F22+Indata!B$10-Indata!B$9))","v":0.71205700406819561},null,null,null,null,null,null,null,null,null,null,null,19,12.875272635876295,{"$f":"IF((Indata!B$10+F22)<Indata!B$13,IF((Indata!B$10+F22)<Indata!B$12,(1+Indata!B$14)^(F22-Indata!B$8+Indata!B$10)*(1)^(F22+Indata!B$10-Indata!B$17)/(1+Indata!B$7)^(F22+Indata!B$10-Indata!B$9),(1+Indata!B$14)^((Indata!B$12-Indata!B$10)-Indata!B$8+Indata!B$10)*(1+Indata!B$15)^(F22+Indata!B$10-Indata!B$12)*(1)^(F22+Indata!B$10-Indata!B$17)/(1+Indata!B$7)^(F22+Indata!B$10-Indata!B$9)),(1+Indata!B$14)^((Indata!B$12-Indata!B$10)-Indata!B$8+Indata!B$10)*(1+Indata!B$15)^((Indata!B$13-Indata!B$10)+Indata!B$10-Indata!B$12)*(1+Stödberäkningar!G$106)^(F22+Indata!B$10-Indata!B$13)*(1)^(F22+Indata!B$10-Indata!B$17)/(1+Indata!B$7)^(F22+Indata!B$10-Indata!B$9))","v":0.50528702862685326}]
[null,null,null,null,null,20,16.863979625078503,{"$f":"IF((Indata!B$10+F23)<Indata!B$13,IF((Indata!B$10+F23)<Indata!B$12,(1+Indata!B$14)^(F23-Indata!B$8+Indata!B$10)*(1+Indata!B$16)^(F23+Indata!B$10-Indata!B$17)/(1+Indata!B$7)^(F23+Indata!B$10-Indata!B$9),(1+Indata!B$14)^((Indata!B$12-Indata!B$10)-Indata!B$8+Indata!B$10)*(1+Indata!B$15)^(F23+Indata!B$10-Indata!B$12)*(1+Indata!B$16)^(F23+Indata!B$10-Indata!B$17)/(1+Indata!B$7)^(F23+Indata!B$10-Indata!B$9)),(1+Indata!B$14)^((Indata!B$12-Indata!B$10)-Indata!B$8+Indata!B$10)*(1+Indata!B$15)^((Indata!B$13-Indata!B$10)+Indata!B$10-Indata!B$12)*(1+Stödberäkningar!G$106)^(F23+Indata!B$10-Indata!B$13)*(1+Indata!B$16)^(Indata!B$13-Indata!B$17)/(1+Indata!B$7)^(F23+Indata!B$10-Indata!B$9))","v":0.70284842146002879},null,null,null,null,null,null,null,null,null,null,null,20,13.368354663811678,{"$f":"IF((Indata!B$10+F23)<Indata!B$13,IF((Indata!B$10+F23)<Indata!B$12,(1+Indata!B$14)^(F23-Indata!B$8+Indata!B$10)*(1)^(F23+Indata!B$10-Indata!B$17)/(1+Indata!B$7)^(F23+Indata!B$10-Indata!B$9),(1+Indata!B$14)^((Indata!B$12-Indata!B$10)-Indata!B$8+Indata!B$10)*(1+Indata!B$15)^(F23+Indata!B$10-Indata!B$12)*(1)^(F23+Indata!B$10-Indata!B$17)/(1+Indata!B$7)^(F23+Indata!B$10-Indata!B$9)),(1+Indata!B$14)^((Indata!B$12-Indata!B$10)-Indata!B$8+Indata!B$10)*(1+Indata!B$15)^((Indata!B$13-Indata!B$10)+Indata!B$10-Indata!B$12)*(1+Stödberäkningar!G$106)^(F23+Indata!B$10-Indata!B$13)*(1)^(F23+Indata!B$10-Indata!B$17)/(1+Indata!B$7)^(F23+Indata!B$10-Indata!B$9))","v":0.49308202793538336}]
[null,null,null,null,null,21,17.557738552701583,{"$f":"IF((Indata!B$10+F24)<Indata!B$13,IF((Indata!B$10+F24)<Indata!B$12,(1+Indata!B$14)^(F24-Indata!B$8+Indata!B$10)*(1+Indata!B$16)^(F24+Indata!B$10-Indata!B$17)/(1+Indata!B$7)^(F24+Indata!B$10-Indata!B$9),(1+Indata!B$14)^((Indata!B$12-Indata!B$10)-Indata!B$8+Indata!B$10)*(1+Indata!B$15)^(F24+Indata!B$10-Indata!B$12)*(1+Indata!B$16)^(F24+Indata!B$10-Indata!B$17)/(1+Indata!B$7)^(F24+Indata!B$10-Indata!B$9)),(1+Indata!B$14)^((Indata!B$12-Indata!B$10)-Indata!B$8+Indata!B$10)*(1+Indata!B$15)^((Indata!B$13-Indata!B$10)+Indata!B$10-Indata!B$12)*(1+Stödberäkningar!G$106)^(F24+Indata!B$10-Indata!B$13)*(1+Indata!B$16)^(Indata!B$13-Indata!B$17)/(1+Indata!B$7)^(F24+Indata!B$10-Indata!B$9))","v":0.69375892762307978},null,null,null,null,null,null,null,null,null,null,null,21,13.849526497835578,{"$f":"IF((Indata!B$10+F24)<Indata!B$13,IF((Indata!B$10+F24)<Indata!B$12,(1+Indata!B$14)^(F24-Indata!B$8+Indata!B$10)*(1)^(F24+Indata!B$10-Indata!B$17)/(1+Indata!B$7)^(F24+Indata!B$10-Indata!B$9),(1+Indata!B$14)^((Indata!B$12-Indata!B$10)-Indata!B$8+Indata!B$10)*(1+Indata!B$15)^(F24+Indata!B$10-Indata!B$12)*(1)^(F24+Indata!B$10-Indata!B$17)/(1+Indata!B$7)^(F24+Indata!B$10-Indata!B$9)),(1+Indata!B$14)^((Indata!B$12-Indata!B$10)-Indata!B$8+Indata!B$10)*(1+Indata!B$15)^((Indata!B$13-Indata!B$10)+Indata!B$10-Indata!B$12)*(1+Stödberäkningar!G$106)^(F24+Indata!B$10-Indata!B$13)*(1)^(F24+Indata!B$10-Indata!B$17)/(1+Indata!B$7)^(F24+Indata!B$10-Indata!B$9))","v":0.48117183402390074}]
[null,null,null,null,null,22,18.242525535159217,{"$f":"IF((Indata!B$10+F25)<Indata!B$13,IF((Indata!B$10+F25)<Indata!B$12,(1+Indata!B$14)^(F25-Indata!B$8+Indata!B$10)*(1+Indata!B$16)^(F25+Indata!B$10-Indata!B$17)/(1+Indata!B$7)^(F25+Indata!B$10-Indata!B$9),(1+Indata!B$14)^((Indata!B$12-Indata!B$10)-Indata!B$8+Indata!B$10)*(1+Indata!B$15)^(F25+Indata!B$10-Indata!B$12)*(1+Indata!B$16)^(F25+Indata!B$10-Indata!B$17)/(1+Indata!B$7)^(F25+Indata!B$10-Indata!B$9)),(1+Indata!B$14)^((Indata!B$12-Indata!B$10)-Indata!B$8+Indata!B$10)*(1+Indata!B$15)^((Indata!B$13-Indata!B$10)+Indata!B$10-Indata!B$12)*(1+Stödberäkningar!G$106)^(F25+Indata!B$10-Indata!B$13)*(1+Indata!B$16)^(Indata!B$13-Indata!B$17)/(1+Indata!B$7)^(F25+Indata!B$10-Indata!B$9))","v":0.68478698245763536},null,null,null,null,null,null,null,null,null,null,null,22,14.319075823791268,{"$f":"IF((Indata!B$10+F25)<Indata!B$13,IF((Indata!B$10+F25)<Indata!B$12,(1+Indata!B$14)^(F25-Indata!B$8+Indata!B$10)*(1)^(F25+Indata!B$10-Indata!B$17)/(1+Indata!B$7)^(F25+Indata!B$10-Indata!B$9),(1+Indata!B$14)^((Indata!B$12-Indata!B$10)-Indata!B$8+Indata!B$10)*(1+Indata!B$15)^(F25+Indata!B$10-Indata!B$12)*(1)^(F25+Indata!B$10-Indata!B$17)/(1+Indata!B$7)^(F25+Indata!B$10-Indata!B$9)),(1+Indata!B$14)^((Indata!B$12-Indata!B$10)-Indata!B$8+Indata!B$10)*(1+Indata!B$15)^((Indata!B$13-Indata!B$10)+Indata!B$10-Indata!B$12)*(1+Stödberäkningar!G$106)^(F25+Indata!B$10-Indata!B$13)*(1)^(F25+Indata!B$10-Indata!B$17)/(1+Indata!B$7)^(F25+Indata!B$10-Indata!B$9))","v":0.46954932595569054}]
[null,null,null,null,null,23,18.918456600940335,{"$f":"IF((Indata!B$10+F26)<Indata!B$13,IF((Indata!B$10+F26)<Indata!B$12,(1+Indata!B$14)^(F26-Indata!B$8+Indata!B$10)*(1+Indata!B$16)^(F26+Indata!B$10-Indata!B$17)/(1+Indata!B$7)^(F26+Indata!B$10-Indata!B$9),(1+Indata!B$14)^((Indata!B$12-Indata!B$10)-Indata!B$8+Indata!B$10)*(1+Indata!B$15)^(F26+Indata!B$10-Indata!B$12)*(1+Indata!B$16)^(F26+Indata!B$10-Indata!B$17)/(1+Indata!B$7)^(F26+Indata!B$10-Indata!B$9)),(1+Indata!B$14)^((Indata!B$12-Indata!B$10)-Indata!B$8+Indata!B$10)*(1+Indata!B$15)^((Indata!B$13-Indata!B$10)+Indata!B$10-Indata!B$12)*(1+Stödberäkningar!G$106)^(F26+Indata!B$10-Indata!B$13)*(1+Indata!B$16)^(Indata!B$13-Indata!B$17)/(1+Indata!B$7)^(F26+Indata!B$10-Indata!B$9))","v":0.67593106578111839},null,null,null,null,null,null,null,null,null,null,null,23,14.777283378588608,{"$f":"IF((Indata!B$10+F26)<Indata!B$13,IF((Indata!B$10+F26)<Indata!B$12,(1+Indata!B$14)^(F26-Indata!B$8+Indata!B$10)*(1)^(F26+Indata!B$10-Indata!B$17)/(1+Indata!B$7)^(F26+Indata!B$10-Indata!B$9),(1+Indata!B$14)^((Indata!B$12-Indata!B$10)-Indata!B$8+Indata!B$10)*(1+Indata!B$15)^(F26+Indata!B$10-Indata!B$12)*(1)^(F26+Indata!B$10-Indata!B$17)/(1+Indata!B$7)^(F26+Indata!B$10-Indata!B$9)),(1+Indata!B$14)^((Indata!B$12-Indata!B$10)-Indata!B$8+Indata!B$10)*(1+Indata!B$15)^((Indata!B$13-Indata!B$10)+Indata!B$10-Indata!B$12)*(1+Stödberäkningar!G$106)^(F26+Indata!B$10-Indata!B$13)*(1)^(F26+Indata!B$10-Indata!B$17)/(1+Indata!B$7)^(F26+Indata!B$10-Indata!B$9))","v":0.45820755479734071}]
[null,null,null,null,null,24,19.585646278010845,{"$f":"IF((Indata!B$10+F27)<Indata!B$13,IF((Indata!B$10+F27)<Indata!B$12,(1+Indata!B$14)^(F27-Indata!B$8+Indata!B$10)*(1+Indata!B$16)^(F27+Indata!B$10-Indata!B$17)/(1+Indata!B$7)^(F27+Indata!B$10-Indata!B$9),(1+Indata!B$14)^((Indata!B$12-Indata!B$10)-Indata!B$8+Indata!B$10)*(1+Indata!B$15)^(F27+Indata!B$10-Indata!B$12)*(1+Indata!B$16)^(F27+Indata!B$10-Indata!B$17)/(1+Indata!B$7)^(F27+Indata!B$10-Indata!B$9)),(1+Indata!B$14)^((Indata!B$12-Indata!B$10)-Indata!B$8+Indata!B$10)*(1+Indata!B$15)^((Indata!B$13-Indata!B$10)+Indata!B$10-Indata!B$12)*(1+Stödberäkningar!G$106)^(F27+Indata!B$10-Indata!B$13)*(1+Indata!B$16)^(Indata!B$13-Indata!B$17)/(1+Indata!B$7)^(F27+Indata!B$10-Indata!B$9))","v":0.66718967707050958},null,null,null,null,null,null,null,null,null,null,null,24,15.22442311805268,{"$f":"IF((Indata!B$10+F27)<Indata!B$13,IF((Indata!B$10+F27)<Indata!B$12,(1+Indata!B$14)^(F27-Indata!B$8+Indata!B$10)*(1)^(F27+Indata!B$10-Indata!B$17)/(1+Indata!B$7)^(F27+Indata!B$10-Indata!B$9),(1+Indata!B$14)^((Indata!B$12-Indata!B$10)-Indata!B$8+Indata!B$10)*(1+Indata!B$15)^(F27+Indata!B$10-Indata!B$12)*(1)^(F27+Indata!B$10-Indata!B$17)/(1+Indata!B$7)^(F27+Indata!B$10-Indata!B$9)),(1+Indata!B$14)^((Indata!B$12-Indata!B$10)-Indata!B$8+Indata!B$10)*(1+Indata!B$15)^((Indata!B$13-Indata!B$10)+Indata!B$10-Indata!B$12)*(1+Stödberäkningar!G$106)^(F27+Indata!B$10-Indata!B$13)*(1)^(F27+Indata!B$10-Indata!B$17)/(1+Indata!B$7)^(F27+Indata!B$10-Indata!B$9))","v":0.44713973946407165}]
[null,null,null,null,null,25,20.244207613218951,{"$f":"IF((Indata!B$10+F28)<Indata!B$13,IF((Indata!B$10+F28)<Indata!B$12,(1+Indata!B$14)^(F28-Indata!B$8+Indata!B$10)*(1+Indata!B$16)^(F28+Indata!B$10-Indata!B$17)/(1+Indata!B$7)^(F28+Indata!B$10-Indata!B$9),(1+Indata!B$14)^((Indata!B$12-Indata!B$10)-Indata!B$8+Indata!B$10)*(1+Indata!B$15)^(F28+Indata!B$10-Indata!B$12)*(1+Indata!B$16)^(F28+Indata!B$10-Indata!B$17)/(1+Indata!B$7)^(F28+Indata!B$10-Indata!B$9)),(1+Indata!B$14)^((Indata!B$12-Indata!B$10)-Indata!B$8+Indata!B$10)*(1+Indata!B$15)^((Indata!B$13-Indata!B$10)+Indata!B$10-Indata!B$12)*(1+Stödberäkningar!G$106)^(F28+Indata!B$10-Indata!B$13)*(1+Indata!B$16)^(Indata!B$13-Indata!B$17)/(1+Indata!B$7)^(F28+Indata!B$10-Indata!B$9))","v":0.65856133520810489},null,null,null,null,null,null,null,null,null,null,null,25,15.660762380718102,{"$f":"IF((Indata!B$10+F28)<Indata!B$13,IF((Indata!B$10+F28)<Indata!B$12,(1+Indata!B$14)^(F28-Indata!B$8+Indata!B$10)*(1)^(F28+Indata!B$10-Indata!B$17)/(1+Indata!B$7)^(F28+Indata!B$10-Indata!B$9),(1+Indata!B$14)^((Indata!B$12-Indata!B$10)-Indata!B$8+Indata!B$10)*(1+Indata!B$15)^(F28+Indata!B$10-Indata!B$12)*(1)^(F28+Indata!B$10-Indata!B$17)/(1+Indata!B$7)^(F28+Indata!B$10-Indata!B$9)),(1+Indata!B$14)^((Indata!B$12-Indata!B$10)-Indata!B$8+Indata!B$10)*(1+Indata!B$15)^((Indata!B$13-Indata!B$10)+Indata!B$10-Indata!B$12)*(1+Stödberäkningar!G$106)^(F28+Indata!B$10-Indata!B$13)*(1)^(F28+Indata!B$10-Indata!B$17)/(1+Indata!B$7)^(F28+Indata!B$10-Indata!B$9))","v":0.43633926266542261}]
[null,null,null,null,null,26,20.89425219144951,{"$f":"IF((Indata!B$10+F29)<Indata!B$13,IF((Indata!B$10+F29)<Indata!B$12,(1+Indata!B$14)^(F29-Indata!B$8+Indata!B$10)*(1+Indata!B$16)^(F29+Indata!B$10-Indata!B$17)/(1+Indata!B$7)^(F29+Indata!B$10-Indata!B$9),(1+Indata!B$14)^((Indata!B$12-Indata!B$10)-Indata!B$8+Indata!B$10)*(1+Indata!B$15)^(F29+Indata!B$10-Indata!B$12)*(1+Indata!B$16)^(F29+Indata!B$10-Indata!B$17)/(1+Indata!B$7)^(F29+Indata!B$10-Indata!B$9)),(1+Indata!B$14)^((Indata!B$12-Indata!B$10)-Indata!B$8+Indata!B$10)*(1+Indata!B$15)^((Indata!B$13-Indata!B$10)+Indata!B$10-Indata!B$12)*(1+Stödberäkningar!G$106)^(F29+Indata!B$10-Indata!B$13)*(1+Indata!B$16)^(Indata!B$13-Indata!B$17)/(1+Indata!B$7)^(F29+Indata!B$10-Indata!B$9))","v":0.65004457823055839},null,null,null,null,null,null,null,null,null,null,null,26,16.08656204766697,{"$f":"IF((Indata!B$10+F29)<Indata!B$13,IF((Indata!B$10+F29)<Indata!B$12,(1+Indata!B$14)^(F29-Indata!B$8+Indata!B$10)*(1)^(F29+Indata!B$10-Indata!B$17)/(1+Indata!B$7)^(F29+Indata!B$10-Indata!B$9),(1+Indata!B$14)^((Indata!B$12-Indata!B$10)-Indata!B$8+Indata!B$10)*(1+Indata!B$15)^(F29+Indata!B$10-Indata!B$12)*(1)^(F29+Indata!B$10-Indata!B$17)/(1+Indata!B$7)^(F29+Indata!B$10-Indata!B$9)),(1+Indata!B$14)^((Indata!B$12-Indata!B$10)-Indata!B$8+Indata!B$10)*(1+Indata!B$15)^((Indata!B$13-Indata!B$10)+Indata!B$10-Indata!B$12)*(1+Stödberäkningar!G$106)^(F29+Indata!B$10-Indata!B$13)*(1)^(F29+Indata!B$10-Indata!B$17)/(1+Indata!B$7)^(F29+Indata!B$10-Indata!B$9))","v":0.4257996669488664}]
[null,null,null,null,null,27,21.53589015453068,{"$f":"IF((Indata!B$10+F30)<Indata!B$13,IF((Indata!B$10+F30)<Indata!B$12,(1+Indata!B$14)^(F30-Indata!B$8+Indata!B$10)*(1+Indata!B$16)^(F30+Indata!B$10-Indata!B$17)/(1+Indata!B$7)^(F30+Indata!B$10-Indata!B$9),(1+Indata!B$14)^((Indata!B$12-Indata!B$10)-Indata!B$8+Indata!B$10)*(1+Indata!B$15)^(F30+Indata!B$10-Indata!B$12)*(1+Indata!B$16)^(F30+Indata!B$10-Indata!B$17)/(1+Indata!B$7)^(F30+Indata!B$10-Indata!B$9)),(1+Indata!B$14)^((Indata!B$12-Indata!B$10)-Indata!B$8+Indata!B$10)*(1+Indata!B$15)^((Indata!B$13-Indata!B$10)+Indata!B$10-Indata!B$12)*(1+Stödberäkningar!G$106)^(F30+Indata!B$10-Indata!B$13)*(1+Indata!B$16)^(Indata!B$13-Indata!B$17)/(1+Indata!B$7)^(F30+Indata!B$10-Indata!B$9))","v":0.64163796308117127},null,null,null,null,null,null,null,null,null,null,null,27,16.502076698505959,{"$f":"IF((Indata!B$10+F30)<Indata!B$13,IF((Indata!B$10+F30)<Indata!B$12,(1+Indata!B$14)^(F30-Indata!B$8+Indata!B$10)*(1)^(F30+Indata!B$10-Indata!B$17)/(1+Indata!B$7)^(F30+Indata!B$10-Indata!B$9),(1+Indata!B$14)^((Indata!B$12-Indata!B$10)-Indata!B$8+Indata!B$10)*(1+Indata!B$15)^(F30+Indata!B$10-Indata!B$12)*(1)^(F30+Indata!B$10-Indata!B$17)/(1+Indata!B$7)^(F30+Indata!B$10-Indata!B$9)),(1+Indata!B$14)^((Indata!B$12-Indata!B$10)-Indata!B$8+Indata!B$10)*(1+Indata!B$15)^((Indata!B$13-Indata!B$10)+Indata!B$10-Indata!B$12)*(1+Stödberäkningar!G$106)^(F30+Indata!B$10-Indata!B$13)*(1)^(F30+Indata!B$10-Indata!B$17)/(1+Indata!B$7)^(F30+Indata!B$10-Indata!B$9))","v":0.41551465083899053}]
[null,null,null,null,null,28,22.169230219896061,{"$f":"IF((Indata!B$10+F31)<Indata!B$13,IF((Indata!B$10+F31)<Indata!B$12,(1+Indata!B$14)^(F31-Indata!B$8+Indata!B$10)*(1+Indata!B$16)^(F31+Indata!B$10-Indata!B$17)/(1+Indata!B$7)^(F31+Indata!B$10-Indata!B$9),(1+Indata!B$14)^((Indata!B$12-Indata!B$10)-Indata!B$8+Indata!B$10)*(1+Indata!B$15)^(F31+Indata!B$10-Indata!B$12)*(1+Indata!B$16)^(F31+Indata!B$10-Indata!B$17)/(1+Indata!B$7)^(F31+Indata!B$10-Indata!B$9)),(1+Indata!B$14)^((Indata!B$12-Indata!B$10)-Indata!B$8+Indata!B$10)*(1+Indata!B$15)^((Indata!B$13-Indata!B$10)+Indata!B$10-Indata!B$12)*(1+Stödberäkningar!G$106)^(F31+Indata!B$10-Indata!B$13)*(1+Indata!B$16)^(Indata!B$13-Indata!B$17)/(1+Indata!B$7)^(F31+Indata!B$10-Indata!B$9))","v":0.63334006536538245},null,null,null,null,null,null,null,null,null,null,null,28,16.907554763575892,{"$f":"IF((Indata!B$10+F31)<Indata!B$13,IF((Indata!B$10+F31)<Indata!B$12,(1+Indata!B$14)^(F31-Indata!B$8+Indata!B$10)*(1)^(F31+Indata!B$10-Indata!B$17)/(1+Indata!B$7)^(F31+Indata!B$10-Indata!B$9),(1+Indata!B$14)^((Indata!B$12-Indata!B$10)-Indata!B$8+Indata!B$10)*(1+Indata!B$15)^(F31+Indata!B$10-Indata!B$12)*(1)^(F31+Indata!B$10-Indata!B$17)/(1+Indata!B$7)^(F31+Indata!B$10-Indata!B$9)),(1+Indata!B$14)^((Indata!B$12-Indata!B$10)-Indata!B$8+Indata!B$10)*(1+Indata!B$15)^((Indata!B$13-Indata!B$10)+Indata!B$10-Indata!B$12)*(1+Stödberäkningar!G$106)^(F31+Indata!B$10-Indata!B$13)*(1)^(F31+Indata!B$10-Indata!B$17)/(1+Indata!B$7)^(F31+Indata!B$10-Indata!B$9))","v":0.40547806506993272}]
[null,null,null,null,null,29,22.794379699005486,{"$f":"IF((Indata!B$10+F32)<Indata!B$13,IF((Indata!B$10+F32)<Indata!B$12,(1+Indata!B$14)^(F32-Indata!B$8+Indata!B$10)*(1+Indata!B$16)^(F32+Indata!B$10-Indata!B$17)/(1+Indata!B$7)^(F32+Indata!B$10-Indata!B$9),(1+Indata!B$14)^((Indata!B$12-Indata!B$10)-Indata!B$8+Indata!B$10)*(1+Indata!B$15)^(F32+Indata!B$10-Indata!B$12)*(1+Indata!B$16)^(F32+Indata!B$10-Indata!B$17)/(1+Indata!B$7)^(F32+Indata!B$10-Indata!B$9)),(1+Indata!B$14)^((Indata!B$12-Indata!B$10)-Indata!B$8+Indata!B$10)*(1+Indata!B$15)^((Indata!B$13-Indata!B$10)+Indata!B$10-Indata!B$12)*(1+Stödberäkningar!G$106)^(F32+Indata!B$10-Indata!B$13)*(1+Indata!B$16)^(Indata!B$13-Indata!B$17)/(1+Indata!B$7)^(F32+Indata!B$10-Indata!B$9))","v":0.62514947910942553},null,null,null,null,null,null,null,null,null,null,null,29,17.303238672484714,{"$f":"IF((Indata!B$10+F32)<Indata!B$13,IF((Indata!B$10+F32)<Indata!B$12,(1+Indata!B$14)^(F32-Indata!B$8+Indata!B$10)*(1)^(F32+Indata!B$10-Indata!B$17)/(1+Indata!B$7)^(F32+Indata!B$10-Indata!B$9),(1+Indata!B$14)^((Indata!B$12-Indata!B$10)-Indata!B$8+Indata!B$10)*(1+Indata!B$15)^(F32+Indata!B$10-Indata!B$12)*(1)^(F32+Indata!B$10-Indata!B$17)/(1+Indata!B$7)^(F32+Indata!B$10-Indata!B$9)),(1+Indata!B$14)^((Indata!B$12-Indata!B$10)-Indata!B$8+Indata!B$10)*(1+Indata!B$15)^((Indata!B$13-Indata!B$10)+Indata!B$10-Indata!B$12)*(1+Stödberäkningar!G$106)^(F32+Indata!B$10-Indata!B$13)*(1)^(F32+Indata!B$10-Indata!B$17)/(1+Indata!B$7)^(F32+Indata!B$10-Indata!B$9))","v":0.39568390890882338}]
[null,null,null,null,null,30,23.411444515527588,{"$f":"IF((Indata!B$10+F33)<Indata!B$13,IF((Indata!B$10+F33)<Indata!B$12,(1+Indata!B$14)^(F33-Indata!B$8+Indata!B$10)*(1+Indata!B$16)^(F33+Indata!B$10-Indata!B$17)/(1+Indata!B$7)^(F33+Indata!B$10-Indata!B$9),(1+Indata!B$14)^((Indata!B$12-Indata!B$10)-Indata!B$8+Indata!B$10)*(1+Indata!B$15)^(F33+Indata!B$10-Indata!B$12)*(1+Indata!B$16)^(F33+Indata!B$10-Indata!B$17)/(1+Indata!B$7)^(F33+Indata!B$10-Indata!B$9)),(1+Indata!B$14)^((Indata!B$12-Indata!B$10)-Indata!B$8+Indata!B$10)*(1+Indata!B$15)^((Indata!B$13-Indata!B$10)+Indata!B$10-Indata!B$12)*(1+Stödberäkningar!G$106)^(F33+Indata!B$10-Indata!B$13)*(1+Indata!B$16)^(Indata!B$13-Indata!B$17)/(1+Indata!B$7)^(F33+Indata!B$10-Indata!B$9))","v":0.61706481652210221},null,null,null,null,null,null,null,null,null,null,null,30,17.689364999052746,{"$f":"IF((Indata!B$10+F33)<Indata!B$13,IF((Indata!B$10+F33)<Indata!B$12,(1+Indata!B$14)^(F33-Indata!B$8+Indata!B$10)*(1)^(F33+Indata!B$10-Indata!B$17)/(1+Indata!B$7)^(F33+Indata!B$10-Indata!B$9),(1+Indata!B$14)^((Indata!B$12-Indata!B$10)-Indata!B$8+Indata!B$10)*(1+Indata!B$15)^(F33+Indata!B$10-Indata!B$12)*(1)^(F33+Indata!B$10-Indata!B$17)/(1+Indata!B$7)^(F33+Indata!B$10-Indata!B$9)),(1+Indata!B$14)^((Indata!B$12-Indata!B$10)-Indata!B$8+Indata!B$10)*(1+Indata!B$15)^((Indata!B$13-Indata!B$10)+Indata!B$10-Indata!B$12)*(1+Stödberäkningar!G$106)^(F33+Indata!B$10-Indata!B$13)*(1)^(F33+Indata!B$10-Indata!B$17)/(1+Indata!B$7)^(F33+Indata!B$10-Indata!B$9))","v":0.38612632656803053}]
[null,null,null,null,null,31,24.020529223287227,{"$f":"IF((Indata!B$10+F34)<Indata!B$13,IF((Indata!B$10+F34)<Indata!B$12,(1+Indata!B$14)^(F34-Indata!B$8+Indata!B$10)*(1+Indata!B$16)^(F34+Indata!B$10-Indata!B$17)/(1+Indata!B$7)^(F34+Indata!B$10-Indata!B$9),(1+Indata!B$14)^((Indata!B$12-Indata!B$10)-Indata!B$8+Indata!B$10)*(1+Indata!B$15)^(F34+Indata!B$10-Indata!B$12)*(1+Indata!B$16)^(F34+Indata!B$10-Indata!B$17)/(1+Indata!B$7)^(F34+Indata!B$10-Indata!B$9)),(1+Indata!B$14)^((Indata!B$12-Indata!B$10)-Indata!B$8+Indata!B$10)*(1+Indata!B$15)^((Indata!B$13-Indata!B$10)+Indata!B$10-Indata!B$12)*(1+Stödberäkningar!G$106)^(F34+Indata!B$10-Indata!B$13)*(1+Indata!B$16)^(Indata!B$13-Indata!B$17)/(1+Indata!B$7)^(F34+Indata!B$10-Indata!B$9))","v":0.6090847077596403},null,null,null,null,null,null,null,null,null,null,null,31,18.066164602756814,{"$f":"IF((Indata!B$10+F34)<Indata!B$13,IF((Indata!B$10+F34)<Indata!B$12,(1+Indata!B$14)^(F34-Indata!B$8+Indata!B$10)*(1)^(F34+Indata!B$10-Indata!B$17)/(1+Indata!B$7)^(F34+Indata!B$10-Indata!B$9),(1+Indata!B$14)^((Indata!B$12-Indata!B$10)-Indata!B$8+Indata!B$10)*(1+Indata!B$15)^(F34+Indata!B$10-Indata!B$12)*(1)^(F34+Indata!B$10-Indata!B$17)/(1+Indata!B$7)^(F34+Indata!B$10-Indata!B$9)),(1+Indata!B$14)^((Indata!B$12-Indata!B$10)-Indata!B$8+Indata!B$10)*(1+Indata!B$15)^((Indata!B$13-Indata!B$10)+Indata!B$10-Indata!B$12)*(1+Stödberäkningar!G$106)^(F34+Indata!B$10-Indata!B$13)*(1)^(F34+Indata!B$10-Indata!B$17)/(1+Indata!B$7)^(F34+Indata!B$10-Indata!B$9))","v":0.37679960370406856}]
[null,null,null,null,null,32,24.621737023980817,{"$f":"IF((Indata!B$10+F35)<Indata!B$13,IF((Indata!B$10+F35)<Indata!B$12,(1+Indata!B$14)^(F35-Indata!B$8+Indata!B$10)*(1+Indata!B$16)^(F35+Indata!B$10-Indata!B$17)/(1+Indata!B$7)^(F35+Indata!B$10-Indata!B$9),(1+Indata!B$14)^((Indata!B$12-Indata!B$10)-Indata!B$8+Indata!B$10)*(1+Indata!B$15)^(F35+Indata!B$10-Indata!B$12)*(1+Indata!B$16)^(F35+Indata!B$10-Indata!B$17)/(1+Indata!B$7)^(F35+Indata!B$10-Indata!B$9)),(1+Indata!B$14)^((Indata!B$12-Indata!B$10)-Indata!B$8+Indata!B$10)*(1+Indata!B$15)^((Indata!B$13-Indata!B$10)+Indata!B$10-Indata!B$12)*(1+Stödberäkningar!G$106)^(F35+Indata!B$10-Indata!B$13)*(1+Indata!B$16)^(Indata!B$13-Indata!B$17)/(1+Indata!B$7)^(F35+Indata!B$10-Indata!B$9))","v":0.60120780069358937},null,null,null,null,null,null,null,null,null,null,null,32,18.433862766757887,{"$f":"IF((Indata!B$10+F35)<Indata!B$13,IF((Indata!B$10+F35)<Indata!B$12,(1+Indata!B$14)^(F35-Indata!B$8+Indata!B$10)*(1)^(F35+Indata!B$10-Indata!B$17)/(1+Indata!B$7)^(F35+Indata!B$10-Indata!B$9),(1+Indata!B$14)^((Indata!B$12-Indata!B$10)-Indata!B$8+Indata!B$10)*(1+Indata!B$15)^(F35+Indata!B$10-Indata!B$12)*(1)^(F35+Indata!B$10-Indata!B$17)/(1+Indata!B$7)^(F35+Indata!B$10-Indata!B$9)),(1+Indata!B$14)^((Indata!B$12-Indata!B$10)-Indata!B$8+Indata!B$10)*(1+Indata!B$15)^((Indata!B$13-Indata!B$10)+Indata!B$10-Indata!B$12)*(1+Stödberäkningar!G$106)^(F35+Indata!B$10-Indata!B$13)*(1)^(F35+Indata!B$10-Indata!B$17)/(1+Indata!B$7)^(F35+Indata!B$10-Indata!B$9))","v":0.3676981640010718}]
[null,null,null,null,null,33,{"$f":"G35+H36","v":25.215169784662539},{"$f":"IF((Indata!B$10+F36)<Indata!B$13,IF((Indata!B$10+F36)<Indata!B$12,(1+Indata!B$14)^(F36-Indata!B$8+Indata!B$10)*(1+Indata!B$16)^(F36+Indata!B$10-Indata!B$17)/(1+Indata!B$7)^(F36+Indata!B$10-Indata!B$9),(1+Indata!B$14)^((Indata!B$12-Indata!B$10)-Indata!B$8+Indata!B$10)*(1+Indata!B$15)^(F36+Indata!B$10-Indata!B$12)*(1+Indata!B$16)^(F36+Indata!B$10-Indata!B$17)/(1+Indata!B$7)^(F36+Indata!B$10-Indata!B$9)),(1+Indata!B$14)^((Indata!B$12-Indata!B$10)-Indata!B$8+Indata!B$10)*(1+Indata!B$15)^((Indata!B$13-Indata!B$10)+Indata!B$10-Indata!B$12)*(1+Stödberäkningar!G$106)^(F36+Indata!B$10-Indata!B$13)*(1+Indata!B$16)^(Indata!B$13-Indata!B$17)/(1+Indata!B$7)^(F36+Indata!B$10-Indata!B$9))","v":0.59343276068172124},null,null,null,null,null,null,null,null,null,null,null,33,18.79267933259468,{"$f":"IF((Indata!B$10+F36)<Indata!B$13,IF((Indata!B$10+F36)<Indata!B$12,(1+Indata!B$14)^(F36-Indata!B$8+Indata!B$10)*(1)^(F36+Indata!B$10-Indata!B$17)/(1+Indata!B$7)^(F36+Indata!B$10-Indata!B$9),(1+Indata!B$14)^((Indata!B$12-Indata!B$10)-Indata!B$8+Indata!B$10)*(1+Indata!B$15)^(F36+Indata!B$10-Indata!B$12)*(1)^(F36+Indata!B$10-Indata!B$17)/(1+Indata!B$7)^(F36+Indata!B$10-Indata!B$9)),(1+Indata!B$14)^((Indata!B$12-Indata!B$10)-Indata!B$8+Indata!B$10)*(1+Indata!B$15)^((Indata!B$13-Indata!B$10)+Indata!B$10-Indata!B$12)*(1+Stödberäkningar!G$106)^(F36+Indata!B$10-Indata!B$13)*(1)^(F36+Indata!B$10-Indata!B$17)/(1+Indata!B$7)^(F36+Indata!B$10-Indata!B$9))","v":0.35881656583679472}]
[null,null,null,null,null,34,25.80092805500443,{"$f":"IF((Indata!B$10+F37)<Indata!B$13,IF((Indata!B$10+F37)<Indata!B$12,(1+Indata!B$14)^(F37-Indata!B$8+Indata!B$10)*(1+Indata!B$16)^(F37+Indata!B$10-Indata!B$17)/(1+Indata!B$7)^(F37+Indata!B$10-Indata!B$9),(1+Indata!B$14)^((Indata!B$12-Indata!B$10)-Indata!B$8+Indata!B$10)*(1+Indata!B$15)^(F37+Indata!B$10-Indata!B$12)*(1+Indata!B$16)^(F37+Indata!B$10-Indata!B$17)/(1+Indata!B$7)^(F37+Indata!B$10-Indata!B$9)),(1+Indata!B$14)^((Indata!B$12-Indata!B$10)-Indata!B$8+Indata!B$10)*(1+Indata!B$15)^((Indata!B$13-Indata!B$10)+Indata!B$10-Indata!B$12)*(1+Stödberäkningar!G$106)^(F37+Indata!B$10-Indata!B$13)*(1+Indata!B$16)^(Indata!B$13-Indata!B$17)/(1+Indata!B$7)^(F37+Indata!B$10-Indata!B$9))","v":0.58575827034189043},null,null,null,null,null,null,null,null,null,null,null,34,19.142828831623824,{"$f":"IF((Indata!B$10+F37)<Indata!B$13,IF((Indata!B$10+F37)<Indata!B$12,(1+Indata!B$14)^(F37-Indata!B$8+Indata!B$10)*(1)^(F37+Indata!B$10-Indata!B$17)/(1+Indata!B$7)^(F37+Indata!B$10-Indata!B$9),(1+Indata!B$14)^((Indata!B$12-Indata!B$10)-Indata!B$8+Indata!B$10)*(1+Indata!B$15)^(F37+Indata!B$10-Indata!B$12)*(1)^(F37+Indata!B$10-Indata!B$17)/(1+Indata!B$7)^(F37+Indata!B$10-Indata!B$9)),(1+Indata!B$14)^((Indata!B$12-Indata!B$10)-Indata!B$8+Indata!B$10)*(1+Indata!B$15)^((Indata!B$13-Indata!B$10)+Indata!B$10-Indata!B$12)*(1+Stödberäkningar!G$106)^(F37+Indata!B$10-Indata!B$13)*(1)^(F37+Indata!B$10-Indata!B$17)/(1+Indata!B$7)^(F37+Indata!B$10-Indata!B$9))","v":0.35014949902914261}]
[null,null,null,null,null,35,26.379111084333253,{"$f":"IF((Indata!B$10+F38)<Indata!B$13,IF((Indata!B$10+F38)<Indata!B$12,(1+Indata!B$14)^(F38-Indata!B$8+Indata!B$10)*(1+Indata!B$16)^(F38+Indata!B$10-Indata!B$17)/(1+Indata!B$7)^(F38+Indata!B$10-Indata!B$9),(1+Indata!B$14)^((Indata!B$12-Indata!B$10)-Indata!B$8+Indata!B$10)*(1+Indata!B$15)^(F38+Indata!B$10-Indata!B$12)*(1+Indata!B$16)^(F38+Indata!B$10-Indata!B$17)/(1+Indata!B$7)^(F38+Indata!B$10-Indata!B$9)),(1+Indata!B$14)^((Indata!B$12-Indata!B$10)-Indata!B$8+Indata!B$10)*(1+Indata!B$15)^((Indata!B$13-Indata!B$10)+Indata!B$10-Indata!B$12)*(1+Stödberäkningar!G$106)^(F38+Indata!B$10-Indata!B$13)*(1+Indata!B$16)^(Indata!B$13-Indata!B$17)/(1+Indata!B$7)^(F38+Indata!B$10-Indata!B$9))","v":0.57818302932882171},null,null,null,null,null,null,null,null,null,null,null,35,19.484520613285113,{"$f":"IF((Indata!B$10+F38)<Indata!B$13,IF((Indata!B$10+F38)<Indata!B$12,(1+Indata!B$14)^(F38-Indata!B$8+Indata!B$10)*(1)^(F38+Indata!B$10-Indata!B$17)/(1+Indata!B$7)^(F38+Indata!B$10-Indata!B$9),(1+Indata!B$14)^((Indata!B$12-Indata!B$10)-Indata!B$8+Indata!B$10)*(1+Indata!B$15)^(F38+Indata!B$10-Indata!B$12)*(1)^(F38+Indata!B$10-Indata!B$17)/(1+Indata!B$7)^(F38+Indata!B$10-Indata!B$9)),(1+Indata!B$14)^((Indata!B$12-Indata!B$10)-Indata!B$8+Indata!B$10)*(1+Indata!B$15)^((Indata!B$13-Indata!B$10)+Indata!B$10-Indata!B$12)*(1+Stödberäkningar!G$106)^(F38+Indata!B$10-Indata!B$13)*(1)^(F38+Indata!B$10-Indata!B$17)/(1+Indata!B$7)^(F38+Indata!B$10-Indata!B$9))","v":0.341691781661289}]
[null,null,null,null,null,36,26.937742030544676,{"$f":"IF((Indata!B$10+F39)<Indata!B$13,IF((Indata!B$10+F39)<Indata!B$12,(1+Indata!B$14)^(F39-Indata!B$8+Indata!B$10)*(1+Indata!B$16)^(F39+Indata!B$10-Indata!B$17)/(1+Indata!B$7)^(F39+Indata!B$10-Indata!B$9),(1+Indata!B$14)^((Indata!B$12-Indata!B$10)-Indata!B$8+Indata!B$10)*(1+Indata!B$15)^(F39+Indata!B$10-Indata!B$12)*(1+Indata!B$16)^(F39+Indata!B$10-Indata!B$17)/(1+Indata!B$7)^(F39+Indata!B$10-Indata!B$9)),(1+Indata!B$14)^((Indata!B$12-Indata!B$10)-Indata!B$8+Indata!B$10)*(1+Indata!B$15)^((Indata!B$13-Indata!B$10)+Indata!B$10-Indata!B$12)*(1+Stödberäkningar!G$106)^(F39+Indata!B$10-Indata!B$13)*(1+Indata!B$16)^(Indata!B$13-Indata!B$17)/(1+Indata!B$7)^(F39+Indata!B$10-Indata!B$9))","v":0.55863094621142195},null,null,null,null,null,null,null,null,null,null,null,36,19.814657600397471,{"$f":"IF((Indata!B$10+F39)<Indata!B$13,IF((Indata!B$10+F39)<Indata!B$12,(1+Indata!B$14)^(F39-Indata!B$8+Indata!B$10)*(1)^(F39+Indata!B$10-Indata!B$17)/(1+Indata!B$7)^(F39+Indata!B$10-Indata!B$9),(1+Indata!B$14)^((Indata!B$12-Indata!B$10)-Indata!B$8+Indata!B$10)*(1+Indata!B$15)^(F39+Indata!B$10-Indata!B$12)*(1)^(F39+Indata!B$10-Indata!B$17)/(1+Indata!B$7)^(F39+Indata!B$10-Indata!B$9)),(1+Indata!B$14)^((Indata!B$12-Indata!B$10)-Indata!B$8+Indata!B$10)*(1+Indata!B$15)^((Indata!B$13-Indata!B$10)+Indata!B$10-Indata!B$12)*(1+Stödberäkningar!G$106)^(F39+Indata!B$10-Indata!B$13)*(1)^(F39+Indata!B$10-Indata!B$17)/(1+Indata!B$7)^(F39+Indata!B$10-Indata!B$9))","v":0.33013698711235651}]
[null,null,null,null,null,37,27.477482075193393,{"$f":"IF((Indata!B$10+F40)<Indata!B$13,IF((Indata!B$10+F40)<Indata!B$12,(1+Indata!B$14)^(F40-Indata!B$8+Indata!B$10)*(1+Indata!B$16)^(F40+Indata!B$10-Indata!B$17)/(1+Indata!B$7)^(F40+Indata!B$10-Indata!B$9),(1+Indata!B$14)^((Indata!B$12-Indata!B$10)-Indata!B$8+Indata!B$10)*(1+Indata!B$15)^(F40+Indata!B$10-Indata!B$12)*(1+Indata!B$16)^(F40+Indata!B$10-Indata!B$17)/(1+Indata!B$7)^(F40+Indata!B$10-Indata!B$9)),(1+Indata!B$14)^((Indata!B$12-Indata!B$10)-Indata!B$8+Indata!B$10)*(1+Indata!B$15)^((Indata!B$13-Indata!B$10)+Indata!B$10-Indata!B$12)*(1+Stödberäkningar!G$106)^(F40+Indata!B$10-Indata!B$13)*(1+Indata!B$16)^(Indata!B$13-Indata!B$17)/(1+Indata!B$7)^(F40+Indata!B$10-Indata!B$9))","v":0.53974004464871694},null,null,null,null,null,null,null,null,null,null,null,37,20.133630534805544,{"$f":"IF((Indata!B$10+F40)<Indata!B$13,IF((Indata!B$10+F40)<Indata!B$12,(1+Indata!B$14)^(F40-Indata!B$8+Indata!B$10)*(1)^(F40+Indata!B$10-Indata!B$17)/(1+Indata!B$7)^(F40+Indata!B$10-Indata!B$9),(1+Indata!B$14)^((Indata!B$12-Indata!B$10)-Indata!B$8+Indata!B$10)*(1+Indata!B$15)^(F40+Indata!B$10-Indata!B$12)*(1)^(F40+Indata!B$10-Indata!B$17)/(1+Indata!B$7)^(F40+Indata!B$10-Indata!B$9)),(1+Indata!B$14)^((Indata!B$12-Indata!B$10)-Indata!B$8+Indata!B$10)*(1+Indata!B$15)^((Indata!B$13-Indata!B$10)+Indata!B$10-Indata!B$12)*(1+Stödberäkningar!G$106)^(F40+Indata!B$10-Indata!B$13)*(1)^(F40+Indata!B$10-Indata!B$17)/(1+Indata!B$7)^(F40+Indata!B$10-Indata!B$9))","v":0.31897293440807395}]
[null,null,null,null,null,38,27.998970041037563,{"$f":"IF((Indata!B$10+F41)<Indata!B$13,IF((Indata!B$10+F41)<Indata!B$12,(1+Indata!B$14)^(F41-Indata!B$8+Indata!B$10)*(1+Indata!B$16)^(F41+Indata!B$10-Indata!B$17)/(1+Indata!B$7)^(F41+Indata!B$10-Indata!B$9),(1+Indata!B$14)^((Indata!B$12-Indata!B$10)-Indata!B$8+Indata!B$10)*(1+Indata!B$15)^(F41+Indata!B$10-Indata!B$12)*(1+Indata!B$16)^(F41+Indata!B$10-Indata!B$17)/(1+Indata!B$7)^(F41+Indata!B$10-Indata!B$9)),(1+Indata!B$14)^((Indata!B$12-Indata!B$10)-Indata!B$8+Indata!B$10)*(1+Indata!B$15)^((Indata!B$13-Indata!B$10)+Indata!B$10-Indata!B$12)*(1+Stödberäkningar!G$106)^(F41+Indata!B$10-Indata!B$13)*(1+Indata!B$16)^(Indata!B$13-Indata!B$17)/(1+Indata!B$7)^(F41+Indata!B$10-Indata!B$9))","v":0.52148796584417101},null,null,null,null,null,null,null,null,null,null,null,38,20.441816944861653,{"$f":"IF((Indata!B$10+F41)<Indata!B$13,IF((Indata!B$10+F41)<Indata!B$12,(1+Indata!B$14)^(F41-Indata!B$8+Indata!B$10)*(1)^(F41+Indata!B$10-Indata!B$17)/(1+Indata!B$7)^(F41+Indata!B$10-Indata!B$9),(1+Indata!B$14)^((Indata!B$12-Indata!B$10)-Indata!B$8+Indata!B$10)*(1+Indata!B$15)^(F41+Indata!B$10-Indata!B$12)*(1)^(F41+Indata!B$10-Indata!B$17)/(1+Indata!B$7)^(F41+Indata!B$10-Indata!B$9)),(1+Indata!B$14)^((Indata!B$12-Indata!B$10)-Indata!B$8+Indata!B$10)*(1+Indata!B$15)^((Indata!B$13-Indata!B$10)+Indata!B$10-Indata!B$12)*(1+Stödberäkningar!G$106)^(F41+Indata!B$10-Indata!B$13)*(1)^(F41+Indata!B$10-Indata!B$17)/(1+Indata!B$7)^(F41+Indata!B$10-Indata!B$9))","v":0.30818641005611019}]
[null,null,null,null,null,39,28.50282314813338,{"$f":"IF((Indata!B$10+F42)<Indata!B$13,IF((Indata!B$10+F42)<Indata!B$12,(1+Indata!B$14)^(F42-Indata!B$8+Indata!B$10)*(1+Indata!B$16)^(F42+Indata!B$10-Indata!B$17)/(1+Indata!B$7)^(F42+Indata!B$10-Indata!B$9),(1+Indata!B$14)^((Indata!B$12-Indata!B$10)-Indata!B$8+Indata!B$10)*(1+Indata!B$15)^(F42+Indata!B$10-Indata!B$12)*(1+Indata!B$16)^(F42+Indata!B$10-Indata!B$17)/(1+Indata!B$7)^(F42+Indata!B$10-Indata!B$9)),(1+Indata!B$14)^((Indata!B$12-Indata!B$10)-Indata!B$8+Indata!B$10)*(1+Indata!B$15)^((Indata!B$13-Indata!B$10)+Indata!B$10-Indata!B$12)*(1+Stödberäkningar!G$106)^(F42+Indata!B$10-Indata!B$13)*(1+Indata!B$16)^(Indata!B$13-Indata!B$17)/(1+Indata!B$7)^(F42+Indata!B$10-Indata!B$9))","v":0.50385310709581754},null,null,null,null,null,null,null,null,null,null,null,39,20.739581592258862,{"$f":"IF((Indata!B$10+F42)<Indata!B$13,IF((Indata!B$10+F42)<Indata!B$12,(1+Indata!B$14)^(F42-Indata!B$8+Indata!B$10)*(1)^(F42+Indata!B$10-Indata!B$17)/(1+Indata!B$7)^(F42+Indata!B$10-Indata!B$9),(1+Indata!B$14)^((Indata!B$12-Indata!B$10)-Indata!B$8+Indata!B$10)*(1+Indata!B$15)^(F42+Indata!B$10-Indata!B$12)*(1)^(F42+Indata!B$10-Indata!B$17)/(1+Indata!B$7)^(F42+Indata!B$10-Indata!B$9)),(1+Indata!B$14)^((Indata!B$12-Indata!B$10)-Indata!B$8+Indata!B$10)*(1+Indata!B$15)^((Indata!B$13-Indata!B$10)+Indata!B$10-Indata!B$12)*(1+Stödberäkningar!G$106)^(F42+Indata!B$10-Indata!B$13)*(1)^(F42+Indata!B$10-Indata!B$17)/(1+Indata!B$7)^(F42+Indata!B$10-Indata!B$9))","v":0.29776464739720798}]
[null,null,null,null,null,40,28.989637744361225,{"$f":"IF((Indata!B$10+F43)<Indata!B$13,IF((Indata!B$10+F43)<Indata!B$12,(1+Indata!B$14)^(F43-Indata!B$8+Indata!B$10)*(1+Indata!B$16)^(F43+Indata!B$10-Indata!B$17)/(1+Indata!B$7)^(F43+Indata!B$10-Indata!B$9),(1+Indata!B$14)^((Indata!B$12-Indata!B$10)-Indata!B$8+Indata!B$10)*(1+Indata!B$15)^(F43+Indata!B$10-Indata!B$12)*(1+Indata!B$16)^(F43+Indata!B$10-Indata!B$17)/(1+Indata!B$7)^(F43+Indata!B$10-Indata!B$9)),(1+Indata!B$14)^((Indata!B$12-Indata!B$10)-Indata!B$8+Indata!B$10)*(1+Indata!B$15)^((Indata!B$13-Indata!B$10)+Indata!B$10-Indata!B$12)*(1+Stödberäkningar!G$106)^(F43+Indata!B$10-Indata!B$13)*(1+Indata!B$16)^(Indata!B$13-Indata!B$17)/(1+Indata!B$7)^(F43+Indata!B$10-Indata!B$9))","v":0.48681459622784301},null,null,null,null,null,null,null,null,null,null,null,40,21.027276903753748,{"$f":"IF((Indata!B$10+F43)<Indata!B$13,IF((Indata!B$10+F43)<Indata!B$12,(1+Indata!B$14)^(F43-Indata!B$8+Indata!B$10)*(1)^(F43+Indata!B$10-Indata!B$17)/(1+Indata!B$7)^(F43+Indata!B$10-Indata!B$9),(1+Indata!B$14)^((Indata!B$12-Indata!B$10)-Indata!B$8+Indata!B$10)*(1+Indata!B$15)^(F43+Indata!B$10-Indata!B$12)*(1)^(F43+Indata!B$10-Indata!B$17)/(1+Indata!B$7)^(F43+Indata!B$10-Indata!B$9)),(1+Indata!B$14)^((Indata!B$12-Indata!B$10)-Indata!B$8+Indata!B$10)*(1+Indata!B$15)^((Indata!B$13-Indata!B$10)+Indata!B$10-Indata!B$12)*(1+Stödberäkningar!G$106)^(F43+Indata!B$10-Indata!B$13)*(1)^(F43+Indata!B$10-Indata!B$17)/(1+Indata!B$7)^(F43+Indata!B$10-Indata!B$9))","v":0.28769531149488692}]
[null,null,null,null,null,41,29.459990011248031,{"$f":"IF((Indata!B$10+F44)<Indata!B$13,IF((Indata!B$10+F44)<Indata!B$12,(1+Indata!B$14)^(F44-Indata!B$8+Indata!B$10)*(1+Indata!B$16)^(F44+Indata!B$10-Indata!B$17)/(1+Indata!B$7)^(F44+Indata!B$10-Indata!B$9),(1+Indata!B$14)^((Indata!B$12-Indata!B$10)-Indata!B$8+Indata!B$10)*(1+Indata!B$15)^(F44+Indata!B$10-Indata!B$12)*(1+Indata!B$16)^(F44+Indata!B$10-Indata!B$17)/(1+Indata!B$7)^(F44+Indata!B$10-Indata!B$9)),(1+Indata!B$14)^((Indata!B$12-Indata!B$10)-Indata!B$8+Indata!B$10)*(1+Indata!B$15)^((Indata!B$13-Indata!B$10)+Indata!B$10-Indata!B$12)*(1+Stödberäkningar!G$106)^(F44+Indata!B$10-Indata!B$13)*(1+Indata!B$16)^(Indata!B$13-Indata!B$17)/(1+Indata!B$7)^(F44+Indata!B$10-Indata!B$9))","v":0.47035226688680482},null,null,null,null,null,null,null,null,null,null,null,41,21.30524338828987,{"$f":"IF((Indata!B$10+F44)<Indata!B$13,IF((Indata!B$10+F44)<Indata!B$12,(1+Indata!B$14)^(F44-Indata!B$8+Indata!B$10)*(1)^(F44+Indata!B$10-Indata!B$17)/(1+Indata!B$7)^(F44+Indata!B$10-Indata!B$9),(1+Indata!B$14)^((Indata!B$12-Indata!B$10)-Indata!B$8+Indata!B$10)*(1+Indata!B$15)^(F44+Indata!B$10-Indata!B$12)*(1)^(F44+Indata!B$10-Indata!B$17)/(1+Indata!B$7)^(F44+Indata!B$10-Indata!B$9)),(1+Indata!B$14)^((Indata!B$12-Indata!B$10)-Indata!B$8+Indata!B$10)*(1+Indata!B$15)^((Indata!B$13-Indata!B$10)+Indata!B$10-Indata!B$12)*(1+Stödberäkningar!G$106)^(F44+Indata!B$10-Indata!B$13)*(1)^(F44+Indata!B$10-Indata!B$17)/(1+Indata!B$7)^(F44+Indata!B$10-Indata!B$9))","v":0.2779664845361226}]
[null,null,null,null,null,42,29.914436645921274,{"$f":"IF((Indata!B$10+F45)<Indata!B$13,IF((Indata!B$10+F45)<Indata!B$12,(1+Indata!B$14)^(F45-Indata!B$8+Indata!B$10)*(1+Indata!B$16)^(F45+Indata!B$10-Indata!B$17)/(1+Indata!B$7)^(F45+Indata!B$10-Indata!B$9),(1+Indata!B$14)^((Indata!B$12-Indata!B$10)-Indata!B$8+Indata!B$10)*(1+Indata!B$15)^(F45+Indata!B$10-Indata!B$12)*(1+Indata!B$16)^(F45+Indata!B$10-Indata!B$17)/(1+Indata!B$7)^(F45+Indata!B$10-Indata!B$9)),(1+Indata!B$14)^((Indata!B$12-Indata!B$10)-Indata!B$8+Indata!B$10)*(1+Indata!B$15)^((Indata!B$13-Indata!B$10)+Indata!B$10-Indata!B$12)*(1+Stödberäkningar!G$106)^(F45+Indata!B$10-Indata!B$13)*(1+Indata!B$16)^(Indata!B$13-Indata!B$17)/(1+Indata!B$7)^(F45+Indata!B$10-Indata!B$9))","v":0.45444663467324142},null,null,null,null,null,null,null,null,null,null,null,42,21.573810040015594,{"$f":"IF((Indata!B$10+F45)<Indata!B$13,IF((Indata!B$10+F45)<Indata!B$12,(1+Indata!B$14)^(F45-Indata!B$8+Indata!B$10)*(1)^(F45+Indata!B$10-Indata!B$17)/(1+Indata!B$7)^(F45+Indata!B$10-Indata!B$9),(1+Indata!B$14)^((Indata!B$12-Indata!B$10)-Indata!B$8+Indata!B$10)*(1+Indata!B$15)^(F45+Indata!B$10-Indata!B$12)*(1)^(F45+Indata!B$10-Indata!B$17)/(1+Indata!B$7)^(F45+Indata!B$10-Indata!B$9)),(1+Indata!B$14)^((Indata!B$12-Indata!B$10)-Indata!B$8+Indata!B$10)*(1+Indata!B$15)^((Indata!B$13-Indata!B$10)+Indata!B$10-Indata!B$12)*(1+Stödberäkningar!G$106)^(F45+Indata!B$10-Indata!B$13)*(1)^(F45+Indata!B$10-Indata!B$17)/(1+Indata!B$7)^(F45+Indata!B$10-Indata!B$9))","v":0.26856665172572236}]
[null,null,null,null,null,43,30.3535155200017,{"$f":"IF((Indata!B$10+F46)<Indata!B$13,IF((Indata!B$10+F46)<Indata!B$12,(1+Indata!B$14)^(F46-Indata!B$8+Indata!B$10)*(1+Indata!B$16)^(F46+Indata!B$10-Indata!B$17)/(1+Indata!B$7)^(F46+Indata!B$10-Indata!B$9),(1+Indata!B$14)^((Indata!B$12-Indata!B$10)-Indata!B$8+Indata!B$10)*(1+Indata!B$15)^(F46+Indata!B$10-Indata!B$12)*(1+Indata!B$16)^(F46+Indata!B$10-Indata!B$17)/(1+Indata!B$7)^(F46+Indata!B$10-Indata!B$9)),(1+Indata!B$14)^((Indata!B$12-Indata!B$10)-Indata!B$8+Indata!B$10)*(1+Indata!B$15)^((Indata!B$13-Indata!B$10)+Indata!B$10-Indata!B$12)*(1+Stödberäkningar!G$106)^(F46+Indata!B$10-Indata!B$13)*(1+Indata!B$16)^(Indata!B$13-Indata!B$17)/(1+Indata!B$7)^(F46+Indata!B$10-Indata!B$9))","v":0.43907887408042656},null,null,null,null,null,null,null,null,null,null,null,43,21.833294727673298,{"$f":"IF((Indata!B$10+F46)<Indata!B$13,IF((Indata!B$10+F46)<Indata!B$12,(1+Indata!B$14)^(F46-Indata!B$8+Indata!B$10)*(1)^(F46+Indata!B$10-Indata!B$17)/(1+Indata!B$7)^(F46+Indata!B$10-Indata!B$9),(1+Indata!B$14)^((Indata!B$12-Indata!B$10)-Indata!B$8+Indata!B$10)*(1+Indata!B$15)^(F46+Indata!B$10-Indata!B$12)*(1)^(F46+Indata!B$10-Indata!B$17)/(1+Indata!B$7)^(F46+Indata!B$10-Indata!B$9)),(1+Indata!B$14)^((Indata!B$12-Indata!B$10)-Indata!B$8+Indata!B$10)*(1+Indata!B$15)^((Indata!B$13-Indata!B$10)+Indata!B$10-Indata!B$12)*(1+Stödberäkningar!G$106)^(F46+Indata!B$10-Indata!B$13)*(1)^(F46+Indata!B$10-Indata!B$17)/(1+Indata!B$7)^(F46+Indata!B$10-Indata!B$9))","v":0.25948468765770277}]
[null,null,null,null,null,44,30.777746316214671,{"$f":"IF((Indata!B$10+F47)<Indata!B$13,IF((Indata!B$10+F47)<Indata!B$12,(1+Indata!B$14)^(F47-Indata!B$8+Indata!B$10)*(1+Indata!B$16)^(F47+Indata!B$10-Indata!B$17)/(1+Indata!B$7)^(F47+Indata!B$10-Indata!B$9),(1+Indata!B$14)^((Indata!B$12-Indata!B$10)-Indata!B$8+Indata!B$10)*(1+Indata!B$15)^(F47+Indata!B$10-Indata!B$12)*(1+Indata!B$16)^(F47+Indata!B$10-Indata!B$17)/(1+Indata!B$7)^(F47+Indata!B$10-Indata!B$9)),(1+Indata!B$14)^((Indata!B$12-Indata!B$10)-Indata!B$8+Indata!B$10)*(1+Indata!B$15)^((Indata!B$13-Indata!B$10)+Indata!B$10-Indata!B$12)*(1+Stödberäkningar!G$106)^(F47+Indata!B$10-Indata!B$13)*(1+Indata!B$16)^(Indata!B$13-Indata!B$17)/(1+Indata!B$7)^(F47+Indata!B$10-Indata!B$9))","v":0.42423079621297244},null,null,null,null,null,null,null,null,null,null,null,44,22.084004570820838,{"$f":"IF((Indata!B$10+F47)<Indata!B$13,IF((Indata!B$10+F47)<Indata!B$12,(1+Indata!B$14)^(F47-Indata!B$8+Indata!B$10)*(1)^(F47+Indata!B$10-Indata!B$17)/(1+Indata!B$7)^(F47+Indata!B$10-Indata!B$9),(1+Indata!B$14)^((Indata!B$12-Indata!B$10)-Indata!B$8+Indata!B$10)*(1+Indata!B$15)^(F47+Indata!B$10-Indata!B$12)*(1)^(F47+Indata!B$10-Indata!B$17)/(1+Indata!B$7)^(F47+Indata!B$10-Indata!B$9)),(1+Indata!B$14)^((Indata!B$12-Indata!B$10)-Indata!B$8+Indata!B$10)*(1+Indata!B$15)^((Indata!B$13-Indata!B$10)+Indata!B$10-Indata!B$12)*(1+Stödberäkningar!G$106)^(F47+Indata!B$10-Indata!B$13)*(1)^(F47+Indata!B$10-Indata!B$17)/(1+Indata!B$7)^(F47+Indata!B$10-Indata!B$9))","v":0.25070984314753891}]
[null,null,null,null,null,45,31.187631143473581,{"$f":"IF((Indata!B$10+F48)<Indata!B$13,IF((Indata!B$10+F48)<Indata!B$12,(1+Indata!B$14)^(F48-Indata!B$8+Indata!B$10)*(1+Indata!B$16)^(F48+Indata!B$10-Indata!B$17)/(1+Indata!B$7)^(F48+Indata!B$10-Indata!B$9),(1+Indata!B$14)^((Indata!B$12-Indata!B$10)-Indata!B$8+Indata!B$10)*(1+Indata!B$15)^(F48+Indata!B$10-Indata!B$12)*(1+Indata!B$16)^(F48+Indata!B$10-Indata!B$17)/(1+Indata!B$7)^(F48+Indata!B$10-Indata!B$9)),(1+Indata!B$14)^((Indata!B$12-Indata!B$10)-Indata!B$8+Indata!B$10)*(1+Indata!B$15)^((Indata!B$13-Indata!B$10)+Indata!B$10-Indata!B$12)*(1+Stödberäkningar!G$106)^(F48+Indata!B$10-Indata!B$13)*(1+Indata!B$16)^(Indata!B$13-Indata!B$17)/(1+Indata!B$7)^(F48+Indata!B$10-Indata!B$9))","v":0.40988482725891068},null,null,null,null,null,null,null,null,null,null,null,45,22.326236303330539,{"$f":"IF((Indata!B$10+F48)<Indata!B$13,IF((Indata!B$10+F48)<Indata!B$12,(1+Indata!B$14)^(F48-Indata!B$8+Indata!B$10)*(1)^(F48+Indata!B$10-Indata!B$17)/(1+Indata!B$7)^(F48+Indata!B$10-Indata!B$9),(1+Indata!B$14)^((Indata!B$12-Indata!B$10)-Indata!B$8+Indata!B$10)*(1+Indata!B$15)^(F48+Indata!B$10-Indata!B$12)*(1)^(F48+Indata!B$10-Indata!B$17)/(1+Indata!B$7)^(F48+Indata!B$10-Indata!B$9)),(1+Indata!B$14)^((Indata!B$12-Indata!B$10)-Indata!B$8+Indata!B$10)*(1+Indata!B$15)^((Indata!B$13-Indata!B$10)+Indata!B$10-Indata!B$12)*(1+Stödberäkningar!G$106)^(F48+Indata!B$10-Indata!B$13)*(1)^(F48+Indata!B$10-Indata!B$17)/(1+Indata!B$7)^(F48+Indata!B$10-Indata!B$9))","v":0.24223173250969948}]
[null,null,null,null,null,46,31.583655131163351,{"$f":"IF((Indata!B$10+F49)<Indata!B$13,IF((Indata!B$10+F49)<Indata!B$12,(1+Indata!B$14)^(F49-Indata!B$8+Indata!B$10)*(1+Indata!B$16)^(F49+Indata!B$10-Indata!B$17)/(1+Indata!B$7)^(F49+Indata!B$10-Indata!B$9),(1+Indata!B$14)^((Indata!B$12-Indata!B$10)-Indata!B$8+Indata!B$10)*(1+Indata!B$15)^(F49+Indata!B$10-Indata!B$12)*(1+Indata!B$16)^(F49+Indata!B$10-Indata!B$17)/(1+Indata!B$7)^(F49+Indata!B$10-Indata!B$9)),(1+Indata!B$14)^((Indata!B$12-Indata!B$10)-Indata!B$8+Indata!B$10)*(1+Indata!B$15)^((Indata!B$13-Indata!B$10)+Indata!B$10-Indata!B$12)*(1+Stödberäkningar!G$106)^(F49+Indata!B$10-Indata!B$13)*(1+Indata!B$16)^(Indata!B$13-Indata!B$17)/(1+Indata!B$7)^(F49+Indata!B$10-Indata!B$9))","v":0.39602398768976887},null,null,null,null,null,null,null,null,null,null,null,46,22.56027662459595,{"$f":"IF((Indata!B$10+F49)<Indata!B$13,IF((Indata!B$10+F49)<Indata!B$12,(1+Indata!B$14)^(F49-Indata!B$8+Indata!B$10)*(1)^(F49+Indata!B$10-Indata!B$17)/(1+Indata!B$7)^(F49+Indata!B$10-Indata!B$9),(1+Indata!B$14)^((Indata!B$12-Indata!B$10)-Indata!B$8+Indata!B$10)*(1+Indata!B$15)^(F49+Indata!B$10-Indata!B$12)*(1)^(F49+Indata!B$10-Indata!B$17)/(1+Indata!B$7)^(F49+Indata!B$10-Indata!B$9)),(1+Indata!B$14)^((Indata!B$12-Indata!B$10)-Indata!B$8+Indata!B$10)*(1+Indata!B$15)^((Indata!B$13-Indata!B$10)+Indata!B$10-Indata!B$12)*(1+Stödberäkningar!G$106)^(F49+Indata!B$10-Indata!B$13)*(1)^(F49+Indata!B$10-Indata!B$17)/(1+Indata!B$7)^(F49+Indata!B$10-Indata!B$9))","v":0.23404032126541016}]
[null,null,null,null,null,47,31.966287003327377,{"$f":"IF((Indata!B$10+F50)<Indata!B$13,IF((Indata!B$10+F50)<Indata!B$12,(1+Indata!B$14)^(F50-Indata!B$8+Indata!B$10)*(1+Indata!B$16)^(F50+Indata!B$10-Indata!B$17)/(1+Indata!B$7)^(F50+Indata!B$10-Indata!B$9),(1+Indata!B$14)^((Indata!B$12-Indata!B$10)-Indata!B$8+Indata!B$10)*(1+Indata!B$15)^(F50+Indata!B$10-Indata!B$12)*(1+Indata!B$16)^(F50+Indata!B$10-Indata!B$17)/(1+Indata!B$7)^(F50+Indata!B$10-Indata!B$9)),(1+Indata!B$14)^((Indata!B$12-Indata!B$10)-Indata!B$8+Indata!B$10)*(1+Indata!B$15)^((Indata!B$13-Indata!B$10)+Indata!B$10-Indata!B$12)*(1+Stödberäkningar!G$106)^(F50+Indata!B$10-Indata!B$13)*(1+Indata!B$16)^(Indata!B$13-Indata!B$17)/(1+Indata!B$7)^(F50+Indata!B$10-Indata!B$9))","v":0.38263187216402794},null,null,null,null,null,null,null,null,null,null,null,47,22.786402538862045,{"$f":"IF((Indata!B$10+F50)<Indata!B$13,IF((Indata!B$10+F50)<Indata!B$12,(1+Indata!B$14)^(F50-Indata!B$8+Indata!B$10)*(1)^(F50+Indata!B$10-Indata!B$17)/(1+Indata!B$7)^(F50+Indata!B$10-Indata!B$9),(1+Indata!B$14)^((Indata!B$12-Indata!B$10)-Indata!B$8+Indata!B$10)*(1+Indata!B$15)^(F50+Indata!B$10-Indata!B$12)*(1)^(F50+Indata!B$10-Indata!B$17)/(1+Indata!B$7)^(F50+Indata!B$10-Indata!B$9)),(1+Indata!B$14)^((Indata!B$12-Indata!B$10)-Indata!B$8+Indata!B$10)*(1+Indata!B$15)^((Indata!B$13-Indata!B$10)+Indata!B$10-Indata!B$12)*(1+Stödberäkningar!G$106)^(F50+Indata!B$10-Indata!B$13)*(1)^(F50+Indata!B$10-Indata!B$17)/(1+Indata!B$7)^(F50+Indata!B$10-Indata!B$9))","v":0.22612591426609679}]
[null,null,null,null,null,48,32.335979633437546,{"$f":"IF((Indata!B$10+F51)<Indata!B$13,IF((Indata!B$10+F51)<Indata!B$12,(1+Indata!B$14)^(F51-Indata!B$8+Indata!B$10)*(1+Indata!B$16)^(F51+Indata!B$10-Indata!B$17)/(1+Indata!B$7)^(F51+Indata!B$10-Indata!B$9),(1+Indata!B$14)^((Indata!B$12-Indata!B$10)-Indata!B$8+Indata!B$10)*(1+Indata!B$15)^(F51+Indata!B$10-Indata!B$12)*(1+Indata!B$16)^(F51+Indata!B$10-Indata!B$17)/(1+Indata!B$7)^(F51+Indata!B$10-Indata!B$9)),(1+Indata!B$14)^((Indata!B$12-Indata!B$10)-Indata!B$8+Indata!B$10)*(1+Indata!B$15)^((Indata!B$13-Indata!B$10)+Indata!B$10-Indata!B$12)*(1+Stödberäkningar!G$106)^(F51+Indata!B$10-Indata!B$13)*(1+Indata!B$16)^(Indata!B$13-Indata!B$17)/(1+Indata!B$7)^(F51+Indata!B$10-Indata!B$9))","v":0.36969263011017189},null,null,null,null,null,null,null,null,null,null,null,48,23.004881683080498,{"$f":"IF((Indata!B$10+F51)<Indata!B$13,IF((Indata!B$10+F51)<Indata!B$12,(1+Indata!B$14)^(F51-Indata!B$8+Indata!B$10)*(1)^(F51+Indata!B$10-Indata!B$17)/(1+Indata!B$7)^(F51+Indata!B$10-Indata!B$9),(1+Indata!B$14)^((Indata!B$12-Indata!B$10)-Indata!B$8+Indata!B$10)*(1+Indata!B$15)^(F51+Indata!B$10-Indata!B$12)*(1)^(F51+Indata!B$10-Indata!B$17)/(1+Indata!B$7)^(F51+Indata!B$10-Indata!B$9)),(1+Indata!B$14)^((Indata!B$12-Indata!B$10)-Indata!B$8+Indata!B$10)*(1+Indata!B$15)^((Indata!B$13-Indata!B$10)+Indata!B$10-Indata!B$12)*(1+Stödberäkningar!G$106)^(F51+Indata!B$10-Indata!B$13)*(1)^(F51+Indata!B$10-Indata!B$17)/(1+Indata!B$7)^(F51+Indata!B$10-Indata!B$9))","v":0.21847914421845102}]
[null,null,null,null,null,49,32.693170580403894,{"$f":"IF((Indata!B$10+F52)<Indata!B$13,IF((Indata!B$10+F52)<Indata!B$12,(1+Indata!B$14)^(F52-Indata!B$8+Indata!B$10)*(1+Indata!B$16)^(F52+Indata!B$10-Indata!B$17)/(1+Indata!B$7)^(F52+Indata!B$10-Indata!B$9),(1+Indata!B$14)^((Indata!B$12-Indata!B$10)-Indata!B$8+Indata!B$10)*(1+Indata!B$15)^(F52+Indata!B$10-Indata!B$12)*(1+Indata!B$16)^(F52+Indata!B$10-Indata!B$17)/(1+Indata!B$7)^(F52+Indata!B$10-Indata!B$9)),(1+Indata!B$14)^((Indata!B$12-Indata!B$10)-Indata!B$8+Indata!B$10)*(1+Indata!B$15)^((Indata!B$13-Indata!B$10)+Indata!B$10-Indata!B$12)*(1+Stödberäkningar!G$106)^(F52+Indata!B$10-Indata!B$13)*(1+Indata!B$16)^(Indata!B$13-Indata!B$17)/(1+Indata!B$7)^(F52+Indata!B$10-Indata!B$9))","v":0.35719094696634973},null,null,null,null,null,null,null,null,null,null,null,49,23.215972643678036,{"$f":"IF((Indata!B$10+F52)<Indata!B$13,IF((Indata!B$10+F52)<Indata!B$12,(1+Indata!B$14)^(F52-Indata!B$8+Indata!B$10)*(1)^(F52+Indata!B$10-Indata!B$17)/(1+Indata!B$7)^(F52+Indata!B$10-Indata!B$9),(1+Indata!B$14)^((Indata!B$12-Indata!B$10)-Indata!B$8+Indata!B$10)*(1+Indata!B$15)^(F52+Indata!B$10-Indata!B$12)*(1)^(F52+Indata!B$10-Indata!B$17)/(1+Indata!B$7)^(F52+Indata!B$10-Indata!B$9)),(1+Indata!B$14)^((Indata!B$12-Indata!B$10)-Indata!B$8+Indata!B$10)*(1+Indata!B$15)^((Indata!B$13-Indata!B$10)+Indata!B$10-Indata!B$12)*(1+Stödberäkningar!G$106)^(F52+Indata!B$10-Indata!B$13)*(1)^(F52+Indata!B$10-Indata!B$17)/(1+Indata!B$7)^(F52+Indata!B$10-Indata!B$9))","v":0.21109096059753724}]
[null,null,null,null,null,50,33.038282606458338,{"$f":"IF((Indata!B$10+F53)<Indata!B$13,IF((Indata!B$10+F53)<Indata!B$12,(1+Indata!B$14)^(F53-Indata!B$8+Indata!B$10)*(1+Indata!B$16)^(F53+Indata!B$10-Indata!B$17)/(1+Indata!B$7)^(F53+Indata!B$10-Indata!B$9),(1+Indata!B$14)^((Indata!B$12-Indata!B$10)-Indata!B$8+Indata!B$10)*(1+Indata!B$15)^(F53+Indata!B$10-Indata!B$12)*(1+Indata!B$16)^(F53+Indata!B$10-Indata!B$17)/(1+Indata!B$7)^(F53+Indata!B$10-Indata!B$9)),(1+Indata!B$14)^((Indata!B$12-Indata!B$10)-Indata!B$8+Indata!B$10)*(1+Indata!B$15)^((Indata!B$13-Indata!B$10)+Indata!B$10-Indata!B$12)*(1+Stödberäkningar!G$106)^(F53+Indata!B$10-Indata!B$13)*(1+Indata!B$16)^(Indata!B$13-Indata!B$17)/(1+Indata!B$7)^(F53+Indata!B$10-Indata!B$9))","v":0.34511202605444419},null,null,null,null,null,null,null,null,null,null,null,50,23.419925262612853,{"$f":"IF((Indata!B$10+F53)<Indata!B$13,IF((Indata!B$10+F53)<Indata!B$12,(1+Indata!B$14)^(F53-Indata!B$8+Indata!B$10)*(1)^(F53+Indata!B$10-Indata!B$17)/(1+Indata!B$7)^(F53+Indata!B$10-Indata!B$9),(1+Indata!B$14)^((Indata!B$12-Indata!B$10)-Indata!B$8+Indata!B$10)*(1+Indata!B$15)^(F53+Indata!B$10-Indata!B$12)*(1)^(F53+Indata!B$10-Indata!B$17)/(1+Indata!B$7)^(F53+Indata!B$10-Indata!B$9)),(1+Indata!B$14)^((Indata!B$12-Indata!B$10)-Indata!B$8+Indata!B$10)*(1+Indata!B$15)^((Indata!B$13-Indata!B$10)+Indata!B$10-Indata!B$12)*(1+Stödberäkningar!G$106)^(F53+Indata!B$10-Indata!B$13)*(1)^(F53+Indata!B$10-Indata!B$17)/(1+Indata!B$7)^(F53+Indata!B$10-Indata!B$9))","v":0.20395261893481859}]
[null,null,null,null,null,51,33.371724177525437,{"$f":"IF((Indata!B$10+F54)<Indata!B$13,IF((Indata!B$10+F54)<Indata!B$12,(1+Indata!B$14)^(F54-Indata!B$8+Indata!B$10)*(1+Indata!B$16)^(F54+Indata!B$10-Indata!B$17)/(1+Indata!B$7)^(F54+Indata!B$10-Indata!B$9),(1+Indata!B$14)^((Indata!B$12-Indata!B$10)-Indata!B$8+Indata!B$10)*(1+Indata!B$15)^(F54+Indata!B$10-Indata!B$12)*(1+Indata!B$16)^(F54+Indata!B$10-Indata!B$17)/(1+Indata!B$7)^(F54+Indata!B$10-Indata!B$9)),(1+Indata!B$14)^((Indata!B$12-Indata!B$10)-Indata!B$8+Indata!B$10)*(1+Indata!B$15)^((Indata!B$13-Indata!B$10)+Indata!B$10-Indata!B$12)*(1+Stödberäkningar!G$106)^(F54+Indata!B$10-Indata!B$13)*(1+Indata!B$16)^(Indata!B$13-Indata!B$17)/(1+Indata!B$7)^(F54+Indata!B$10-Indata!B$9))","v":0.33344157106709593},null,null,null,null,null,null,null,null,null,null,null,51,23.616980933081276,{"$f":"IF((Indata!B$10+F54)<Indata!B$13,IF((Indata!B$10+F54)<Indata!B$12,(1+Indata!B$14)^(F54-Indata!B$8+Indata!B$10)*(1)^(F54+Indata!B$10-Indata!B$17)/(1+Indata!B$7)^(F54+Indata!B$10-Indata!B$9),(1+Indata!B$14)^((Indata!B$12-Indata!B$10)-Indata!B$8+Indata!B$10)*(1+Indata!B$15)^(F54+Indata!B$10-Indata!B$12)*(1)^(F54+Indata!B$10-Indata!B$17)/(1+Indata!B$7)^(F54+Indata!B$10-Indata!B$9)),(1+Indata!B$14)^((Indata!B$12-Indata!B$10)-Indata!B$8+Indata!B$10)*(1+Indata!B$15)^((Indata!B$13-Indata!B$10)+Indata!B$10-Indata!B$12)*(1+Stödberäkningar!G$106)^(F54+Indata!B$10-Indata!B$13)*(1)^(F54+Indata!B$10-Indata!B$17)/(1+Indata!B$7)^(F54+Indata!B$10-Indata!B$9))","v":0.19705567046842382}]
[null,null,null,null,null,52,33.693889946672392,{"$f":"IF((Indata!B$10+F55)<Indata!B$13,IF((Indata!B$10+F55)<Indata!B$12,(1+Indata!B$14)^(F55-Indata!B$8+Indata!B$10)*(1+Indata!B$16)^(F55+Indata!B$10-Indata!B$17)/(1+Indata!B$7)^(F55+Indata!B$10-Indata!B$9),(1+Indata!B$14)^((Indata!B$12-Indata!B$10)-Indata!B$8+Indata!B$10)*(1+Indata!B$15)^(F55+Indata!B$10-Indata!B$12)*(1+Indata!B$16)^(F55+Indata!B$10-Indata!B$17)/(1+Indata!B$7)^(F55+Indata!B$10-Indata!B$9)),(1+Indata!B$14)^((Indata!B$12-Indata!B$10)-Indata!B$8+Indata!B$10)*(1+Indata!B$15)^((Indata!B$13-Indata!B$10)+Indata!B$10-Indata!B$12)*(1+Stödberäkningar!G$106)^(F55+Indata!B$10-Indata!B$13)*(1+Indata!B$16)^(Indata!B$13-Indata!B$17)/(1+Indata!B$7)^(F55+Indata!B$10-Indata!B$9))","v":0.32216576914695255},null,null,null,null,null,null,null,null,null,null,null,52,23.80737288522468,{"$f":"IF((Indata!B$10+F55)<Indata!B$13,IF((Indata!B$10+F55)<Indata!B$12,(1+Indata!B$14)^(F55-Indata!B$8+Indata!B$10)*(1)^(F55+Indata!B$10-Indata!B$17)/(1+Indata!B$7)^(F55+Indata!B$10-Indata!B$9),(1+Indata!B$14)^((Indata!B$12-Indata!B$10)-Indata!B$8+Indata!B$10)*(1+Indata!B$15)^(F55+Indata!B$10-Indata!B$12)*(1)^(F55+Indata!B$10-Indata!B$17)/(1+Indata!B$7)^(F55+Indata!B$10-Indata!B$9)),(1+Indata!B$14)^((Indata!B$12-Indata!B$10)-Indata!B$8+Indata!B$10)*(1+Indata!B$15)^((Indata!B$13-Indata!B$10)+Indata!B$10-Indata!B$12)*(1+Stödberäkningar!G$106)^(F55+Indata!B$10-Indata!B$13)*(1)^(F55+Indata!B$10-Indata!B$17)/(1+Indata!B$7)^(F55+Indata!B$10-Indata!B$9))","v":0.19039195214340465}]
[null,null,null,null,null,53,34.005161221210514,{"$f":"IF((Indata!B$10+F56)<Indata!B$13,IF((Indata!B$10+F56)<Indata!B$12,(1+Indata!B$14)^(F56-Indata!B$8+Indata!B$10)*(1+Indata!B$16)^(F56+Indata!B$10-Indata!B$17)/(1+Indata!B$7)^(F56+Indata!B$10-Indata!B$9),(1+Indata!B$14)^((Indata!B$12-Indata!B$10)-Indata!B$8+Indata!B$10)*(1+Indata!B$15)^(F56+Indata!B$10-Indata!B$12)*(1+Indata!B$16)^(F56+Indata!B$10-Indata!B$17)/(1+Indata!B$7)^(F56+Indata!B$10-Indata!B$9)),(1+Indata!B$14)^((Indata!B$12-Indata!B$10)-Indata!B$8+Indata!B$10)*(1+Indata!B$15)^((Indata!B$13-Indata!B$10)+Indata!B$10-Indata!B$12)*(1+Stödberäkningar!G$106)^(F56+Indata!B$10-Indata!B$13)*(1+Indata!B$16)^(Indata!B$13-Indata!B$17)/(1+Indata!B$7)^(F56+Indata!B$10-Indata!B$9))","v":0.31127127453811837},null,null,null,null,null,null,null,null,null,null,null,53,23.991326462174829,{"$f":"IF((Indata!B$10+F56)<Indata!B$13,IF((Indata!B$10+F56)<Indata!B$12,(1+Indata!B$14)^(F56-Indata!B$8+Indata!B$10)*(1)^(F56+Indata!B$10-Indata!B$17)/(1+Indata!B$7)^(F56+Indata!B$10-Indata!B$9),(1+Indata!B$14)^((Indata!B$12-Indata!B$10)-Indata!B$8+Indata!B$10)*(1+Indata!B$15)^(F56+Indata!B$10-Indata!B$12)*(1)^(F56+Indata!B$10-Indata!B$17)/(1+Indata!B$7)^(F56+Indata!B$10-Indata!B$9)),(1+Indata!B$14)^((Indata!B$12-Indata!B$10)-Indata!B$8+Indata!B$10)*(1+Indata!B$15)^((Indata!B$13-Indata!B$10)+Indata!B$10-Indata!B$12)*(1+Stödberäkningar!G$106)^(F56+Indata!B$10-Indata!B$13)*(1)^(F56+Indata!B$10-Indata!B$17)/(1+Indata!B$7)^(F56+Indata!B$10-Indata!B$9))","v":0.18395357695014941}]
[null,null,null,null,null,54,34.305906414000965,{"$f":"IF((Indata!B$10+F57)<Indata!B$13,IF((Indata!B$10+F57)<Indata!B$12,(1+Indata!B$14)^(F57-Indata!B$8+Indata!B$10)*(1+Indata!B$16)^(F57+Indata!B$10-Indata!B$17)/(1+Indata!B$7)^(F57+Indata!B$10-Indata!B$9),(1+Indata!B$14)^((Indata!B$12-Indata!B$10)-Indata!B$8+Indata!B$10)*(1+Indata!B$15)^(F57+Indata!B$10-Indata!B$12)*(1+Indata!B$16)^(F57+Indata!B$10-Indata!B$17)/(1+Indata!B$7)^(F57+Indata!B$10-Indata!B$9)),(1+Indata!B$14)^((Indata!B$12-Indata!B$10)-Indata!B$8+Indata!B$10)*(1+Indata!B$15)^((Indata!B$13-Indata!B$10)+Indata!B$10-Indata!B$12)*(1+Stödberäkningar!G$106)^(F57+Indata!B$10-Indata!B$13)*(1+Indata!B$16)^(Indata!B$13-Indata!B$17)/(1+Indata!B$7)^(F57+Indata!B$10-Indata!B$9))","v":0.30074519279045264},null,null,null,null,null,null,null,null,null,null,null,54,24.169059386764346,{"$f":"IF((Indata!B$10+F57)<Indata!B$13,IF((Indata!B$10+F57)<Indata!B$12,(1+Indata!B$14)^(F57-Indata!B$8+Indata!B$10)*(1)^(F57+Indata!B$10-Indata!B$17)/(1+Indata!B$7)^(F57+Indata!B$10-Indata!B$9),(1+Indata!B$14)^((Indata!B$12-Indata!B$10)-Indata!B$8+Indata!B$10)*(1+Indata!B$15)^(F57+Indata!B$10-Indata!B$12)*(1)^(F57+Indata!B$10-Indata!B$17)/(1+Indata!B$7)^(F57+Indata!B$10-Indata!B$9)),(1+Indata!B$14)^((Indata!B$12-Indata!B$10)-Indata!B$8+Indata!B$10)*(1+Indata!B$15)^((Indata!B$13-Indata!B$10)+Indata!B$10-Indata!B$12)*(1+Stödberäkningar!G$106)^(F57+Indata!B$10-Indata!B$13)*(1)^(F57+Indata!B$10-Indata!B$17)/(1+Indata!B$7)^(F57+Indata!B$10-Indata!B$9))","v":0.17773292458951639}]
[null,null,null,null,null,55,34.596481479498991,{"$f":"IF((Indata!B$10+F58)<Indata!B$13,IF((Indata!B$10+F58)<Indata!B$12,(1+Indata!B$14)^(F58-Indata!B$8+Indata!B$10)*(1+Indata!B$16)^(F58+Indata!B$10-Indata!B$17)/(1+Indata!B$7)^(F58+Indata!B$10-Indata!B$9),(1+Indata!B$14)^((Indata!B$12-Indata!B$10)-Indata!B$8+Indata!B$10)*(1+Indata!B$15)^(F58+Indata!B$10-Indata!B$12)*(1+Indata!B$16)^(F58+Indata!B$10-Indata!B$17)/(1+Indata!B$7)^(F58+Indata!B$10-Indata!B$9)),(1+Indata!B$14)^((Indata!B$12-Indata!B$10)-Indata!B$8+Indata!B$10)*(1+Indata!B$15)^((Indata!B$13-Indata!B$10)+Indata!B$10-Indata!B$12)*(1+Stödberäkningar!G$106)^(F58+Indata!B$10-Indata!B$13)*(1+Indata!B$16)^(Indata!B$13-Indata!B$17)/(1+Indata!B$7)^(F58+Indata!B$10-Indata!B$9))","v":0.29057506549802192},null,null,null,null,null,null,null,null,null,null,null,55,24.340782019217986,{"$f":"IF((Indata!B$10+F58)<Indata!B$13,IF((Indata!B$10+F58)<Indata!B$12,(1+Indata!B$14)^(F58-Indata!B$8+Indata!B$10)*(1)^(F58+Indata!B$10-Indata!B$17)/(1+Indata!B$7)^(F58+Indata!B$10-Indata!B$9),(1+Indata!B$14)^((Indata!B$12-Indata!B$10)-Indata!B$8+Indata!B$10)*(1+Indata!B$15)^(F58+Indata!B$10-Indata!B$12)*(1)^(F58+Indata!B$10-Indata!B$17)/(1+Indata!B$7)^(F58+Indata!B$10-Indata!B$9)),(1+Indata!B$14)^((Indata!B$12-Indata!B$10)-Indata!B$8+Indata!B$10)*(1+Indata!B$15)^((Indata!B$13-Indata!B$10)+Indata!B$10-Indata!B$12)*(1+Stödberäkningar!G$106)^(F58+Indata!B$10-Indata!B$13)*(1)^(F58+Indata!B$10-Indata!B$17)/(1+Indata!B$7)^(F58+Indata!B$10-Indata!B$9))","v":0.17172263245363903}]
[null,null,null,null,null,56,34.877230335052637,{"$f":"IF((Indata!B$10+F59)<Indata!B$13,IF((Indata!B$10+F59)<Indata!B$12,(1+Indata!B$14)^(F59-Indata!B$8+Indata!B$10)*(1+Indata!B$16)^(F59+Indata!B$10-Indata!B$17)/(1+Indata!B$7)^(F59+Indata!B$10-Indata!B$9),(1+Indata!B$14)^((Indata!B$12-Indata!B$10)-Indata!B$8+Indata!B$10)*(1+Indata!B$15)^(F59+Indata!B$10-Indata!B$12)*(1+Indata!B$16)^(F59+Indata!B$10-Indata!B$17)/(1+Indata!B$7)^(F59+Indata!B$10-Indata!B$9)),(1+Indata!B$14)^((Indata!B$12-Indata!B$10)-Indata!B$8+Indata!B$10)*(1+Indata!B$15)^((Indata!B$13-Indata!B$10)+Indata!B$10-Indata!B$12)*(1+Stödberäkningar!G$106)^(F59+Indata!B$10-Indata!B$13)*(1+Indata!B$16)^(Indata!B$13-Indata!B$17)/(1+Indata!B$7)^(F59+Indata!B$10-Indata!B$9))","v":0.28074885555364437},null,null,null,null,null,null,null,null,null,null,null,56,24.506697606129716,{"$f":"IF((Indata!B$10+F59)<Indata!B$13,IF((Indata!B$10+F59)<Indata!B$12,(1+Indata!B$14)^(F59-Indata!B$8+Indata!B$10)*(1)^(F59+Indata!B$10-Indata!B$17)/(1+Indata!B$7)^(F59+Indata!B$10-Indata!B$9),(1+Indata!B$14)^((Indata!B$12-Indata!B$10)-Indata!B$8+Indata!B$10)*(1+Indata!B$15)^(F59+Indata!B$10-Indata!B$12)*(1)^(F59+Indata!B$10-Indata!B$17)/(1+Indata!B$7)^(F59+Indata!B$10-Indata!B$9)),(1+Indata!B$14)^((Indata!B$12-Indata!B$10)-Indata!B$8+Indata!B$10)*(1+Indata!B$15)^((Indata!B$13-Indata!B$10)+Indata!B$10-Indata!B$12)*(1+Stödberäkningar!G$106)^(F59+Indata!B$10-Indata!B$13)*(1)^(F59+Indata!B$10-Indata!B$17)/(1+Indata!B$7)^(F59+Indata!B$10-Indata!B$9))","v":0.16591558691172853}]
[null,null,null,null,null,57,35.148485267954712,{"$f":"IF((Indata!B$10+F60)<Indata!B$13,IF((Indata!B$10+F60)<Indata!B$12,(1+Indata!B$14)^(F60-Indata!B$8+Indata!B$10)*(1+Indata!B$16)^(F60+Indata!B$10-Indata!B$17)/(1+Indata!B$7)^(F60+Indata!B$10-Indata!B$9),(1+Indata!B$14)^((Indata!B$12-Indata!B$10)-Indata!B$8+Indata!B$10)*(1+Indata!B$15)^(F60+Indata!B$10-Indata!B$12)*(1+Indata!B$16)^(F60+Indata!B$10-Indata!B$17)/(1+Indata!B$7)^(F60+Indata!B$10-Indata!B$9)),(1+Indata!B$14)^((Indata!B$12-Indata!B$10)-Indata!B$8+Indata!B$10)*(1+Indata!B$15)^((Indata!B$13-Indata!B$10)+Indata!B$10-Indata!B$12)*(1+Stödberäkningar!G$106)^(F60+Indata!B$10-Indata!B$13)*(1+Indata!B$16)^(Indata!B$13-Indata!B$17)/(1+Indata!B$7)^(F60+Indata!B$10-Indata!B$9))","v":0.27125493290207181},null,null,null,null,null,null,null,null,null,null,null,57,24.667002521020276,{"$f":"IF((Indata!B$10+F60)<Indata!B$13,IF((Indata!B$10+F60)<Indata!B$12,(1+Indata!B$14)^(F60-Indata!B$8+Indata!B$10)*(1)^(F60+Indata!B$10-Indata!B$17)/(1+Indata!B$7)^(F60+Indata!B$10-Indata!B$9),(1+Indata!B$14)^((Indata!B$12-Indata!B$10)-Indata!B$8+Indata!B$10)*(1+Indata!B$15)^(F60+Indata!B$10-Indata!B$12)*(1)^(F60+Indata!B$10-Indata!B$17)/(1+Indata!B$7)^(F60+Indata!B$10-Indata!B$9)),(1+Indata!B$14)^((Indata!B$12-Indata!B$10)-Indata!B$8+Indata!B$10)*(1+Indata!B$15)^((Indata!B$13-Indata!B$10)+Indata!B$10-Indata!B$12)*(1+Stödberäkningar!G$106)^(F60+Indata!B$10-Indata!B$13)*(1)^(F60+Indata!B$10-Indata!B$17)/(1+Indata!B$7)^(F60+Indata!B$10-Indata!B$9))","v":0.16030491489055895}]
[null,null,null,null,null,58,35.410567328729663,{"$f":"IF((Indata!B$10+F61)<Indata!B$13,IF((Indata!B$10+F61)<Indata!B$12,(1+Indata!B$14)^(F61-Indata!B$8+Indata!B$10)*(1+Indata!B$16)^(F61+Indata!B$10-Indata!B$17)/(1+Indata!B$7)^(F61+Indata!B$10-Indata!B$9),(1+Indata!B$14)^((Indata!B$12-Indata!B$10)-Indata!B$8+Indata!B$10)*(1+Indata!B$15)^(F61+Indata!B$10-Indata!B$12)*(1+Indata!B$16)^(F61+Indata!B$10-Indata!B$17)/(1+Indata!B$7)^(F61+Indata!B$10-Indata!B$9)),(1+Indata!B$14)^((Indata!B$12-Indata!B$10)-Indata!B$8+Indata!B$10)*(1+Indata!B$15)^((Indata!B$13-Indata!B$10)+Indata!B$10-Indata!B$12)*(1+Stödberäkningar!G$106)^(F61+Indata!B$10-Indata!B$13)*(1+Indata!B$16)^(Indata!B$13-Indata!B$17)/(1+Indata!B$7)^(F61+Indata!B$10-Indata!B$9))","v":0.26208206077494861},null,null,null,null,null,null,null,null,null,null,null,58,24.821886496759948,{"$f":"IF((Indata!B$10+F61)<Indata!B$13,IF((Indata!B$10+F61)<Indata!B$12,(1+Indata!B$14)^(F61-Indata!B$8+Indata!B$10)*(1)^(F61+Indata!B$10-Indata!B$17)/(1+Indata!B$7)^(F61+Indata!B$10-Indata!B$9),(1+Indata!B$14)^((Indata!B$12-Indata!B$10)-Indata!B$8+Indata!B$10)*(1+Indata!B$15)^(F61+Indata!B$10-Indata!B$12)*(1)^(F61+Indata!B$10-Indata!B$17)/(1+Indata!B$7)^(F61+Indata!B$10-Indata!B$9)),(1+Indata!B$14)^((Indata!B$12-Indata!B$10)-Indata!B$8+Indata!B$10)*(1+Indata!B$15)^((Indata!B$13-Indata!B$10)+Indata!B$10-Indata!B$12)*(1+Stödberäkningar!G$106)^(F61+Indata!B$10-Indata!B$13)*(1)^(F61+Indata!B$10-Indata!B$17)/(1+Indata!B$7)^(F61+Indata!B$10-Indata!B$9))","v":0.1548839757396705}]
[null,null,null,null,null,59,35.66378671112092,{"$f":"IF((Indata!B$10+F62)<Indata!B$13,IF((Indata!B$10+F62)<Indata!B$12,(1+Indata!B$14)^(F62-Indata!B$8+Indata!B$10)*(1+Indata!B$16)^(F62+Indata!B$10-Indata!B$17)/(1+Indata!B$7)^(F62+Indata!B$10-Indata!B$9),(1+Indata!B$14)^((Indata!B$12-Indata!B$10)-Indata!B$8+Indata!B$10)*(1+Indata!B$15)^(F62+Indata!B$10-Indata!B$12)*(1+Indata!B$16)^(F62+Indata!B$10-Indata!B$17)/(1+Indata!B$7)^(F62+Indata!B$10-Indata!B$9)),(1+Indata!B$14)^((Indata!B$12-Indata!B$10)-Indata!B$8+Indata!B$10)*(1+Indata!B$15)^((Indata!B$13-Indata!B$10)+Indata!B$10-Indata!B$12)*(1+Stödberäkningar!G$106)^(F62+Indata!B$10-Indata!B$13)*(1+Indata!B$16)^(Indata!B$13-Indata!B$17)/(1+Indata!B$7)^(F62+Indata!B$10-Indata!B$9))","v":0.2532193823912548},null,null,null,null,null,null,null,null,null,null,null,59,24.971532850131609,{"$f":"IF((Indata!B$10+F62)<Indata!B$13,IF((Indata!B$10+F62)<Indata!B$12,(1+Indata!B$14)^(F62-Indata!B$8+Indata!B$10)*(1)^(F62+Indata!B$10-Indata!B$17)/(1+Indata!B$7)^(F62+Indata!B$10-Indata!B$9),(1+Indata!B$14)^((Indata!B$12-Indata!B$10)-Indata!B$8+Indata!B$10)*(1+Indata!B$15)^(F62+Indata!B$10-Indata!B$12)*(1)^(F62+Indata!B$10-Indata!B$17)/(1+Indata!B$7)^(F62+Indata!B$10-Indata!B$9)),(1+Indata!B$14)^((Indata!B$12-Indata!B$10)-Indata!B$8+Indata!B$10)*(1+Indata!B$15)^((Indata!B$13-Indata!B$10)+Indata!B$10-Indata!B$12)*(1+Stödberäkningar!G$106)^(F62+Indata!B$10-Indata!B$13)*(1)^(F62+Indata!B$10-Indata!B$17)/(1+Indata!B$7)^(F62+Indata!B$10-Indata!B$9))","v":0.14964635337166238}]
[null,null,null,null,null,60,35.908443119228416,{"$f":"IF((Indata!B$10+F63)<Indata!B$13,IF((Indata!B$10+F63)<Indata!B$12,(1+Indata!B$14)^(F63-Indata!B$8+Indata!B$10)*(1+Indata!B$16)^(F63+Indata!B$10-Indata!B$17)/(1+Indata!B$7)^(F63+Indata!B$10-Indata!B$9),(1+Indata!B$14)^((Indata!B$12-Indata!B$10)-Indata!B$8+Indata!B$10)*(1+Indata!B$15)^(F63+Indata!B$10-Indata!B$12)*(1+Indata!B$16)^(F63+Indata!B$10-Indata!B$17)/(1+Indata!B$7)^(F63+Indata!B$10-Indata!B$9)),(1+Indata!B$14)^((Indata!B$12-Indata!B$10)-Indata!B$8+Indata!B$10)*(1+Indata!B$15)^((Indata!B$13-Indata!B$10)+Indata!B$10-Indata!B$12)*(1+Stödberäkningar!G$106)^(F63+Indata!B$10-Indata!B$13)*(1+Indata!B$16)^(Indata!B$13-Indata!B$17)/(1+Indata!B$7)^(F63+Indata!B$10-Indata!B$9))","v":0.24465640810749253},null,null,null,null,null,null,null,null,null,null,null,60,25.116118698799884,{"$f":"IF((Indata!B$10+F63)<Indata!B$13,IF((Indata!B$10+F63)<Indata!B$12,(1+Indata!B$14)^(F63-Indata!B$8+Indata!B$10)*(1)^(F63+Indata!B$10-Indata!B$17)/(1+Indata!B$7)^(F63+Indata!B$10-Indata!B$9),(1+Indata!B$14)^((Indata!B$12-Indata!B$10)-Indata!B$8+Indata!B$10)*(1+Indata!B$15)^(F63+Indata!B$10-Indata!B$12)*(1)^(F63+Indata!B$10-Indata!B$17)/(1+Indata!B$7)^(F63+Indata!B$10-Indata!B$9)),(1+Indata!B$14)^((Indata!B$12-Indata!B$10)-Indata!B$8+Indata!B$10)*(1+Indata!B$15)^((Indata!B$13-Indata!B$10)+Indata!B$10-Indata!B$12)*(1+Stödberäkningar!G$106)^(F63+Indata!B$10-Indata!B$13)*(1)^(F63+Indata!B$10-Indata!B$17)/(1+Indata!B$7)^(F63+Indata!B$10-Indata!B$9))","v":0.14458584866827282}]
[null,null,null,null,null,61,36.144826122230825,{"$f":"IF((Indata!B$10+F64)<Indata!B$13,IF((Indata!B$10+F64)<Indata!B$12,(1+Indata!B$14)^(F64-Indata!B$8+Indata!B$10)*(1+Indata!B$16)^(F64+Indata!B$10-Indata!B$17)/(1+Indata!B$7)^(F64+Indata!B$10-Indata!B$9),(1+Indata!B$14)^((Indata!B$12-Indata!B$10)-Indata!B$8+Indata!B$10)*(1+Indata!B$15)^(F64+Indata!B$10-Indata!B$12)*(1+Indata!B$16)^(F64+Indata!B$10-Indata!B$17)/(1+Indata!B$7)^(F64+Indata!B$10-Indata!B$9)),(1+Indata!B$14)^((Indata!B$12-Indata!B$10)-Indata!B$8+Indata!B$10)*(1+Indata!B$15)^((Indata!B$13-Indata!B$10)+Indata!B$10-Indata!B$12)*(1+Stödberäkningar!G$106)^(F64+Indata!B$10-Indata!B$13)*(1+Indata!B$16)^(Indata!B$13-Indata!B$17)/(1+Indata!B$7)^(F64+Indata!B$10-Indata!B$9))","v":0.23638300300240828},null,null,null,null,null,null,null,null,null,null,null,61,25.255815170943144,{"$f":"IF((Indata!B$10+F64)<Indata!B$13,IF((Indata!B$10+F64)<Indata!B$12,(1+Indata!B$14)^(F64-Indata!B$8+Indata!B$10)*(1)^(F64+Indata!B$10-Indata!B$17)/(1+Indata!B$7)^(F64+Indata!B$10-Indata!B$9),(1+Indata!B$14)^((Indata!B$12-Indata!B$10)-Indata!B$8+Indata!B$10)*(1+Indata!B$15)^(F64+Indata!B$10-Indata!B$12)*(1)^(F64+Indata!B$10-Indata!B$17)/(1+Indata!B$7)^(F64+Indata!B$10-Indata!B$9)),(1+Indata!B$14)^((Indata!B$12-Indata!B$10)-Indata!B$8+Indata!B$10)*(1+Indata!B$15)^((Indata!B$13-Indata!B$10)+Indata!B$10-Indata!B$12)*(1+Stödberäkningar!G$106)^(F64+Indata!B$10-Indata!B$13)*(1)^(F64+Indata!B$10-Indata!B$17)/(1+Indata!B$7)^(F64+Indata!B$10-Indata!B$9))","v":0.13969647214325875}]
[null,null,null,null,null,62,36.373215497112376,{"$f":"IF((Indata!B$10+F65)<Indata!B$13,IF((Indata!B$10+F65)<Indata!B$12,(1+Indata!B$14)^(F65-Indata!B$8+Indata!B$10)*(1+Indata!B$16)^(F65+Indata!B$10-Indata!B$17)/(1+Indata!B$7)^(F65+Indata!B$10-Indata!B$9),(1+Indata!B$14)^((Indata!B$12-Indata!B$10)-Indata!B$8+Indata!B$10)*(1+Indata!B$15)^(F65+Indata!B$10-Indata!B$12)*(1+Indata!B$16)^(F65+Indata!B$10-Indata!B$17)/(1+Indata!B$7)^(F65+Indata!B$10-Indata!B$9)),(1+Indata!B$14)^((Indata!B$12-Indata!B$10)-Indata!B$8+Indata!B$10)*(1+Indata!B$15)^((Indata!B$13-Indata!B$10)+Indata!B$10-Indata!B$12)*(1+Stödberäkningar!G$106)^(F65+Indata!B$10-Indata!B$13)*(1+Indata!B$16)^(Indata!B$13-Indata!B$17)/(1+Indata!B$7)^(F65+Indata!B$10-Indata!B$9))","v":0.22838937488155392},null,null,null,null,null,null,null,null,null,null,null,62,25.390787607796533,{"$f":"IF((Indata!B$10+F65)<Indata!B$13,IF((Indata!B$10+F65)<Indata!B$12,(1+Indata!B$14)^(F65-Indata!B$8+Indata!B$10)*(1)^(F65+Indata!B$10-Indata!B$17)/(1+Indata!B$7)^(F65+Indata!B$10-Indata!B$9),(1+Indata!B$14)^((Indata!B$12-Indata!B$10)-Indata!B$8+Indata!B$10)*(1+Indata!B$15)^(F65+Indata!B$10-Indata!B$12)*(1)^(F65+Indata!B$10-Indata!B$17)/(1+Indata!B$7)^(F65+Indata!B$10-Indata!B$9)),(1+Indata!B$14)^((Indata!B$12-Indata!B$10)-Indata!B$8+Indata!B$10)*(1+Indata!B$15)^((Indata!B$13-Indata!B$10)+Indata!B$10-Indata!B$12)*(1+Stödberäkningar!G$106)^(F65+Indata!B$10-Indata!B$13)*(1)^(F65+Indata!B$10-Indata!B$17)/(1+Indata!B$7)^(F65+Indata!B$10-Indata!B$9))","v":0.13497243685339014}]
[null,null,null,null,null,63,36.593881559799868,{"$f":"IF((Indata!B$10+F66)<Indata!B$13,IF((Indata!B$10+F66)<Indata!B$12,(1+Indata!B$14)^(F66-Indata!B$8+Indata!B$10)*(1+Indata!B$16)^(F66+Indata!B$10-Indata!B$17)/(1+Indata!B$7)^(F66+Indata!B$10-Indata!B$9),(1+Indata!B$14)^((Indata!B$12-Indata!B$10)-Indata!B$8+Indata!B$10)*(1+Indata!B$15)^(F66+Indata!B$10-Indata!B$12)*(1+Indata!B$16)^(F66+Indata!B$10-Indata!B$17)/(1+Indata!B$7)^(F66+Indata!B$10-Indata!B$9)),(1+Indata!B$14)^((Indata!B$12-Indata!B$10)-Indata!B$8+Indata!B$10)*(1+Indata!B$15)^((Indata!B$13-Indata!B$10)+Indata!B$10-Indata!B$12)*(1+Stödberäkningar!G$106)^(F66+Indata!B$10-Indata!B$13)*(1+Indata!B$16)^(Indata!B$13-Indata!B$17)/(1+Indata!B$7)^(F66+Indata!B$10-Indata!B$9))","v":0.22066606268749175},null,null,null,null,null,null,null,null,null,null,null,63,25.521195759345702,{"$f":"IF((Indata!B$10+F66)<Indata!B$13,IF((Indata!B$10+F66)<Indata!B$12,(1+Indata!B$14)^(F66-Indata!B$8+Indata!B$10)*(1)^(F66+Indata!B$10-Indata!B$17)/(1+Indata!B$7)^(F66+Indata!B$10-Indata!B$9),(1+Indata!B$14)^((Indata!B$12-Indata!B$10)-Indata!B$8+Indata!B$10)*(1+Indata!B$15)^(F66+Indata!B$10-Indata!B$12)*(1)^(F66+Indata!B$10-Indata!B$17)/(1+Indata!B$7)^(F66+Indata!B$10-Indata!B$9)),(1+Indata!B$14)^((Indata!B$12-Indata!B$10)-Indata!B$8+Indata!B$10)*(1+Indata!B$15)^((Indata!B$13-Indata!B$10)+Indata!B$10-Indata!B$12)*(1+Stödberäkningar!G$106)^(F66+Indata!B$10-Indata!B$13)*(1)^(F66+Indata!B$10-Indata!B$17)/(1+Indata!B$7)^(F66+Indata!B$10-Indata!B$9))","v":0.13040815154916924}]
[null,null,null,null,null,64,36.807085485101794,{"$f":"IF((Indata!B$10+F67)<Indata!B$13,IF((Indata!B$10+F67)<Indata!B$12,(1+Indata!B$14)^(F67-Indata!B$8+Indata!B$10)*(1+Indata!B$16)^(F67+Indata!B$10-Indata!B$17)/(1+Indata!B$7)^(F67+Indata!B$10-Indata!B$9),(1+Indata!B$14)^((Indata!B$12-Indata!B$10)-Indata!B$8+Indata!B$10)*(1+Indata!B$15)^(F67+Indata!B$10-Indata!B$12)*(1+Indata!B$16)^(F67+Indata!B$10-Indata!B$17)/(1+Indata!B$7)^(F67+Indata!B$10-Indata!B$9)),(1+Indata!B$14)^((Indata!B$12-Indata!B$10)-Indata!B$8+Indata!B$10)*(1+Indata!B$15)^((Indata!B$13-Indata!B$10)+Indata!B$10-Indata!B$12)*(1+Stödberäkningar!G$106)^(F67+Indata!B$10-Indata!B$13)*(1+Indata!B$16)^(Indata!B$13-Indata!B$17)/(1+Indata!B$7)^(F67+Indata!B$10-Indata!B$9))","v":0.21320392530192442},null,null,null,null,null,null,null,null,null,null,null,64,25.647193973402871,{"$f":"IF((Indata!B$10+F67)<Indata!B$13,IF((Indata!B$10+F67)<Indata!B$12,(1+Indata!B$14)^(F67-Indata!B$8+Indata!B$10)*(1)^(F67+Indata!B$10-Indata!B$17)/(1+Indata!B$7)^(F67+Indata!B$10-Indata!B$9),(1+Indata!B$14)^((Indata!B$12-Indata!B$10)-Indata!B$8+Indata!B$10)*(1+Indata!B$15)^(F67+Indata!B$10-Indata!B$12)*(1)^(F67+Indata!B$10-Indata!B$17)/(1+Indata!B$7)^(F67+Indata!B$10-Indata!B$9)),(1+Indata!B$14)^((Indata!B$12-Indata!B$10)-Indata!B$8+Indata!B$10)*(1+Indata!B$15)^((Indata!B$13-Indata!B$10)+Indata!B$10-Indata!B$12)*(1+Stödberäkningar!G$106)^(F67+Indata!B$10-Indata!B$13)*(1)^(F67+Indata!B$10-Indata!B$17)/(1+Indata!B$7)^(F67+Indata!B$10-Indata!B$9))","v":0.12599821405716835}]
[null,null,null,null,null,65,{"$f":"G67+H68","v":37.013079615828289},{"$f":"IF((Indata!B$10+F68)<Indata!B$13,IF((Indata!B$10+F68)<Indata!B$12,(1+Indata!B$14)^(F68-Indata!B$8+Indata!B$10)*(1+Indata!B$16)^(F68+Indata!B$10-Indata!B$17)/(1+Indata!B$7)^(F68+Indata!B$10-Indata!B$9),(1+Indata!B$14)^((Indata!B$12-Indata!B$10)-Indata!B$8+Indata!B$10)*(1+Indata!B$15)^(F68+Indata!B$10-Indata!B$12)*(1+Indata!B$16)^(F68+Indata!B$10-Indata!B$17)/(1+Indata!B$7)^(F68+Indata!B$10-Indata!B$9)),(1+Indata!B$14)^((Indata!B$12-Indata!B$10)-Indata!B$8+Indata!B$10)*(1+Indata!B$15)^((Indata!B$13-Indata!B$10)+Indata!B$10-Indata!B$12)*(1+Stödberäkningar!G$106)^(F68+Indata!B$10-Indata!B$13)*(1+Indata!B$16)^(Indata!B$13-Indata!B$17)/(1+Indata!B$7)^(F68+Indata!B$10-Indata!B$9))","v":0.20599413072649703},null,null,null,null,null,null,null,null,null,null,null,65,25.768931378289025,{"$f":"IF((Indata!B$10+F68)<Indata!B$13,IF((Indata!B$10+F68)<Indata!B$12,(1+Indata!B$14)^(F68-Indata!B$8+Indata!B$10)*(1)^(F68+Indata!B$10-Indata!B$17)/(1+Indata!B$7)^(F68+Indata!B$10-Indata!B$9),(1+Indata!B$14)^((Indata!B$12-Indata!B$10)-Indata!B$8+Indata!B$10)*(1+Indata!B$15)^(F68+Indata!B$10-Indata!B$12)*(1)^(F68+Indata!B$10-Indata!B$17)/(1+Indata!B$7)^(F68+Indata!B$10-Indata!B$9)),(1+Indata!B$14)^((Indata!B$12-Indata!B$10)-Indata!B$8+Indata!B$10)*(1+Indata!B$15)^((Indata!B$13-Indata!B$10)+Indata!B$10-Indata!B$12)*(1+Stödberäkningar!G$106)^(F68+Indata!B$10-Indata!B$13)*(1)^(F68+Indata!B$10-Indata!B$17)/(1+Indata!B$7)^(F68+Indata!B$10-Indata!B$9))","v":0.12173740488615299}]
[null,null,null,null,null,66,37.212107761457752,{"$f":"IF((Indata!B$10+F69)<Indata!B$13,IF((Indata!B$10+F69)<Indata!B$12,(1+Indata!B$14)^(F69-Indata!B$8+Indata!B$10)*(1+Indata!B$16)^(F69+Indata!B$10-Indata!B$17)/(1+Indata!B$7)^(F69+Indata!B$10-Indata!B$9),(1+Indata!B$14)^((Indata!B$12-Indata!B$10)-Indata!B$8+Indata!B$10)*(1+Indata!B$15)^(F69+Indata!B$10-Indata!B$12)*(1+Indata!B$16)^(F69+Indata!B$10-Indata!B$17)/(1+Indata!B$7)^(F69+Indata!B$10-Indata!B$9)),(1+Indata!B$14)^((Indata!B$12-Indata!B$10)-Indata!B$8+Indata!B$10)*(1+Indata!B$15)^((Indata!B$13-Indata!B$10)+Indata!B$10-Indata!B$12)*(1+Stödberäkningar!G$106)^(F69+Indata!B$10-Indata!B$13)*(1+Indata!B$16)^(Indata!B$13-Indata!B$17)/(1+Indata!B$7)^(F69+Indata!B$10-Indata!B$9))","v":0.19902814562946572},null,null,null,null,null,null,null,null,null,null,null,66,{"$f":"U68+V69","v":25.886552059338449},{"$f":"IF((Indata!B$10+F69)<Indata!B$13,IF((Indata!B$10+F69)<Indata!B$12,(1+Indata!B$14)^(F69-Indata!B$8+Indata!B$10)*(1)^(F69+Indata!B$10-Indata!B$17)/(1+Indata!B$7)^(F69+Indata!B$10-Indata!B$9),(1+Indata!B$14)^((Indata!B$12-Indata!B$10)-Indata!B$8+Indata!B$10)*(1+Indata!B$15)^(F69+Indata!B$10-Indata!B$12)*(1)^(F69+Indata!B$10-Indata!B$17)/(1+Indata!B$7)^(F69+Indata!B$10-Indata!B$9)),(1+Indata!B$14)^((Indata!B$12-Indata!B$10)-Indata!B$8+Indata!B$10)*(1+Indata!B$15)^((Indata!B$13-Indata!B$10)+Indata!B$10-Indata!B$12)*(1+Stödberäkningar!G$106)^(F69+Indata!B$10-Indata!B$13)*(1)^(F69+Indata!B$10-Indata!B$17)/(1+Indata!B$7)^(F69+Indata!B$10-Indata!B$9))","v":0.11762068104942318}]
[null,null,null,null,null,67,37.40440548670361,{"$f":"IF((Indata!B$10+F70)<Indata!B$13,IF((Indata!B$10+F70)<Indata!B$12,(1+Indata!B$14)^(F70-Indata!B$8+Indata!B$10)*(1+Indata!B$16)^(F70+Indata!B$10-Indata!B$17)/(1+Indata!B$7)^(F70+Indata!B$10-Indata!B$9),(1+Indata!B$14)^((Indata!B$12-Indata!B$10)-Indata!B$8+Indata!B$10)*(1+Indata!B$15)^(F70+Indata!B$10-Indata!B$12)*(1+Indata!B$16)^(F70+Indata!B$10-Indata!B$17)/(1+Indata!B$7)^(F70+Indata!B$10-Indata!B$9)),(1+Indata!B$14)^((Indata!B$12-Indata!B$10)-Indata!B$8+Indata!B$10)*(1+Indata!B$15)^((Indata!B$13-Indata!B$10)+Indata!B$10-Indata!B$12)*(1+Stödberäkningar!G$106)^(F70+Indata!B$10-Indata!B$13)*(1+Indata!B$16)^(Indata!B$13-Indata!B$17)/(1+Indata!B$7)^(F70+Indata!B$10-Indata!B$9))","v":0.19229772524586064},null,null,null,null,null,null,null,null,null,null,null,67,26.00019522943451,{"$f":"IF((Indata!B$10+F70)<Indata!B$13,IF((Indata!B$10+F70)<Indata!B$12,(1+Indata!B$14)^(F70-Indata!B$8+Indata!B$10)*(1)^(F70+Indata!B$10-Indata!B$17)/(1+Indata!B$7)^(F70+Indata!B$10-Indata!B$9),(1+Indata!B$14)^((Indata!B$12-Indata!B$10)-Indata!B$8+Indata!B$10)*(1+Indata!B$15)^(F70+Indata!B$10-Indata!B$12)*(1)^(F70+Indata!B$10-Indata!B$17)/(1+Indata!B$7)^(F70+Indata!B$10-Indata!B$9)),(1+Indata!B$14)^((Indata!B$12-Indata!B$10)-Indata!B$8+Indata!B$10)*(1+Indata!B$15)^((Indata!B$13-Indata!B$10)+Indata!B$10-Indata!B$12)*(1+Stödberäkningar!G$106)^(F70+Indata!B$10-Indata!B$13)*(1)^(F70+Indata!B$10-Indata!B$17)/(1+Indata!B$7)^(F70+Indata!B$10-Indata!B$9))","v":0.11364317009606108}]
[null,null,null,null,null,68,37.590200390322799,{"$f":"IF((Indata!B$10+F71)<Indata!B$13,IF((Indata!B$10+F71)<Indata!B$12,(1+Indata!B$14)^(F71-Indata!B$8+Indata!B$10)*(1+Indata!B$16)^(F71+Indata!B$10-Indata!B$17)/(1+Indata!B$7)^(F71+Indata!B$10-Indata!B$9),(1+Indata!B$14)^((Indata!B$12-Indata!B$10)-Indata!B$8+Indata!B$10)*(1+Indata!B$15)^(F71+Indata!B$10-Indata!B$12)*(1+Indata!B$16)^(F71+Indata!B$10-Indata!B$17)/(1+Indata!B$7)^(F71+Indata!B$10-Indata!B$9)),(1+Indata!B$14)^((Indata!B$12-Indata!B$10)-Indata!B$8+Indata!B$10)*(1+Indata!B$15)^((Indata!B$13-Indata!B$10)+Indata!B$10-Indata!B$12)*(1+Stödberäkningar!G$106)^(F71+Indata!B$10-Indata!B$13)*(1+Indata!B$16)^(Indata!B$13-Indata!B$17)/(1+Indata!B$7)^(F71+Indata!B$10-Indata!B$9))","v":0.18579490361918899},null,null,null,null,null,null,null,null,null,null,null,68,26.109995393778529,{"$f":"IF((Indata!B$10+F71)<Indata!B$13,IF((Indata!B$10+F71)<Indata!B$12,(1+Indata!B$14)^(F71-Indata!B$8+Indata!B$10)*(1)^(F71+Indata!B$10-Indata!B$17)/(1+Indata!B$7)^(F71+Indata!B$10-Indata!B$9),(1+Indata!B$14)^((Indata!B$12-Indata!B$10)-Indata!B$8+Indata!B$10)*(1+Indata!B$15)^(F71+Indata!B$10-Indata!B$12)*(1)^(F71+Indata!B$10-Indata!B$17)/(1+Indata!B$7)^(F71+Indata!B$10-Indata!B$9)),(1+Indata!B$14)^((Indata!B$12-Indata!B$10)-Indata!B$8+Indata!B$10)*(1+Indata!B$15)^((Indata!B$13-Indata!B$10)+Indata!B$10-Indata!B$12)*(1+Stödberäkningar!G$106)^(F71+Indata!B$10-Indata!B$13)*(1)^(F71+Indata!B$10-Indata!B$17)/(1+Indata!B$7)^(F71+Indata!B$10-Indata!B$9))","v":0.10980016434402035}]
[null,null,null,null,null,69,37.769712374495931,{"$f":"IF((Indata!B$10+F72)<Indata!B$13,IF((Indata!B$10+F72)<Indata!B$12,(1+Indata!B$14)^(F72-Indata!B$8+Indata!B$10)*(1+Indata!B$16)^(F72+Indata!B$10-Indata!B$17)/(1+Indata!B$7)^(F72+Indata!B$10-Indata!B$9),(1+Indata!B$14)^((Indata!B$12-Indata!B$10)-Indata!B$8+Indata!B$10)*(1+Indata!B$15)^(F72+Indata!B$10-Indata!B$12)*(1+Indata!B$16)^(F72+Indata!B$10-Indata!B$17)/(1+Indata!B$7)^(F72+Indata!B$10-Indata!B$9)),(1+Indata!B$14)^((Indata!B$12-Indata!B$10)-Indata!B$8+Indata!B$10)*(1+Indata!B$15)^((Indata!B$13-Indata!B$10)+Indata!B$10-Indata!B$12)*(1+Stödberäkningar!G$106)^(F72+Indata!B$10-Indata!B$13)*(1+Indata!B$16)^(Indata!B$13-Indata!B$17)/(1+Indata!B$7)^(F72+Indata!B$10-Indata!B$9))","v":0.1795119841731295},null,null,null,null,null,null,null,null,null,null,null,69,26.21608250908676,{"$f":"IF((Indata!B$10+F72)<Indata!B$13,IF((Indata!B$10+F72)<Indata!B$12,(1+Indata!B$14)^(F72-Indata!B$8+Indata!B$10)*(1)^(F72+Indata!B$10-Indata!B$17)/(1+Indata!B$7)^(F72+Indata!B$10-Indata!B$9),(1+Indata!B$14)^((Indata!B$12-Indata!B$10)-Indata!B$8+Indata!B$10)*(1+Indata!B$15)^(F72+Indata!B$10-Indata!B$12)*(1)^(F72+Indata!B$10-Indata!B$17)/(1+Indata!B$7)^(F72+Indata!B$10-Indata!B$9)),(1+Indata!B$14)^((Indata!B$12-Indata!B$10)-Indata!B$8+Indata!B$10)*(1+Indata!B$15)^((Indata!B$13-Indata!B$10)+Indata!B$10-Indata!B$12)*(1+Stödberäkningar!G$106)^(F72+Indata!B$10-Indata!B$13)*(1)^(F72+Indata!B$10-Indata!B$17)/(1+Indata!B$7)^(F72+Indata!B$10-Indata!B$9))","v":0.10608711530823224}]
[null,null,null,null,null,70,37.943153905097986,{"$f":"IF((Indata!B$10+F73)<Indata!B$13,IF((Indata!B$10+F73)<Indata!B$12,(1+Indata!B$14)^(F73-Indata!B$8+Indata!B$10)*(1+Indata!B$16)^(F73+Indata!B$10-Indata!B$17)/(1+Indata!B$7)^(F73+Indata!B$10-Indata!B$9),(1+Indata!B$14)^((Indata!B$12-Indata!B$10)-Indata!B$8+Indata!B$10)*(1+Indata!B$15)^(F73+Indata!B$10-Indata!B$12)*(1+Indata!B$16)^(F73+Indata!B$10-Indata!B$17)/(1+Indata!B$7)^(F73+Indata!B$10-Indata!B$9)),(1+Indata!B$14)^((Indata!B$12-Indata!B$10)-Indata!B$8+Indata!B$10)*(1+Indata!B$15)^((Indata!B$13-Indata!B$10)+Indata!B$10-Indata!B$12)*(1+Stödberäkningar!G$106)^(F73+Indata!B$10-Indata!B$13)*(1+Indata!B$16)^(Indata!B$13-Indata!B$17)/(1+Indata!B$7)^(F73+Indata!B$10-Indata!B$9))","v":0.17344153060205753},null,null,null,null,null,null,null,null,null,null,null,70,26.318582137403894,{"$f":"IF((Indata!B$10+F73)<Indata!B$13,IF((Indata!B$10+F73)<Indata!B$12,(1+Indata!B$14)^(F73-Indata!B$8+Indata!B$10)*(1)^(F73+Indata!B$10-Indata!B$17)/(1+Indata!B$7)^(F73+Indata!B$10-Indata!B$9),(1+Indata!B$14)^((Indata!B$12-Indata!B$10)-Indata!B$8+Indata!B$10)*(1+Indata!B$15)^(F73+Indata!B$10-Indata!B$12)*(1)^(F73+Indata!B$10-Indata!B$17)/(1+Indata!B$7)^(F73+Indata!B$10-Indata!B$9)),(1+Indata!B$14)^((Indata!B$12-Indata!B$10)-Indata!B$8+Indata!B$10)*(1+Indata!B$15)^((Indata!B$13-Indata!B$10)+Indata!B$10-Indata!B$12)*(1+Stödberäkningar!G$106)^(F73+Indata!B$10-Indata!B$13)*(1)^(F73+Indata!B$10-Indata!B$17)/(1+Indata!B$7)^(F73+Indata!B$10-Indata!B$9))","v":0.10249962831713261}]
[null,null,null,null,null,71,38.110730263167611,{"$f":"IF((Indata!B$10+F74)<Indata!B$13,IF((Indata!B$10+F74)<Indata!B$12,(1+Indata!B$14)^(F74-Indata!B$8+Indata!B$10)*(1+Indata!B$16)^(F74+Indata!B$10-Indata!B$17)/(1+Indata!B$7)^(F74+Indata!B$10-Indata!B$9),(1+Indata!B$14)^((Indata!B$12-Indata!B$10)-Indata!B$8+Indata!B$10)*(1+Indata!B$15)^(F74+Indata!B$10-Indata!B$12)*(1+Indata!B$16)^(F74+Indata!B$10-Indata!B$17)/(1+Indata!B$7)^(F74+Indata!B$10-Indata!B$9)),(1+Indata!B$14)^((Indata!B$12-Indata!B$10)-Indata!B$8+Indata!B$10)*(1+Indata!B$15)^((Indata!B$13-Indata!B$10)+Indata!B$10-Indata!B$12)*(1+Stödberäkningar!G$106)^(F74+Indata!B$10-Indata!B$13)*(1+Indata!B$16)^(Indata!B$13-Indata!B$17)/(1+Indata!B$7)^(F74+Indata!B$10-Indata!B$9))","v":0.16757635806962082},null,null,null,null,null,null,null,null,null,null,null,71,26.417615594715134,{"$f":"IF((Indata!B$10+F74)<Indata!B$13,IF((Indata!B$10+F74)<Indata!B$12,(1+Indata!B$14)^(F74-Indata!B$8+Indata!B$10)*(1)^(F74+Indata!B$10-Indata!B$17)/(1+Indata!B$7)^(F74+Indata!B$10-Indata!B$9),(1+Indata!B$14)^((Indata!B$12-Indata!B$10)-Indata!B$8+Indata!B$10)*(1+Indata!B$15)^(F74+Indata!B$10-Indata!B$12)*(1)^(F74+Indata!B$10-Indata!B$17)/(1+Indata!B$7)^(F74+Indata!B$10-Indata!B$9)),(1+Indata!B$14)^((Indata!B$12-Indata!B$10)-Indata!B$8+Indata!B$10)*(1+Indata!B$15)^((Indata!B$13-Indata!B$10)+Indata!B$10-Indata!B$12)*(1+Stödberäkningar!G$106)^(F74+Indata!B$10-Indata!B$13)*(1)^(F74+Indata!B$10-Indata!B$17)/(1+Indata!B$7)^(F74+Indata!B$10-Indata!B$9))","v":9.9033457311239248E-2}]
[null,null,null,null,null,72,38.272639787872556,{"$f":"IF((Indata!B$10+F75)<Indata!B$13,IF((Indata!B$10+F75)<Indata!B$12,(1+Indata!B$14)^(F75-Indata!B$8+Indata!B$10)*(1+Indata!B$16)^(F75+Indata!B$10-Indata!B$17)/(1+Indata!B$7)^(F75+Indata!B$10-Indata!B$9),(1+Indata!B$14)^((Indata!B$12-Indata!B$10)-Indata!B$8+Indata!B$10)*(1+Indata!B$15)^(F75+Indata!B$10-Indata!B$12)*(1+Indata!B$16)^(F75+Indata!B$10-Indata!B$17)/(1+Indata!B$7)^(F75+Indata!B$10-Indata!B$9)),(1+Indata!B$14)^((Indata!B$12-Indata!B$10)-Indata!B$8+Indata!B$10)*(1+Indata!B$15)^((Indata!B$13-Indata!B$10)+Indata!B$10-Indata!B$12)*(1+Stödberäkningar!G$106)^(F75+Indata!B$10-Indata!B$13)*(1+Indata!B$16)^(Indata!B$13-Indata!B$17)/(1+Indata!B$7)^(F75+Indata!B$10-Indata!B$9))","v":0.16190952470494765},null,null,null,null,null,null,null,null,null,null,null,72,26.513300094532756,{"$f":"IF((Indata!B$10+F75)<Indata!B$13,IF((Indata!B$10+F75)<Indata!B$12,(1+Indata!B$14)^(F75-Indata!B$8+Indata!B$10)*(1)^(F75+Indata!B$10-Indata!B$17)/(1+Indata!B$7)^(F75+Indata!B$10-Indata!B$9),(1+Indata!B$14)^((Indata!B$12-Indata!B$10)-Indata!B$8+Indata!B$10)*(1+Indata!B$15)^(F75+Indata!B$10-Indata!B$12)*(1)^(F75+Indata!B$10-Indata!B$17)/(1+Indata!B$7)^(F75+Indata!B$10-Indata!B$9)),(1+Indata!B$14)^((Indata!B$12-Indata!B$10)-Indata!B$8+Indata!B$10)*(1+Indata!B$15)^((Indata!B$13-Indata!B$10)+Indata!B$10-Indata!B$12)*(1+Stödberäkningar!G$106)^(F75+Indata!B$10-Indata!B$13)*(1)^(F75+Indata!B$10-Indata!B$17)/(1+Indata!B$7)^(F75+Indata!B$10-Indata!B$9))","v":9.5684499817622476E-2}]
[null,null,null,null,null,73,38.429074111258977,{"$f":"IF((Indata!B$10+F76)<Indata!B$13,IF((Indata!B$10+F76)<Indata!B$12,(1+Indata!B$14)^(F76-Indata!B$8+Indata!B$10)*(1+Indata!B$16)^(F76+Indata!B$10-Indata!B$17)/(1+Indata!B$7)^(F76+Indata!B$10-Indata!B$9),(1+Indata!B$14)^((Indata!B$12-Indata!B$10)-Indata!B$8+Indata!B$10)*(1+Indata!B$15)^(F76+Indata!B$10-Indata!B$12)*(1+Indata!B$16)^(F76+Indata!B$10-Indata!B$17)/(1+Indata!B$7)^(F76+Indata!B$10-Indata!B$9)),(1+Indata!B$14)^((Indata!B$12-Indata!B$10)-Indata!B$8+Indata!B$10)*(1+Indata!B$15)^((Indata!B$13-Indata!B$10)+Indata!B$10-Indata!B$12)*(1+Stödberäkningar!G$106)^(F76+Indata!B$10-Indata!B$13)*(1+Indata!B$16)^(Indata!B$13-Indata!B$17)/(1+Indata!B$7)^(F76+Indata!B$10-Indata!B$9))","v":0.15643432338642285},null,null,null,null,null,null,null,null,null,null,null,73,26.605748886627076,{"$f":"IF((Indata!B$10+F76)<Indata!B$13,IF((Indata!B$10+F76)<Indata!B$12,(1+Indata!B$14)^(F76-Indata!B$8+Indata!B$10)*(1)^(F76+Indata!B$10-Indata!B$17)/(1+Indata!B$7)^(F76+Indata!B$10-Indata!B$9),(1+Indata!B$14)^((Indata!B$12-Indata!B$10)-Indata!B$8+Indata!B$10)*(1+Indata!B$15)^(F76+Indata!B$10-Indata!B$12)*(1)^(F76+Indata!B$10-Indata!B$17)/(1+Indata!B$7)^(F76+Indata!B$10-Indata!B$9)),(1+Indata!B$14)^((Indata!B$12-Indata!B$10)-Indata!B$8+Indata!B$10)*(1+Indata!B$15)^((Indata!B$13-Indata!B$10)+Indata!B$10-Indata!B$12)*(1+Stödberäkningar!G$106)^(F76+Indata!B$10-Indata!B$13)*(1)^(F76+Indata!B$10-Indata!B$17)/(1+Indata!B$7)^(F76+Indata!B$10-Indata!B$9))","v":9.2448792094321219E-2}]
[null,null,null,null,null,74,38.580218385062281,{"$f":"IF((Indata!B$10+F77)<Indata!B$13,IF((Indata!B$10+F77)<Indata!B$12,(1+Indata!B$14)^(F77-Indata!B$8+Indata!B$10)*(1+Indata!B$16)^(F77+Indata!B$10-Indata!B$17)/(1+Indata!B$7)^(F77+Indata!B$10-Indata!B$9),(1+Indata!B$14)^((Indata!B$12-Indata!B$10)-Indata!B$8+Indata!B$10)*(1+Indata!B$15)^(F77+Indata!B$10-Indata!B$12)*(1+Indata!B$16)^(F77+Indata!B$10-Indata!B$17)/(1+Indata!B$7)^(F77+Indata!B$10-Indata!B$9)),(1+Indata!B$14)^((Indata!B$12-Indata!B$10)-Indata!B$8+Indata!B$10)*(1+Indata!B$15)^((Indata!B$13-Indata!B$10)+Indata!B$10-Indata!B$12)*(1+Stödberäkningar!G$106)^(F77+Indata!B$10-Indata!B$13)*(1+Indata!B$16)^(Indata!B$13-Indata!B$17)/(1+Indata!B$7)^(F77+Indata!B$10-Indata!B$9))","v":0.15114427380330711},null,null,null,null,null,null,null,null,null,null,null,74,26.695071391066033,{"$f":"IF((Indata!B$10+F77)<Indata!B$13,IF((Indata!B$10+F77)<Indata!B$12,(1+Indata!B$14)^(F77-Indata!B$8+Indata!B$10)*(1)^(F77+Indata!B$10-Indata!B$17)/(1+Indata!B$7)^(F77+Indata!B$10-Indata!B$9),(1+Indata!B$14)^((Indata!B$12-Indata!B$10)-Indata!B$8+Indata!B$10)*(1+Indata!B$15)^(F77+Indata!B$10-Indata!B$12)*(1)^(F77+Indata!B$10-Indata!B$17)/(1+Indata!B$7)^(F77+Indata!B$10-Indata!B$9)),(1+Indata!B$14)^((Indata!B$12-Indata!B$10)-Indata!B$8+Indata!B$10)*(1+Indata!B$15)^((Indata!B$13-Indata!B$10)+Indata!B$10-Indata!B$12)*(1+Stödberäkningar!G$106)^(F77+Indata!B$10-Indata!B$13)*(1)^(F77+Indata!B$10-Indata!B$17)/(1+Indata!B$7)^(F77+Indata!B$10-Indata!B$9))","v":8.9322504438957714E-2}]
[null,null,null,null,null,75,38.726251499848082,{"$f":"IF((Indata!B$10+F78)<Indata!B$13,IF((Indata!B$10+F78)<Indata!B$12,(1+Indata!B$14)^(F78-Indata!B$8+Indata!B$10)*(1+Indata!B$16)^(F78+Indata!B$10-Indata!B$17)/(1+Indata!B$7)^(F78+Indata!B$10-Indata!B$9),(1+Indata!B$14)^((Indata!B$12-Indata!B$10)-Indata!B$8+Indata!B$10)*(1+Indata!B$15)^(F78+Indata!B$10-Indata!B$12)*(1+Indata!B$16)^(F78+Indata!B$10-Indata!B$17)/(1+Indata!B$7)^(F78+Indata!B$10-Indata!B$9)),(1+Indata!B$14)^((Indata!B$12-Indata!B$10)-Indata!B$8+Indata!B$10)*(1+Indata!B$15)^((Indata!B$13-Indata!B$10)+Indata!B$10-Indata!B$12)*(1+Stödberäkningar!G$106)^(F78+Indata!B$10-Indata!B$13)*(1+Indata!B$16)^(Indata!B$13-Indata!B$17)/(1+Indata!B$7)^(F78+Indata!B$10-Indata!B$9))","v":0.146033114785804},null,null,null,null,null,null,null,null,null,null,null,75,26.781373327722029,{"$f":"IF((Indata!B$10+F78)<Indata!B$13,IF((Indata!B$10+F78)<Indata!B$12,(1+Indata!B$14)^(F78-Indata!B$8+Indata!B$10)*(1)^(F78+Indata!B$10-Indata!B$17)/(1+Indata!B$7)^(F78+Indata!B$10-Indata!B$9),(1+Indata!B$14)^((Indata!B$12-Indata!B$10)-Indata!B$8+Indata!B$10)*(1+Indata!B$15)^(F78+Indata!B$10-Indata!B$12)*(1)^(F78+Indata!B$10-Indata!B$17)/(1+Indata!B$7)^(F78+Indata!B$10-Indata!B$9)),(1+Indata!B$14)^((Indata!B$12-Indata!B$10)-Indata!B$8+Indata!B$10)*(1+Indata!B$15)^((Indata!B$13-Indata!B$10)+Indata!B$10-Indata!B$12)*(1+Stödberäkningar!G$106)^(F78+Indata!B$10-Indata!B$13)*(1)^(F78+Indata!B$10-Indata!B$17)/(1+Indata!B$7)^(F78+Indata!B$10-Indata!B$9))","v":8.6301936655997807E-2}]
[null,null,null,null,null,76,38.867346296742582,{"$f":"IF((Indata!B$10+F79)<Indata!B$13,IF((Indata!B$10+F79)<Indata!B$12,(1+Indata!B$14)^(F79-Indata!B$8+Indata!B$10)*(1+Indata!B$16)^(F79+Indata!B$10-Indata!B$17)/(1+Indata!B$7)^(F79+Indata!B$10-Indata!B$9),(1+Indata!B$14)^((Indata!B$12-Indata!B$10)-Indata!B$8+Indata!B$10)*(1+Indata!B$15)^(F79+Indata!B$10-Indata!B$12)*(1+Indata!B$16)^(F79+Indata!B$10-Indata!B$17)/(1+Indata!B$7)^(F79+Indata!B$10-Indata!B$9)),(1+Indata!B$14)^((Indata!B$12-Indata!B$10)-Indata!B$8+Indata!B$10)*(1+Indata!B$15)^((Indata!B$13-Indata!B$10)+Indata!B$10-Indata!B$12)*(1+Stödberäkningar!G$106)^(F79+Indata!B$10-Indata!B$13)*(1+Indata!B$16)^(Indata!B$13-Indata!B$17)/(1+Indata!B$7)^(F79+Indata!B$10-Indata!B$9))","v":0.14109479689449661},null,null,null,null,null,null,null,null,null,null,null,76,26.864756841399323,{"$f":"IF((Indata!B$10+F79)<Indata!B$13,IF((Indata!B$10+F79)<Indata!B$12,(1+Indata!B$14)^(F79-Indata!B$8+Indata!B$10)*(1)^(F79+Indata!B$10-Indata!B$17)/(1+Indata!B$7)^(F79+Indata!B$10-Indata!B$9),(1+Indata!B$14)^((Indata!B$12-Indata!B$10)-Indata!B$8+Indata!B$10)*(1+Indata!B$15)^(F79+Indata!B$10-Indata!B$12)*(1)^(F79+Indata!B$10-Indata!B$17)/(1+Indata!B$7)^(F79+Indata!B$10-Indata!B$9)),(1+Indata!B$14)^((Indata!B$12-Indata!B$10)-Indata!B$8+Indata!B$10)*(1+Indata!B$15)^((Indata!B$13-Indata!B$10)+Indata!B$10-Indata!B$12)*(1+Stödberäkningar!G$106)^(F79+Indata!B$10-Indata!B$13)*(1)^(F79+Indata!B$10-Indata!B$17)/(1+Indata!B$7)^(F79+Indata!B$10-Indata!B$9))","v":8.3383513677292562E-2}]
[null,null,null,null,null,77,39.003669772002965,{"$f":"IF((Indata!B$10+F80)<Indata!B$13,IF((Indata!B$10+F80)<Indata!B$12,(1+Indata!B$14)^(F80-Indata!B$8+Indata!B$10)*(1+Indata!B$16)^(F80+Indata!B$10-Indata!B$17)/(1+Indata!B$7)^(F80+Indata!B$10-Indata!B$9),(1+Indata!B$14)^((Indata!B$12-Indata!B$10)-Indata!B$8+Indata!B$10)*(1+Indata!B$15)^(F80+Indata!B$10-Indata!B$12)*(1+Indata!B$16)^(F80+Indata!B$10-Indata!B$17)/(1+Indata!B$7)^(F80+Indata!B$10-Indata!B$9)),(1+Indata!B$14)^((Indata!B$12-Indata!B$10)-Indata!B$8+Indata!B$10)*(1+Indata!B$15)^((Indata!B$13-Indata!B$10)+Indata!B$10-Indata!B$12)*(1+Stödberäkningar!G$106)^(F80+Indata!B$10-Indata!B$13)*(1+Indata!B$16)^(Indata!B$13-Indata!B$17)/(1+Indata!B$7)^(F80+Indata!B$10-Indata!B$9))","v":0.13632347526038321},null,null,null,null,null,null,null,null,null,null,null,77,26.945320622730041,{"$f":"IF((Indata!B$10+F80)<Indata!B$13,IF((Indata!B$10+F80)<Indata!B$12,(1+Indata!B$14)^(F80-Indata!B$8+Indata!B$10)*(1)^(F80+Indata!B$10-Indata!B$17)/(1+Indata!B$7)^(F80+Indata!B$10-Indata!B$9),(1+Indata!B$14)^((Indata!B$12-Indata!B$10)-Indata!B$8+Indata!B$10)*(1+Indata!B$15)^(F80+Indata!B$10-Indata!B$12)*(1)^(F80+Indata!B$10-Indata!B$17)/(1+Indata!B$7)^(F80+Indata!B$10-Indata!B$9)),(1+Indata!B$14)^((Indata!B$12-Indata!B$10)-Indata!B$8+Indata!B$10)*(1+Indata!B$15)^((Indata!B$13-Indata!B$10)+Indata!B$10-Indata!B$12)*(1+Stödberäkningar!G$106)^(F80+Indata!B$10-Indata!B$13)*(1)^(F80+Indata!B$10-Indata!B$17)/(1+Indata!B$7)^(F80+Indata!B$10-Indata!B$9))","v":8.0563781330717454E-2}]
[null,null,null,null,null,78,39.135383274670005,{"$f":"IF((Indata!B$10+F81)<Indata!B$13,IF((Indata!B$10+F81)<Indata!B$12,(1+Indata!B$14)^(F81-Indata!B$8+Indata!B$10)*(1+Indata!B$16)^(F81+Indata!B$10-Indata!B$17)/(1+Indata!B$7)^(F81+Indata!B$10-Indata!B$9),(1+Indata!B$14)^((Indata!B$12-Indata!B$10)-Indata!B$8+Indata!B$10)*(1+Indata!B$15)^(F81+Indata!B$10-Indata!B$12)*(1+Indata!B$16)^(F81+Indata!B$10-Indata!B$17)/(1+Indata!B$7)^(F81+Indata!B$10-Indata!B$9)),(1+Indata!B$14)^((Indata!B$12-Indata!B$10)-Indata!B$8+Indata!B$10)*(1+Indata!B$15)^((Indata!B$13-Indata!B$10)+Indata!B$10-Indata!B$12)*(1+Stödberäkningar!G$106)^(F81+Indata!B$10-Indata!B$13)*(1+Indata!B$16)^(Indata!B$13-Indata!B$17)/(1+Indata!B$7)^(F81+Indata!B$10-Indata!B$9))","v":0.13171350266703696},null,null,null,null,null,null,null,null,null,null,null,78,27.023160024981941,{"$f":"IF((Indata!B$10+F81)<Indata!B$13,IF((Indata!B$10+F81)<Indata!B$12,(1+Indata!B$14)^(F81-Indata!B$8+Indata!B$10)*(1)^(F81+Indata!B$10-Indata!B$17)/(1+Indata!B$7)^(F81+Indata!B$10-Indata!B$9),(1+Indata!B$14)^((Indata!B$12-Indata!B$10)-Indata!B$8+Indata!B$10)*(1+Indata!B$15)^(F81+Indata!B$10-Indata!B$12)*(1)^(F81+Indata!B$10-Indata!B$17)/(1+Indata!B$7)^(F81+Indata!B$10-Indata!B$9)),(1+Indata!B$14)^((Indata!B$12-Indata!B$10)-Indata!B$8+Indata!B$10)*(1+Indata!B$15)^((Indata!B$13-Indata!B$10)+Indata!B$10-Indata!B$12)*(1+Stödberäkningar!G$106)^(F81+Indata!B$10-Indata!B$13)*(1)^(F81+Indata!B$10-Indata!B$17)/(1+Indata!B$7)^(F81+Indata!B$10-Indata!B$9))","v":7.7839402251900947E-2}]
[null,null,null,null,null,79,39.262642697536705,{"$f":"IF((Indata!B$10+F82)<Indata!B$13,IF((Indata!B$10+F82)<Indata!B$12,(1+Indata!B$14)^(F82-Indata!B$8+Indata!B$10)*(1+Indata!B$16)^(F82+Indata!B$10-Indata!B$17)/(1+Indata!B$7)^(F82+Indata!B$10-Indata!B$9),(1+Indata!B$14)^((Indata!B$12-Indata!B$10)-Indata!B$8+Indata!B$10)*(1+Indata!B$15)^(F82+Indata!B$10-Indata!B$12)*(1+Indata!B$16)^(F82+Indata!B$10-Indata!B$17)/(1+Indata!B$7)^(F82+Indata!B$10-Indata!B$9)),(1+Indata!B$14)^((Indata!B$12-Indata!B$10)-Indata!B$8+Indata!B$10)*(1+Indata!B$15)^((Indata!B$13-Indata!B$10)+Indata!B$10-Indata!B$12)*(1+Stödberäkningar!G$106)^(F82+Indata!B$10-Indata!B$13)*(1+Indata!B$16)^(Indata!B$13-Indata!B$17)/(1+Indata!B$7)^(F82+Indata!B$10-Indata!B$9))","v":0.12725942286670236},null,null,null,null,null,null,null,null,null,null,null,79,27.098367176916145,{"$f":"IF((Indata!B$10+F82)<Indata!B$13,IF((Indata!B$10+F82)<Indata!B$12,(1+Indata!B$14)^(F82-Indata!B$8+Indata!B$10)*(1)^(F82+Indata!B$10-Indata!B$17)/(1+Indata!B$7)^(F82+Indata!B$10-Indata!B$9),(1+Indata!B$14)^((Indata!B$12-Indata!B$10)-Indata!B$8+Indata!B$10)*(1+Indata!B$15)^(F82+Indata!B$10-Indata!B$12)*(1)^(F82+Indata!B$10-Indata!B$17)/(1+Indata!B$7)^(F82+Indata!B$10-Indata!B$9)),(1+Indata!B$14)^((Indata!B$12-Indata!B$10)-Indata!B$8+Indata!B$10)*(1+Indata!B$15)^((Indata!B$13-Indata!B$10)+Indata!B$10-Indata!B$12)*(1+Stödberäkningar!G$106)^(F82+Indata!B$10-Indata!B$13)*(1)^(F82+Indata!B$10-Indata!B$17)/(1+Indata!B$7)^(F82+Indata!B$10-Indata!B$9))","v":7.5207151934203811E-2}]
[null,null,null,null,null,80,39.385598661659124,{"$f":"IF((Indata!B$10+F83)<Indata!B$13,IF((Indata!B$10+F83)<Indata!B$12,(1+Indata!B$14)^(F83-Indata!B$8+Indata!B$10)*(1+Indata!B$16)^(F83+Indata!B$10-Indata!B$17)/(1+Indata!B$7)^(F83+Indata!B$10-Indata!B$9),(1+Indata!B$14)^((Indata!B$12-Indata!B$10)-Indata!B$8+Indata!B$10)*(1+Indata!B$15)^(F83+Indata!B$10-Indata!B$12)*(1+Indata!B$16)^(F83+Indata!B$10-Indata!B$17)/(1+Indata!B$7)^(F83+Indata!B$10-Indata!B$9)),(1+Indata!B$14)^((Indata!B$12-Indata!B$10)-Indata!B$8+Indata!B$10)*(1+Indata!B$15)^((Indata!B$13-Indata!B$10)+Indata!B$10-Indata!B$12)*(1+Stödberäkningar!G$106)^(F83+Indata!B$10-Indata!B$13)*(1+Indata!B$16)^(Indata!B$13-Indata!B$17)/(1+Indata!B$7)^(F83+Indata!B$10-Indata!B$9))","v":0.12295596412241774},null,null,null,null,null,null,null,null,null,null,null,80,27.171031091828418,{"$f":"IF((Indata!B$10+F83)<Indata!B$13,IF((Indata!B$10+F83)<Indata!B$12,(1+Indata!B$14)^(F83-Indata!B$8+Indata!B$10)*(1)^(F83+Indata!B$10-Indata!B$17)/(1+Indata!B$7)^(F83+Indata!B$10-Indata!B$9),(1+Indata!B$14)^((Indata!B$12-Indata!B$10)-Indata!B$8+Indata!B$10)*(1+Indata!B$15)^(F83+Indata!B$10-Indata!B$12)*(1)^(F83+Indata!B$10-Indata!B$17)/(1+Indata!B$7)^(F83+Indata!B$10-Indata!B$9)),(1+Indata!B$14)^((Indata!B$12-Indata!B$10)-Indata!B$8+Indata!B$10)*(1+Indata!B$15)^((Indata!B$13-Indata!B$10)+Indata!B$10-Indata!B$12)*(1+Stödberäkningar!G$106)^(F83+Indata!B$10-Indata!B$13)*(1)^(F83+Indata!B$10-Indata!B$17)/(1+Indata!B$7)^(F83+Indata!B$10-Indata!B$9))","v":7.2663914912274211E-2}]
[null,null,null,null,null,81,39.504396694627644,{"$f":"IF((Indata!B$10+F84)<Indata!B$13,IF((Indata!B$10+F84)<Indata!B$12,(1+Indata!B$14)^(F84-Indata!B$8+Indata!B$10)*(1+Indata!B$16)^(F84+Indata!B$10-Indata!B$17)/(1+Indata!B$7)^(F84+Indata!B$10-Indata!B$9),(1+Indata!B$14)^((Indata!B$12-Indata!B$10)-Indata!B$8+Indata!B$10)*(1+Indata!B$15)^(F84+Indata!B$10-Indata!B$12)*(1+Indata!B$16)^(F84+Indata!B$10-Indata!B$17)/(1+Indata!B$7)^(F84+Indata!B$10-Indata!B$9)),(1+Indata!B$14)^((Indata!B$12-Indata!B$10)-Indata!B$8+Indata!B$10)*(1+Indata!B$15)^((Indata!B$13-Indata!B$10)+Indata!B$10-Indata!B$12)*(1+Stödberäkningar!G$106)^(F84+Indata!B$10-Indata!B$13)*(1+Indata!B$16)^(Indata!B$13-Indata!B$17)/(1+Indata!B$7)^(F84+Indata!B$10-Indata!B$9))","v":0.11879803296851958},null,null,null,null,null,null,null,null,null,null,null,81,27.24123777290308,{"$f":"IF((Indata!B$10+F84)<Indata!B$13,IF((Indata!B$10+F84)<Indata!B$12,(1+Indata!B$14)^(F84-Indata!B$8+Indata!B$10)*(1)^(F84+Indata!B$10-Indata!B$17)/(1+Indata!B$7)^(F84+Indata!B$10-Indata!B$9),(1+Indata!B$14)^((Indata!B$12-Indata!B$10)-Indata!B$8+Indata!B$10)*(1+Indata!B$15)^(F84+Indata!B$10-Indata!B$12)*(1)^(F84+Indata!B$10-Indata!B$17)/(1+Indata!B$7)^(F84+Indata!B$10-Indata!B$9)),(1+Indata!B$14)^((Indata!B$12-Indata!B$10)-Indata!B$8+Indata!B$10)*(1+Indata!B$15)^((Indata!B$13-Indata!B$10)+Indata!B$10-Indata!B$12)*(1+Stödberäkningar!G$106)^(F84+Indata!B$10-Indata!B$13)*(1)^(F84+Indata!B$10-Indata!B$17)/(1+Indata!B$7)^(F84+Indata!B$10-Indata!B$9))","v":7.020668107466109E-2}]
[null,null,null,null,null,82,39.61917740280979,{"$f":"IF((Indata!B$10+F85)<Indata!B$13,IF((Indata!B$10+F85)<Indata!B$12,(1+Indata!B$14)^(F85-Indata!B$8+Indata!B$10)*(1+Indata!B$16)^(F85+Indata!B$10-Indata!B$17)/(1+Indata!B$7)^(F85+Indata!B$10-Indata!B$9),(1+Indata!B$14)^((Indata!B$12-Indata!B$10)-Indata!B$8+Indata!B$10)*(1+Indata!B$15)^(F85+Indata!B$10-Indata!B$12)*(1+Indata!B$16)^(F85+Indata!B$10-Indata!B$17)/(1+Indata!B$7)^(F85+Indata!B$10-Indata!B$9)),(1+Indata!B$14)^((Indata!B$12-Indata!B$10)-Indata!B$8+Indata!B$10)*(1+Indata!B$15)^((Indata!B$13-Indata!B$10)+Indata!B$10-Indata!B$12)*(1+Stödberäkningar!G$106)^(F85+Indata!B$10-Indata!B$13)*(1+Indata!B$16)^(Indata!B$13-Indata!B$17)/(1+Indata!B$7)^(F85+Indata!B$10-Indata!B$9))","v":0.11478070818214454},null,null,null,null,null,null,null,null,null,null,null,82,27.309070315004202,{"$f":"IF((Indata!B$10+F85)<Indata!B$13,IF((Indata!B$10+F85)<Indata!B$12,(1+Indata!B$14)^(F85-Indata!B$8+Indata!B$10)*(1)^(F85+Indata!B$10-Indata!B$17)/(1+Indata!B$7)^(F85+Indata!B$10-Indata!B$9),(1+Indata!B$14)^((Indata!B$12-Indata!B$10)-Indata!B$8+Indata!B$10)*(1+Indata!B$15)^(F85+Indata!B$10-Indata!B$12)*(1)^(F85+Indata!B$10-Indata!B$17)/(1+Indata!B$7)^(F85+Indata!B$10-Indata!B$9)),(1+Indata!B$14)^((Indata!B$12-Indata!B$10)-Indata!B$8+Indata!B$10)*(1+Indata!B$15)^((Indata!B$13-Indata!B$10)+Indata!B$10-Indata!B$12)*(1+Stödberäkningar!G$106)^(F85+Indata!B$10-Indata!B$13)*(1)^(F85+Indata!B$10-Indata!B$17)/(1+Indata!B$7)^(F85+Indata!B$10-Indata!B$9))","v":6.7832542101121843E-2}]
[null,null,null,null,null,83,39.730076637768384,{"$f":"IF((Indata!B$10+F86)<Indata!B$13,IF((Indata!B$10+F86)<Indata!B$12,(1+Indata!B$14)^(F86-Indata!B$8+Indata!B$10)*(1+Indata!B$16)^(F86+Indata!B$10-Indata!B$17)/(1+Indata!B$7)^(F86+Indata!B$10-Indata!B$9),(1+Indata!B$14)^((Indata!B$12-Indata!B$10)-Indata!B$8+Indata!B$10)*(1+Indata!B$15)^(F86+Indata!B$10-Indata!B$12)*(1+Indata!B$16)^(F86+Indata!B$10-Indata!B$17)/(1+Indata!B$7)^(F86+Indata!B$10-Indata!B$9)),(1+Indata!B$14)^((Indata!B$12-Indata!B$10)-Indata!B$8+Indata!B$10)*(1+Indata!B$15)^((Indata!B$13-Indata!B$10)+Indata!B$10-Indata!B$12)*(1+Stödberäkningar!G$106)^(F86+Indata!B$10-Indata!B$13)*(1+Indata!B$16)^(Indata!B$13-Indata!B$17)/(1+Indata!B$7)^(F86+Indata!B$10-Indata!B$9))","v":0.11089923495859377},null,null,null,null,null,null,null,null,null,null,null,83,27.374609003024609,{"$f":"IF((Indata!B$10+F86)<Indata!B$13,IF((Indata!B$10+F86)<Indata!B$12,(1+Indata!B$14)^(F86-Indata!B$8+Indata!B$10)*(1)^(F86+Indata!B$10-Indata!B$17)/(1+Indata!B$7)^(F86+Indata!B$10-Indata!B$9),(1+Indata!B$14)^((Indata!B$12-Indata!B$10)-Indata!B$8+Indata!B$10)*(1+Indata!B$15)^(F86+Indata!B$10-Indata!B$12)*(1)^(F86+Indata!B$10-Indata!B$17)/(1+Indata!B$7)^(F86+Indata!B$10-Indata!B$9)),(1+Indata!B$14)^((Indata!B$12-Indata!B$10)-Indata!B$8+Indata!B$10)*(1+Indata!B$15)^((Indata!B$13-Indata!B$10)+Indata!B$10-Indata!B$12)*(1+Stödberäkningar!G$106)^(F86+Indata!B$10-Indata!B$13)*(1)^(F86+Indata!B$10-Indata!B$17)/(1+Indata!B$7)^(F86+Indata!B$10-Indata!B$9))","v":6.5538688020407576E-2}]
[null,null,null,null,null,84,39.837225657052052,{"$f":"IF((Indata!B$10+F87)<Indata!B$13,IF((Indata!B$10+F87)<Indata!B$12,(1+Indata!B$14)^(F87-Indata!B$8+Indata!B$10)*(1+Indata!B$16)^(F87+Indata!B$10-Indata!B$17)/(1+Indata!B$7)^(F87+Indata!B$10-Indata!B$9),(1+Indata!B$14)^((Indata!B$12-Indata!B$10)-Indata!B$8+Indata!B$10)*(1+Indata!B$15)^(F87+Indata!B$10-Indata!B$12)*(1+Indata!B$16)^(F87+Indata!B$10-Indata!B$17)/(1+Indata!B$7)^(F87+Indata!B$10-Indata!B$9)),(1+Indata!B$14)^((Indata!B$12-Indata!B$10)-Indata!B$8+Indata!B$10)*(1+Indata!B$15)^((Indata!B$13-Indata!B$10)+Indata!B$10-Indata!B$12)*(1+Stödberäkningar!G$106)^(F87+Indata!B$10-Indata!B$13)*(1+Indata!B$16)^(Indata!B$13-Indata!B$17)/(1+Indata!B$7)^(F87+Indata!B$10-Indata!B$9))","v":0.10714901928366548},null,null,null,null,null,null,null,null,null,null,null,84,27.437931406909062,{"$f":"IF((Indata!B$10+F87)<Indata!B$13,IF((Indata!B$10+F87)<Indata!B$12,(1+Indata!B$14)^(F87-Indata!B$8+Indata!B$10)*(1)^(F87+Indata!B$10-Indata!B$17)/(1+Indata!B$7)^(F87+Indata!B$10-Indata!B$9),(1+Indata!B$14)^((Indata!B$12-Indata!B$10)-Indata!B$8+Indata!B$10)*(1+Indata!B$15)^(F87+Indata!B$10-Indata!B$12)*(1)^(F87+Indata!B$10-Indata!B$17)/(1+Indata!B$7)^(F87+Indata!B$10-Indata!B$9)),(1+Indata!B$14)^((Indata!B$12-Indata!B$10)-Indata!B$8+Indata!B$10)*(1+Indata!B$15)^((Indata!B$13-Indata!B$10)+Indata!B$10-Indata!B$12)*(1+Stödberäkningar!G$106)^(F87+Indata!B$10-Indata!B$13)*(1)^(F87+Indata!B$10-Indata!B$17)/(1+Indata!B$7)^(F87+Indata!B$10-Indata!B$9))","v":6.3322403884451761E-2}]
[null,null,null,null,null,85,39.940751279548344,{"$f":"IF((Indata!B$10+F88)<Indata!B$13,IF((Indata!B$10+F88)<Indata!B$12,(1+Indata!B$14)^(F88-Indata!B$8+Indata!B$10)*(1+Indata!B$16)^(F88+Indata!B$10-Indata!B$17)/(1+Indata!B$7)^(F88+Indata!B$10-Indata!B$9),(1+Indata!B$14)^((Indata!B$12-Indata!B$10)-Indata!B$8+Indata!B$10)*(1+Indata!B$15)^(F88+Indata!B$10-Indata!B$12)*(1+Indata!B$16)^(F88+Indata!B$10-Indata!B$17)/(1+Indata!B$7)^(F88+Indata!B$10-Indata!B$9)),(1+Indata!B$14)^((Indata!B$12-Indata!B$10)-Indata!B$8+Indata!B$10)*(1+Indata!B$15)^((Indata!B$13-Indata!B$10)+Indata!B$10-Indata!B$12)*(1+Stödberäkningar!G$106)^(F88+Indata!B$10-Indata!B$13)*(1+Indata!B$16)^(Indata!B$13-Indata!B$17)/(1+Indata!B$7)^(F88+Indata!B$10-Indata!B$9))","v":0.10352562249629516},null,null,null,null,null,null,null,null,null,null,null,85,27.499112473464088,{"$f":"IF((Indata!B$10+F88)<Indata!B$13,IF((Indata!B$10+F88)<Indata!B$12,(1+Indata!B$14)^(F88-Indata!B$8+Indata!B$10)*(1)^(F88+Indata!B$10-Indata!B$17)/(1+Indata!B$7)^(F88+Indata!B$10-Indata!B$9),(1+Indata!B$14)^((Indata!B$12-Indata!B$10)-Indata!B$8+Indata!B$10)*(1+Indata!B$15)^(F88+Indata!B$10-Indata!B$12)*(1)^(F88+Indata!B$10-Indata!B$17)/(1+Indata!B$7)^(F88+Indata!B$10-Indata!B$9)),(1+Indata!B$14)^((Indata!B$12-Indata!B$10)-Indata!B$8+Indata!B$10)*(1+Indata!B$15)^((Indata!B$13-Indata!B$10)+Indata!B$10-Indata!B$12)*(1+Stödberäkningar!G$106)^(F88+Indata!B$10-Indata!B$13)*(1)^(F88+Indata!B$10-Indata!B$17)/(1+Indata!B$7)^(F88+Indata!B$10-Indata!B$9))","v":6.1181066555025865E-2}]
[null,null,null,null,null,86,40.040776035583413,{"$f":"IF((Indata!B$10+F89)<Indata!B$13,IF((Indata!B$10+F89)<Indata!B$12,(1+Indata!B$14)^(F89-Indata!B$8+Indata!B$10)*(1+Indata!B$16)^(F89+Indata!B$10-Indata!B$17)/(1+Indata!B$7)^(F89+Indata!B$10-Indata!B$9),(1+Indata!B$14)^((Indata!B$12-Indata!B$10)-Indata!B$8+Indata!B$10)*(1+Indata!B$15)^(F89+Indata!B$10-Indata!B$12)*(1+Indata!B$16)^(F89+Indata!B$10-Indata!B$17)/(1+Indata!B$7)^(F89+Indata!B$10-Indata!B$9)),(1+Indata!B$14)^((Indata!B$12-Indata!B$10)-Indata!B$8+Indata!B$10)*(1+Indata!B$15)^((Indata!B$13-Indata!B$10)+Indata!B$10-Indata!B$12)*(1+Stödberäkningar!G$106)^(F89+Indata!B$10-Indata!B$13)*(1+Indata!B$16)^(Indata!B$13-Indata!B$17)/(1+Indata!B$7)^(F89+Indata!B$10-Indata!B$9))","v":0.1000247560350678},null,null,null,null,null,null,null,null,null,null,null,86,27.558224615063146,{"$f":"IF((Indata!B$10+F89)<Indata!B$13,IF((Indata!B$10+F89)<Indata!B$12,(1+Indata!B$14)^(F89-Indata!B$8+Indata!B$10)*(1)^(F89+Indata!B$10-Indata!B$17)/(1+Indata!B$7)^(F89+Indata!B$10-Indata!B$9),(1+Indata!B$14)^((Indata!B$12-Indata!B$10)-Indata!B$8+Indata!B$10)*(1+Indata!B$15)^(F89+Indata!B$10-Indata!B$12)*(1)^(F89+Indata!B$10-Indata!B$17)/(1+Indata!B$7)^(F89+Indata!B$10-Indata!B$9)),(1+Indata!B$14)^((Indata!B$12-Indata!B$10)-Indata!B$8+Indata!B$10)*(1+Indata!B$15)^((Indata!B$13-Indata!B$10)+Indata!B$10-Indata!B$12)*(1+Stödberäkningar!G$106)^(F89+Indata!B$10-Indata!B$13)*(1)^(F89+Indata!B$10-Indata!B$17)/(1+Indata!B$7)^(F89+Indata!B$10-Indata!B$9))","v":5.9112141599058816E-2}]
[null,null,null,null,null,87,40.137418311945794,{"$f":"IF((Indata!B$10+F90)<Indata!B$13,IF((Indata!B$10+F90)<Indata!B$12,(1+Indata!B$14)^(F90-Indata!B$8+Indata!B$10)*(1+Indata!B$16)^(F90+Indata!B$10-Indata!B$17)/(1+Indata!B$7)^(F90+Indata!B$10-Indata!B$9),(1+Indata!B$14)^((Indata!B$12-Indata!B$10)-Indata!B$8+Indata!B$10)*(1+Indata!B$15)^(F90+Indata!B$10-Indata!B$12)*(1+Indata!B$16)^(F90+Indata!B$10-Indata!B$17)/(1+Indata!B$7)^(F90+Indata!B$10-Indata!B$9)),(1+Indata!B$14)^((Indata!B$12-Indata!B$10)-Indata!B$8+Indata!B$10)*(1+Indata!B$15)^((Indata!B$13-Indata!B$10)+Indata!B$10-Indata!B$12)*(1+Stödberäkningar!G$106)^(F90+Indata!B$10-Indata!B$13)*(1+Indata!B$16)^(Indata!B$13-Indata!B$17)/(1+Indata!B$7)^(F90+Indata!B$10-Indata!B$9))","v":9.6642276362384358E-2},null,null,null,null,null,null,null,null,null,null,null,87,27.61533779535209,{"$f":"IF((Indata!B$10+F90)<Indata!B$13,IF((Indata!B$10+F90)<Indata!B$12,(1+Indata!B$14)^(F90-Indata!B$8+Indata!B$10)*(1)^(F90+Indata!B$10-Indata!B$17)/(1+Indata!B$7)^(F90+Indata!B$10-Indata!B$9),(1+Indata!B$14)^((Indata!B$12-Indata!B$10)-Indata!B$8+Indata!B$10)*(1+Indata!B$15)^(F90+Indata!B$10-Indata!B$12)*(1)^(F90+Indata!B$10-Indata!B$17)/(1+Indata!B$7)^(F90+Indata!B$10-Indata!B$9)),(1+Indata!B$14)^((Indata!B$12-Indata!B$10)-Indata!B$8+Indata!B$10)*(1+Indata!B$15)^((Indata!B$13-Indata!B$10)+Indata!B$10-Indata!B$12)*(1+Stödberäkningar!G$106)^(F90+Indata!B$10-Indata!B$13)*(1)^(F90+Indata!B$10-Indata!B$17)/(1+Indata!B$7)^(F90+Indata!B$10-Indata!B$9))","v":5.7113180288945721E-2}]
[null,null,null,null,null,88,40.230792492006067,{"$f":"IF((Indata!B$10+F91)<Indata!B$13,IF((Indata!B$10+F91)<Indata!B$12,(1+Indata!B$14)^(F91-Indata!B$8+Indata!B$10)*(1+Indata!B$16)^(F91+Indata!B$10-Indata!B$17)/(1+Indata!B$7)^(F91+Indata!B$10-Indata!B$9),(1+Indata!B$14)^((Indata!B$12-Indata!B$10)-Indata!B$8+Indata!B$10)*(1+Indata!B$15)^(F91+Indata!B$10-Indata!B$12)*(1+Indata!B$16)^(F91+Indata!B$10-Indata!B$17)/(1+Indata!B$7)^(F91+Indata!B$10-Indata!B$9)),(1+Indata!B$14)^((Indata!B$12-Indata!B$10)-Indata!B$8+Indata!B$10)*(1+Indata!B$15)^((Indata!B$13-Indata!B$10)+Indata!B$10-Indata!B$12)*(1+Stödberäkningar!G$106)^(F91+Indata!B$10-Indata!B$13)*(1+Indata!B$16)^(Indata!B$13-Indata!B$17)/(1+Indata!B$7)^(F91+Indata!B$10-Indata!B$9))","v":9.3374180060274745E-2},null,null,null,null,null,null,null,null,null,null,null,88,27.670519612056385,{"$f":"IF((Indata!B$10+F91)<Indata!B$13,IF((Indata!B$10+F91)<Indata!B$12,(1+Indata!B$14)^(F91-Indata!B$8+Indata!B$10)*(1)^(F91+Indata!B$10-Indata!B$17)/(1+Indata!B$7)^(F91+Indata!B$10-Indata!B$9),(1+Indata!B$14)^((Indata!B$12-Indata!B$10)-Indata!B$8+Indata!B$10)*(1+Indata!B$15)^(F91+Indata!B$10-Indata!B$12)*(1)^(F91+Indata!B$10-Indata!B$17)/(1+Indata!B$7)^(F91+Indata!B$10-Indata!B$9)),(1+Indata!B$14)^((Indata!B$12-Indata!B$10)-Indata!B$8+Indata!B$10)*(1+Indata!B$15)^((Indata!B$13-Indata!B$10)+Indata!B$10-Indata!B$12)*(1+Stödberäkningar!G$106)^(F91+Indata!B$10-Indata!B$13)*(1)^(F91+Indata!B$10-Indata!B$17)/(1+Indata!B$7)^(F91+Indata!B$10-Indata!B$9))","v":5.5181816704295387E-2}]
[null,null,null,null,null,89,40.321009091098119,{"$f":"IF((Indata!B$10+F92)<Indata!B$13,IF((Indata!B$10+F92)<Indata!B$12,(1+Indata!B$14)^(F92-Indata!B$8+Indata!B$10)*(1+Indata!B$16)^(F92+Indata!B$10-Indata!B$17)/(1+Indata!B$7)^(F92+Indata!B$10-Indata!B$9),(1+Indata!B$14)^((Indata!B$12-Indata!B$10)-Indata!B$8+Indata!B$10)*(1+Indata!B$15)^(F92+Indata!B$10-Indata!B$12)*(1+Indata!B$16)^(F92+Indata!B$10-Indata!B$17)/(1+Indata!B$7)^(F92+Indata!B$10-Indata!B$9)),(1+Indata!B$14)^((Indata!B$12-Indata!B$10)-Indata!B$8+Indata!B$10)*(1+Indata!B$15)^((Indata!B$13-Indata!B$10)+Indata!B$10-Indata!B$12)*(1+Stödberäkningar!G$106)^(F92+Indata!B$10-Indata!B$13)*(1+Indata!B$16)^(Indata!B$13-Indata!B$17)/(1+Indata!B$7)^(F92+Indata!B$10-Indata!B$9))","v":9.0216599092052888E-2},null,null,null,null,null,null,null,null,null,null,null,89,27.72383537698807,{"$f":"IF((Indata!B$10+F92)<Indata!B$13,IF((Indata!B$10+F92)<Indata!B$12,(1+Indata!B$14)^(F92-Indata!B$8+Indata!B$10)*(1)^(F92+Indata!B$10-Indata!B$17)/(1+Indata!B$7)^(F92+Indata!B$10-Indata!B$9),(1+Indata!B$14)^((Indata!B$12-Indata!B$10)-Indata!B$8+Indata!B$10)*(1+Indata!B$15)^(F92+Indata!B$10-Indata!B$12)*(1)^(F92+Indata!B$10-Indata!B$17)/(1+Indata!B$7)^(F92+Indata!B$10-Indata!B$9)),(1+Indata!B$14)^((Indata!B$12-Indata!B$10)-Indata!B$8+Indata!B$10)*(1+Indata!B$15)^((Indata!B$13-Indata!B$10)+Indata!B$10-Indata!B$12)*(1+Stödberäkningar!G$106)^(F92+Indata!B$10-Indata!B$13)*(1)^(F92+Indata!B$10-Indata!B$17)/(1+Indata!B$7)^(F92+Indata!B$10-Indata!B$9))","v":5.3315764931686362E-2}]
[null,null,null,null,null,90,40.408174887322325,{"$f":"IF((Indata!B$10+F93)<Indata!B$13,IF((Indata!B$10+F93)<Indata!B$12,(1+Indata!B$14)^(F93-Indata!B$8+Indata!B$10)*(1+Indata!B$16)^(F93+Indata!B$10-Indata!B$17)/(1+Indata!B$7)^(F93+Indata!B$10-Indata!B$9),(1+Indata!B$14)^((Indata!B$12-Indata!B$10)-Indata!B$8+Indata!B$10)*(1+Indata!B$15)^(F93+Indata!B$10-Indata!B$12)*(1+Indata!B$16)^(F93+Indata!B$10-Indata!B$17)/(1+Indata!B$7)^(F93+Indata!B$10-Indata!B$9)),(1+Indata!B$14)^((Indata!B$12-Indata!B$10)-Indata!B$8+Indata!B$10)*(1+Indata!B$15)^((Indata!B$13-Indata!B$10)+Indata!B$10-Indata!B$12)*(1+Stödberäkningar!G$106)^(F93+Indata!B$10-Indata!B$13)*(1+Indata!B$16)^(Indata!B$13-Indata!B$17)/(1+Indata!B$7)^(F93+Indata!B$10-Indata!B$9))","v":8.7165796224205699E-2},null,null,null,null,null,null,null,null,null,null,null,90,27.775348193347188,{"$f":"IF((Indata!B$10+F93)<Indata!B$13,IF((Indata!B$10+F93)<Indata!B$12,(1+Indata!B$14)^(F93-Indata!B$8+Indata!B$10)*(1)^(F93+Indata!B$10-Indata!B$17)/(1+Indata!B$7)^(F93+Indata!B$10-Indata!B$9),(1+Indata!B$14)^((Indata!B$12-Indata!B$10)-Indata!B$8+Indata!B$10)*(1+Indata!B$15)^(F93+Indata!B$10-Indata!B$12)*(1)^(F93+Indata!B$10-Indata!B$17)/(1+Indata!B$7)^(F93+Indata!B$10-Indata!B$9)),(1+Indata!B$14)^((Indata!B$12-Indata!B$10)-Indata!B$8+Indata!B$10)*(1+Indata!B$15)^((Indata!B$13-Indata!B$10)+Indata!B$10-Indata!B$12)*(1+Stödberäkningar!G$106)^(F93+Indata!B$10-Indata!B$13)*(1)^(F93+Indata!B$10-Indata!B$17)/(1+Indata!B$7)^(F93+Indata!B$10-Indata!B$9))","v":5.151281635911726E-2}]
[null,null,null,null,null,91,40.492393047925425,{"$f":"IF((Indata!B$10+F94)<Indata!B$13,IF((Indata!B$10+F94)<Indata!B$12,(1+Indata!B$14)^(F94-Indata!B$8+Indata!B$10)*(1+Indata!B$16)^(F94+Indata!B$10-Indata!B$17)/(1+Indata!B$7)^(F94+Indata!B$10-Indata!B$9),(1+Indata!B$14)^((Indata!B$12-Indata!B$10)-Indata!B$8+Indata!B$10)*(1+Indata!B$15)^(F94+Indata!B$10-Indata!B$12)*(1+Indata!B$16)^(F94+Indata!B$10-Indata!B$17)/(1+Indata!B$7)^(F94+Indata!B$10-Indata!B$9)),(1+Indata!B$14)^((Indata!B$12-Indata!B$10)-Indata!B$8+Indata!B$10)*(1+Indata!B$15)^((Indata!B$13-Indata!B$10)+Indata!B$10-Indata!B$12)*(1+Stödberäkningar!G$106)^(F94+Indata!B$10-Indata!B$13)*(1+Indata!B$16)^(Indata!B$13-Indata!B$17)/(1+Indata!B$7)^(F94+Indata!B$10-Indata!B$9))","v":8.4218160603097308E-2},null,null,null,null,null,null,null,null,null,null,null,91,27.825119030409137,{"$f":"IF((Indata!B$10+F94)<Indata!B$13,IF((Indata!B$10+F94)<Indata!B$12,(1+Indata!B$14)^(F94-Indata!B$8+Indata!B$10)*(1)^(F94+Indata!B$10-Indata!B$17)/(1+Indata!B$7)^(F94+Indata!B$10-Indata!B$9),(1+Indata!B$14)^((Indata!B$12-Indata!B$10)-Indata!B$8+Indata!B$10)*(1+Indata!B$15)^(F94+Indata!B$10-Indata!B$12)*(1)^(F94+Indata!B$10-Indata!B$17)/(1+Indata!B$7)^(F94+Indata!B$10-Indata!B$9)),(1+Indata!B$14)^((Indata!B$12-Indata!B$10)-Indata!B$8+Indata!B$10)*(1+Indata!B$15)^((Indata!B$13-Indata!B$10)+Indata!B$10-Indata!B$12)*(1+Stödberäkningar!G$106)^(F94+Indata!B$10-Indata!B$13)*(1)^(F94+Indata!B$10-Indata!B$17)/(1+Indata!B$7)^(F94+Indata!B$10-Indata!B$9))","v":4.9770837061949048E-2}]
[null,null,null,null,null,92,40.573763251406682,{"$f":"IF((Indata!B$10+F95)<Indata!B$13,IF((Indata!B$10+F95)<Indata!B$12,(1+Indata!B$14)^(F95-Indata!B$8+Indata!B$10)*(1+Indata!B$16)^(F95+Indata!B$10-Indata!B$17)/(1+Indata!B$7)^(F95+Indata!B$10-Indata!B$9),(1+Indata!B$14)^((Indata!B$12-Indata!B$10)-Indata!B$8+Indata!B$10)*(1+Indata!B$15)^(F95+Indata!B$10-Indata!B$12)*(1+Indata!B$16)^(F95+Indata!B$10-Indata!B$17)/(1+Indata!B$7)^(F95+Indata!B$10-Indata!B$9)),(1+Indata!B$14)^((Indata!B$12-Indata!B$10)-Indata!B$8+Indata!B$10)*(1+Indata!B$15)^((Indata!B$13-Indata!B$10)+Indata!B$10-Indata!B$12)*(1+Stödberäkningar!G$106)^(F95+Indata!B$10-Indata!B$13)*(1+Indata!B$16)^(Indata!B$13-Indata!B$17)/(1+Indata!B$7)^(F95+Indata!B$10-Indata!B$9))","v":8.1370203481253428E-2},null,null,null,null,null,null,null,null,null,null,null,92,27.873206795686382,{"$f":"IF((Indata!B$10+F95)<Indata!B$13,IF((Indata!B$10+F95)<Indata!B$12,(1+Indata!B$14)^(F95-Indata!B$8+Indata!B$10)*(1)^(F95+Indata!B$10-Indata!B$17)/(1+Indata!B$7)^(F95+Indata!B$10-Indata!B$9),(1+Indata!B$14)^((Indata!B$12-Indata!B$10)-Indata!B$8+Indata!B$10)*(1+Indata!B$15)^(F95+Indata!B$10-Indata!B$12)*(1)^(F95+Indata!B$10-Indata!B$17)/(1+Indata!B$7)^(F95+Indata!B$10-Indata!B$9)),(1+Indata!B$14)^((Indata!B$12-Indata!B$10)-Indata!B$8+Indata!B$10)*(1+Indata!B$15)^((Indata!B$13-Indata!B$10)+Indata!B$10-Indata!B$12)*(1+Stödberäkningar!G$106)^(F95+Indata!B$10-Indata!B$13)*(1)^(F95+Indata!B$10-Indata!B$17)/(1+Indata!B$7)^(F95+Indata!B$10-Indata!B$9))","v":4.808776527724546E-2}]
[null,null,null,null,null,93,40.652381805494848,{"$f":"IF((Indata!B$10+F96)<Indata!B$13,IF((Indata!B$10+F96)<Indata!B$12,(1+Indata!B$14)^(F96-Indata!B$8+Indata!B$10)*(1+Indata!B$16)^(F96+Indata!B$10-Indata!B$17)/(1+Indata!B$7)^(F96+Indata!B$10-Indata!B$9),(1+Indata!B$14)^((Indata!B$12-Indata!B$10)-Indata!B$8+Indata!B$10)*(1+Indata!B$15)^(F96+Indata!B$10-Indata!B$12)*(1+Indata!B$16)^(F96+Indata!B$10-Indata!B$17)/(1+Indata!B$7)^(F96+Indata!B$10-Indata!B$9)),(1+Indata!B$14)^((Indata!B$12-Indata!B$10)-Indata!B$8+Indata!B$10)*(1+Indata!B$15)^((Indata!B$13-Indata!B$10)+Indata!B$10-Indata!B$12)*(1+Stödberäkningar!G$106)^(F96+Indata!B$10-Indata!B$13)*(1+Indata!B$16)^(Indata!B$13-Indata!B$17)/(1+Indata!B$7)^(F96+Indata!B$10-Indata!B$9))","v":7.8618554088167578E-2},null,null,null,null,null,null,null,null,null,null,null,93,27.919668404649904,{"$f":"IF((Indata!B$10+F96)<Indata!B$13,IF((Indata!B$10+F96)<Indata!B$12,(1+Indata!B$14)^(F96-Indata!B$8+Indata!B$10)*(1)^(F96+Indata!B$10-Indata!B$17)/(1+Indata!B$7)^(F96+Indata!B$10-Indata!B$9),(1+Indata!B$14)^((Indata!B$12-Indata!B$10)-Indata!B$8+Indata!B$10)*(1+Indata!B$15)^(F96+Indata!B$10-Indata!B$12)*(1)^(F96+Indata!B$10-Indata!B$17)/(1+Indata!B$7)^(F96+Indata!B$10-Indata!B$9)),(1+Indata!B$14)^((Indata!B$12-Indata!B$10)-Indata!B$8+Indata!B$10)*(1+Indata!B$15)^((Indata!B$13-Indata!B$10)+Indata!B$10-Indata!B$12)*(1+Stödberäkningar!G$106)^(F96+Indata!B$10-Indata!B$13)*(1)^(F96+Indata!B$10-Indata!B$17)/(1+Indata!B$7)^(F96+Indata!B$10-Indata!B$9))","v":4.6461608963522187E-2}]
[null,null,null,null,null,94,40.728341761135589,{"$f":"IF((Indata!B$10+F97)<Indata!B$13,IF((Indata!B$10+F97)<Indata!B$12,(1+Indata!B$14)^(F97-Indata!B$8+Indata!B$10)*(1+Indata!B$16)^(F97+Indata!B$10-Indata!B$17)/(1+Indata!B$7)^(F97+Indata!B$10-Indata!B$9),(1+Indata!B$14)^((Indata!B$12-Indata!B$10)-Indata!B$8+Indata!B$10)*(1+Indata!B$15)^(F97+Indata!B$10-Indata!B$12)*(1+Indata!B$16)^(F97+Indata!B$10-Indata!B$17)/(1+Indata!B$7)^(F97+Indata!B$10-Indata!B$9)),(1+Indata!B$14)^((Indata!B$12-Indata!B$10)-Indata!B$8+Indata!B$10)*(1+Indata!B$15)^((Indata!B$13-Indata!B$10)+Indata!B$10-Indata!B$12)*(1+Stödberäkningar!G$106)^(F97+Indata!B$10-Indata!B$13)*(1+Indata!B$16)^(Indata!B$13-Indata!B$17)/(1+Indata!B$7)^(F97+Indata!B$10-Indata!B$9))","v":7.5959955640741636E-2},null,null,null,null,null,null,null,null,null,null,null,94,27.964558848092921,{"$f":"IF((Indata!B$10+F97)<Indata!B$13,IF((Indata!B$10+F97)<Indata!B$12,(1+Indata!B$14)^(F97-Indata!B$8+Indata!B$10)*(1)^(F97+Indata!B$10-Indata!B$17)/(1+Indata!B$7)^(F97+Indata!B$10-Indata!B$9),(1+Indata!B$14)^((Indata!B$12-Indata!B$10)-Indata!B$8+Indata!B$10)*(1+Indata!B$15)^(F97+Indata!B$10-Indata!B$12)*(1)^(F97+Indata!B$10-Indata!B$17)/(1+Indata!B$7)^(F97+Indata!B$10-Indata!B$9)),(1+Indata!B$14)^((Indata!B$12-Indata!B$10)-Indata!B$8+Indata!B$10)*(1+Indata!B$15)^((Indata!B$13-Indata!B$10)+Indata!B$10-Indata!B$12)*(1+Stödberäkningar!G$106)^(F97+Indata!B$10-Indata!B$13)*(1)^(F97+Indata!B$10-Indata!B$17)/(1+Indata!B$7)^(F97+Indata!B$10-Indata!B$9))","v":4.4890443443016619E-2}]
[null,null,null,null,null,95,40.801733022624227,{"$f":"IF((Indata!B$10+F98)<Indata!B$13,IF((Indata!B$10+F98)<Indata!B$12,(1+Indata!B$14)^(F98-Indata!B$8+Indata!B$10)*(1+Indata!B$16)^(F98+Indata!B$10-Indata!B$17)/(1+Indata!B$7)^(F98+Indata!B$10-Indata!B$9),(1+Indata!B$14)^((Indata!B$12-Indata!B$10)-Indata!B$8+Indata!B$10)*(1+Indata!B$15)^(F98+Indata!B$10-Indata!B$12)*(1+Indata!B$16)^(F98+Indata!B$10-Indata!B$17)/(1+Indata!B$7)^(F98+Indata!B$10-Indata!B$9)),(1+Indata!B$14)^((Indata!B$12-Indata!B$10)-Indata!B$8+Indata!B$10)*(1+Indata!B$15)^((Indata!B$13-Indata!B$10)+Indata!B$10-Indata!B$12)*(1+Stödberäkningar!G$106)^(F98+Indata!B$10-Indata!B$13)*(1+Indata!B$16)^(Indata!B$13-Indata!B$17)/(1+Indata!B$7)^(F98+Indata!B$10-Indata!B$9))","v":7.3391261488639267E-2},null,null,null,null,null,null,null,null,null,null,null,95,28.007931257216608,{"$f":"IF((Indata!B$10+F98)<Indata!B$13,IF((Indata!B$10+F98)<Indata!B$12,(1+Indata!B$14)^(F98-Indata!B$8+Indata!B$10)*(1)^(F98+Indata!B$10-Indata!B$17)/(1+Indata!B$7)^(F98+Indata!B$10-Indata!B$9),(1+Indata!B$14)^((Indata!B$12-Indata!B$10)-Indata!B$8+Indata!B$10)*(1+Indata!B$15)^(F98+Indata!B$10-Indata!B$12)*(1)^(F98+Indata!B$10-Indata!B$17)/(1+Indata!B$7)^(F98+Indata!B$10-Indata!B$9)),(1+Indata!B$14)^((Indata!B$12-Indata!B$10)-Indata!B$8+Indata!B$10)*(1+Indata!B$15)^((Indata!B$13-Indata!B$10)+Indata!B$10-Indata!B$12)*(1+Stödberäkningar!G$106)^(F98+Indata!B$10-Indata!B$13)*(1)^(F98+Indata!B$10-Indata!B$17)/(1+Indata!B$7)^(F98+Indata!B$10-Indata!B$9))","v":4.3372409123687554E-2}]
[null,null,null,null,null,96,40.872642454014219,{"$f":"IF((Indata!B$10+F99)<Indata!B$13,IF((Indata!B$10+F99)<Indata!B$12,(1+Indata!B$14)^(F99-Indata!B$8+Indata!B$10)*(1+Indata!B$16)^(F99+Indata!B$10-Indata!B$17)/(1+Indata!B$7)^(F99+Indata!B$10-Indata!B$9),(1+Indata!B$14)^((Indata!B$12-Indata!B$10)-Indata!B$8+Indata!B$10)*(1+Indata!B$15)^(F99+Indata!B$10-Indata!B$12)*(1+Indata!B$16)^(F99+Indata!B$10-Indata!B$17)/(1+Indata!B$7)^(F99+Indata!B$10-Indata!B$9)),(1+Indata!B$14)^((Indata!B$12-Indata!B$10)-Indata!B$8+Indata!B$10)*(1+Indata!B$15)^((Indata!B$13-Indata!B$10)+Indata!B$10-Indata!B$12)*(1+Stödberäkningar!G$106)^(F99+Indata!B$10-Indata!B$13)*(1+Indata!B$16)^(Indata!B$13-Indata!B$17)/(1+Indata!B$7)^(F99+Indata!B$10-Indata!B$9))","v":7.0909431389989633E-2},null,null,null,null,null,null,null,null,null,null,null,96,28.049836966514857,{"$f":"IF((Indata!B$10+F99)<Indata!B$13,IF((Indata!B$10+F99)<Indata!B$12,(1+Indata!B$14)^(F99-Indata!B$8+Indata!B$10)*(1)^(F99+Indata!B$10-Indata!B$17)/(1+Indata!B$7)^(F99+Indata!B$10-Indata!B$9),(1+Indata!B$14)^((Indata!B$12-Indata!B$10)-Indata!B$8+Indata!B$10)*(1+Indata!B$15)^(F99+Indata!B$10-Indata!B$12)*(1)^(F99+Indata!B$10-Indata!B$17)/(1+Indata!B$7)^(F99+Indata!B$10-Indata!B$9)),(1+Indata!B$14)^((Indata!B$12-Indata!B$10)-Indata!B$8+Indata!B$10)*(1+Indata!B$15)^((Indata!B$13-Indata!B$10)+Indata!B$10-Indata!B$12)*(1+Stödberäkningar!G$106)^(F99+Indata!B$10-Indata!B$13)*(1)^(F99+Indata!B$10-Indata!B$17)/(1+Indata!B$7)^(F99+Indata!B$10-Indata!B$9))","v":4.1905709298248849E-2}]
[null,null,null,null,null,97,{"$f":"G99+H100","v":40.941153981927251},{"$f":"IF((Indata!B$10+F100)<Indata!B$13,IF((Indata!B$10+F100)<Indata!B$12,(1+Indata!B$14)^(F100-Indata!B$8+Indata!B$10)*(1+Indata!B$16)^(F100+Indata!B$10-Indata!B$17)/(1+Indata!B$7)^(F100+Indata!B$10-Indata!B$9),(1+Indata!B$14)^((Indata!B$12-Indata!B$10)-Indata!B$8+Indata!B$10)*(1+Indata!B$15)^(F100+Indata!B$10-Indata!B$12)*(1+Indata!B$16)^(F100+Indata!B$10-Indata!B$17)/(1+Indata!B$7)^(F100+Indata!B$10-Indata!B$9)),(1+Indata!B$14)^((Indata!B$12-Indata!B$10)-Indata!B$8+Indata!B$10)*(1+Indata!B$15)^((Indata!B$13-Indata!B$10)+Indata!B$10-Indata!B$12)*(1+Stödberäkningar!G$106)^(F100+Indata!B$10-Indata!B$13)*(1+Indata!B$16)^(Indata!B$13-Indata!B$17)/(1+Indata!B$7)^(F100+Indata!B$10-Indata!B$9))","v":6.8511527913033471E-2},null,null,null,null,null,null,null,null,null,null,null,97,28.090325574532489,{"$f":"IF((Indata!B$10+F100)<Indata!B$13,IF((Indata!B$10+F100)<Indata!B$12,(1+Indata!B$14)^(F100-Indata!B$8+Indata!B$10)*(1)^(F100+Indata!B$10-Indata!B$17)/(1+Indata!B$7)^(F100+Indata!B$10-Indata!B$9),(1+Indata!B$14)^((Indata!B$12-Indata!B$10)-Indata!B$8+Indata!B$10)*(1+Indata!B$15)^(F100+Indata!B$10-Indata!B$12)*(1)^(F100+Indata!B$10-Indata!B$17)/(1+Indata!B$7)^(F100+Indata!B$10-Indata!B$9)),(1+Indata!B$14)^((Indata!B$12-Indata!B$10)-Indata!B$8+Indata!B$10)*(1+Indata!B$15)^((Indata!B$13-Indata!B$10)+Indata!B$10-Indata!B$12)*(1+Stödberäkningar!G$106)^(F100+Indata!B$10-Indata!B$13)*(1)^(F100+Indata!B$10-Indata!B$17)/(1+Indata!B$7)^(F100+Indata!B$10-Indata!B$9))","v":4.0488608017631739E-2}]
[null,null,null,null,null,98,41.007348694886701,{"$f":"IF((Indata!B$10+F101)<Indata!B$13,IF((Indata!B$10+F101)<Indata!B$12,(1+Indata!B$14)^(F101-Indata!B$8+Indata!B$10)*(1+Indata!B$16)^(F101+Indata!B$10-Indata!B$17)/(1+Indata!B$7)^(F101+Indata!B$10-Indata!B$9),(1+Indata!B$14)^((Indata!B$12-Indata!B$10)-Indata!B$8+Indata!B$10)*(1+Indata!B$15)^(F101+Indata!B$10-Indata!B$12)*(1+Indata!B$16)^(F101+Indata!B$10-Indata!B$17)/(1+Indata!B$7)^(F101+Indata!B$10-Indata!B$9)),(1+Indata!B$14)^((Indata!B$12-Indata!B$10)-Indata!B$8+Indata!B$10)*(1+Indata!B$15)^((Indata!B$13-Indata!B$10)+Indata!B$10-Indata!B$12)*(1+Stödberäkningar!G$106)^(F101+Indata!B$10-Indata!B$13)*(1+Indata!B$16)^(Indata!B$13-Indata!B$17)/(1+Indata!B$7)^(F101+Indata!B$10-Indata!B$9))","v":6.6194712959452631E-2},null,null,null,null,null,null,null,null,null,null,null,98,28.129445002568847,{"$f":"IF((Indata!B$10+F101)<Indata!B$13,IF((Indata!B$10+F101)<Indata!B$12,(1+Indata!B$14)^(F101-Indata!B$8+Indata!B$10)*(1)^(F101+Indata!B$10-Indata!B$17)/(1+Indata!B$7)^(F101+Indata!B$10-Indata!B$9),(1+Indata!B$14)^((Indata!B$12-Indata!B$10)-Indata!B$8+Indata!B$10)*(1+Indata!B$15)^(F101+Indata!B$10-Indata!B$12)*(1)^(F101+Indata!B$10-Indata!B$17)/(1+Indata!B$7)^(F101+Indata!B$10-Indata!B$9)),(1+Indata!B$14)^((Indata!B$12-Indata!B$10)-Indata!B$8+Indata!B$10)*(1+Indata!B$15)^((Indata!B$13-Indata!B$10)+Indata!B$10-Indata!B$12)*(1+Stödberäkningar!G$106)^(F101+Indata!B$10-Indata!B$13)*(1)^(F101+Indata!B$10-Indata!B$17)/(1+Indata!B$7)^(F101+Indata!B$10-Indata!B$9))","v":3.911942803635917E-2}]
[null,null,null,null,null,99,41.07130493929197,{"$f":"IF((Indata!B$10+F102)<Indata!B$13,IF((Indata!B$10+F102)<Indata!B$12,(1+Indata!B$14)^(F102-Indata!B$8+Indata!B$10)*(1+Indata!B$16)^(F102+Indata!B$10-Indata!B$17)/(1+Indata!B$7)^(F102+Indata!B$10-Indata!B$9),(1+Indata!B$14)^((Indata!B$12-Indata!B$10)-Indata!B$8+Indata!B$10)*(1+Indata!B$15)^(F102+Indata!B$10-Indata!B$12)*(1+Indata!B$16)^(F102+Indata!B$10-Indata!B$17)/(1+Indata!B$7)^(F102+Indata!B$10-Indata!B$9)),(1+Indata!B$14)^((Indata!B$12-Indata!B$10)-Indata!B$8+Indata!B$10)*(1+Indata!B$15)^((Indata!B$13-Indata!B$10)+Indata!B$10-Indata!B$12)*(1+Stödberäkningar!G$106)^(F102+Indata!B$10-Indata!B$13)*(1+Indata!B$16)^(Indata!B$13-Indata!B$17)/(1+Indata!B$7)^(F102+Indata!B$10-Indata!B$9))","v":6.3956244405268259E-2},null,null,null,null,null,null,null,null,null,null,null,99,28.167241551396248,{"$f":"IF((Indata!B$10+F102)<Indata!B$13,IF((Indata!B$10+F102)<Indata!B$12,(1+Indata!B$14)^(F102-Indata!B$8+Indata!B$10)*(1)^(F102+Indata!B$10-Indata!B$17)/(1+Indata!B$7)^(F102+Indata!B$10-Indata!B$9),(1+Indata!B$14)^((Indata!B$12-Indata!B$10)-Indata!B$8+Indata!B$10)*(1+Indata!B$15)^(F102+Indata!B$10-Indata!B$12)*(1)^(F102+Indata!B$10-Indata!B$17)/(1+Indata!B$7)^(F102+Indata!B$10-Indata!B$9)),(1+Indata!B$14)^((Indata!B$12-Indata!B$10)-Indata!B$8+Indata!B$10)*(1+Indata!B$15)^((Indata!B$13-Indata!B$10)+Indata!B$10-Indata!B$12)*(1+Stödberäkningar!G$106)^(F102+Indata!B$10-Indata!B$13)*(1)^(F102+Indata!B$10-Indata!B$17)/(1+Indata!B$7)^(F102+Indata!B$10-Indata!B$9))","v":3.7796548827400168E-2}]
[]
[null,null,null,null,null,"Nuvärdefaktor",{"$f":"VLOOKUP(Indata!B11-1,Stödberäkningar!F3:G102,2)","v":35.66378671112092},null,null,null,null,null,null,null,null,null,null,null,null,"Nuvärdefaktor",{"$f":"VLOOKUP(Indata!B11-1,Stödberäkningar!T3:U102,2)","v":24.971532850131609}]
[]
[null,null,null,null,null,"Årlig trafiktillväxt efter brytår 2 [%]",0,null,null,null,null,null,null,null,null,null,null,null,null,"Årlig trafiktillväxt efter brytår 2 [%]",0]
[]
[null,null,null,null,null,"Årlig värdeökning efter brytår 2 [%]",0]